Workbook

Sheet GUIDE
A1: A P P L I C A T I O N D E C O M P T A B I LI T E.
A3: Feuille "GUIDE":
A4: Décrit le contenu et les modalités de fonctionnement de l'application comptable,
A6: Feuille "PLANS":
A7: Tableau des "CLES:
A8: Un code CLES est affecté aux comptes de charges et de produits. Voir marque rouge colonne H,
A9: Le code "9" est affecté aux comptes de produits résultants d'un appel de fonds aux copropriétaires.
A10: Tableau des "Codes" et "Libellés" du "Journal" et des Etats.
A11: Tableau des dates de début et fin d'exercice.
A12: Tableau "PLAN COMPTABLE"
A13: Suivant "Numéros", " % de charges locatives récupérables" et "Libellés".
A14: Un code 1 est attribué pour les comptes de charges récupérables,
A15: Si une charge peut être récupérable ou non récupérable il faut créer deux comptes comptables
A16: Dans le plan de comptes il existe un code "CLASSE" de regroupement pour établir des sous totaux dans le grand livre
A17: Classes particulières : Fournisseurs créditeurs,,,,40 débiteurs,,,41
A18: Copropriétaires,,,,,,,,,,,,,,,,45
A19: Tiers Débiteurs,,,,,,,,,,,,,,,,48
A20: Tiers créditeurs,,,,,,,,,,,,,,,49
A21: Il est possible d'ajouter des comptes, soit en utilisant les "numéros de comptes" réservés pour les "Fournisseurs" et "Copropriétaires, soit en remplaçant un numéro commençant par 9, la liste doit ensuite être TRIER sur les numéros de compte.
A23: Feuille "JOURNAL"
A24: L'application repose sur la tenue d'un "Journal" unique.
A25: Cependant les écritures de "Banque" sont sélectionnées et le solde du compte bancaire tenu en permanence
A26: L'état de rapprochement peut se faire également à partir du compte 512 dans le "Grand-Livre"".
A28: Il ne faut jamais supprimer la première ligne du "Journal" avec le code "999" (Impératif EXCEL pour les sous-totaux).
A31: EXERCICE NBOUVEAU
A32: Il est possible d'ouvrir un "EXERCICE NOUVEAU" en cliquant sur le bouton correspondant dans la feuille "JOURNAL"
A34: Feuilles "Grand-Livre", "Balance", "Charges par Comptes et par CLES", etc...
A35: Le "Grand-Livre", la "balance " et les "Etats" sont établis à partir d'un "clic" sur le bouton vert se trouvant dans la feuille "Journal".
A37: CRÉER UN DOSSIER POUR UN SYNDICAT
A38: Vous devez d' abord cliquer sur le bouton "Exercice nouveau",
A39: Ensuite dans la feille "PLANS" vous deMettrevez mettre à Jour les Clés spécifiques, code 2 à 8,
A40: Mettre à jour le plan comptable, en particulier les comptes 'Fournisseurs" et "Copropriétaires",
A41: Vous pouvez conserver les numéros de comptes et remplacer les libellés:
A42: Attention, la liste du plan comptable doit toujours être trier par ordre chronilogique
A44: Ne pas renir compte de l' avertissement de références circulaires,
A45: Les "ANNEXES" font partie d'un module indépendant pour plus de souplesse dans le passage d'un exercice au suivant.
A47: Mise à jour le 13 octobre 2020
A48: Jean Braconnier

Sheet PLANS
A1: CLES | B1: Libellé | D1: Code | E1: Libellés | H1: Jour/mois | I1: Année N | J1: Année N+1 | K1: Année N+2 | M1: CLASSE | N1: TOTAL | O1: DESIGNATION
A2: 1 | B2: Total 1 | C2: Charges Générales | D2: 3 | E2: JOURNAL | G2: Date début exercice | H2: 1er janvier | I2: 2016 | J2: =I2+1 -> 2017 | K2: =J2+1 -> 2018 | M2: 10 | N2: Total 10 | O2: PROVISIONS-SUBV,
A3: 2 | B3: Total 2 | C3: Charges Bâtiment | D3: 4 | E3: GRAND LIVRE | G3: Date fin exercice | H3: 31 décembre. | I3: 2016 | J3: =I3+1 -> 2017 | K3: =J3+1 -> 2018 | M3: 40 | N3: Total 40 | O3: FOURNISSEURS
A4: 3 | D4: 5 | E4: BALANCE | M4: 41 | N4: Total 41 | O4: FOURN.DEBITEURS
A5: 4 | D5: 6 | E5: CHARGES PAR COMPTES | M5: 45 | N5: Total 45 | O5: COPROPRIETAIRES
A6: 5 | B6: Total 5 | C6: Charges Bât. B | D6: 7 | E6: CHARGES PAR CLES | M6: 48 | N6: Total 48 | O6: DEBITEURS DIVERS
A7: 6 | B7: Total 6 | C7: Eau froide Indiv. | D7: 8 | E7: TRAVAUX PAR COMPTES | M7: 49 | N7: Total 49 | O7: CREDITEURS DIVERS
A8: 7 | B8: Total 7 | C8: Eau commune | D8: 9 | E8: TRAVAUX PAR CLES | H8: Exercice : | I8: =IF(I2<>I3,CONCATENATE(I2,"/",I3),I3) -> 2016 | J8: =IF(J2<>J3,CONCATENATE(J2,"/",J3),J3) -> 2017 | K8: =IF(K2<>K3,CONCATENATE(K2,"/",K3),K3) -> 2018 | M8: 50 | N8: Total 50 | O8: BANQUES
A9: 8 | D9: 10 | G9: Début exercice | H9: =CONCATENATE(H2,I2) -> 1er janvier2016 | M9: 60 | N9: Total 60 | O9: CHARGES
A10: 9 | B10: Total 9 | C10: Provisions. | G10: Fin exercice N | H10: =CONCATENATE(H3,I3) -> 31 décembre.2016 | M10: 70 | N10: Total 70 | O10: PRODUITS
G11: Exercice N | H11: =CONCATENATE(H2," ",I2," au ",H3," ",I3) -> 1er janvier 2016 au 31 décembre. 2016 | M11: 99 | N11: Total 99 | O11: xxx
G12: Exercice N + 2 | H12: =CONCATENATE(H2," ",K2," au ",H3," ",K3) -> 1er janvier 2018 au 31 décembre. 2018
F15: Dernier N°CLES CH.Générales | G15: 9 | H15: =CONCATENATE("<=",G15) -> <=9
F16: Premier N°CLES CH.Travaux | G16: 11 | H16: =CONCATENATE(">=",G16) -> >=11
A19: Compte | B19: REC. | C19: Libelles | D19: Classe
A20: 103.1 | C20: Avances de Trésorerie | D20: 10
A21: 103.2 | C21: Avances travaux | D21: 10
A22: 103.3 | C22: avance eau | D22: 10
A23: 120 | C23: Solde en Attente s/Trav. | D23: 10
A24: 401.1 | C24: C.G.E | D24: 40
A25: 401.2 | C25: E.D.F | D25: 40
A26: 401.3 | C26: C.C.P. | D26: 40
A27: 401.4 | C27: Frais Postaux | D27: 40
A28: 401.501 | C28: Ass.Dumontier | D28: 40
A29: 401.502 | C29: A.R.C. | D29: 40
A30: 401.6 | C30: E.M.N. | D30: 40
A31: 401.7 | C31: fournitures | D31: 40
A32: 401.8 | C32: DUBOIS | D32: 40
A33: 401.9 | C33: Fournisseurs Divers | D33: 40
A34: 401.92 | C34: syndic | D34: 40
A35: 408.1 | C35: Factures non parvenues | D35: 40
A36: 409 | C36: Fournisseurs débiteurs | D36: 41
A37: 441 | C37: etat subv trav ass | D37: 48
A38: 450.01 | C38: AUBERT | D38: 45
A39: 450.02 | C39: AUDIARD | D39: 45
A40: 450.03 | C40: BERNARDIN | D40: 45
A41: 450.04 | C41: CONVERT | D41: 45
A42: 450.05 | C42: HUBERT | D42: 45
A43: 450.06 | C43: LELIEVRE | D43: 45
A44: 450.07 | C44: RONDEAU | D44: 45
A45: 450.08 | C45: X.Y.Z. | D45: 45
A46: 459 | C46: Copros; créances douteuses | D46: 45
A47: 462 | C47: Créditeurs Divers | D47: 48
A48: 471 | C48: Compte Attente Débiteur | D48: 48
A49: 472 | C49: Compte Attente Créditeur | D49: 49
A50: 491 | C50: dépréciation des comptes copropriétaires | D50: 49
A51: 512 | C51: Banque C.C.P. | D51: 50
A52: 601.6 | B52: 1 | C52: EAU Indiv. | D52: 60
A53: 601.7 | B53: 1 | C53: Eau Commune | D53: 60
A54: 602 | B54: 1 | C54: Electricité | D54: 60
A55: 604 | B55: 1 | C55: Prod.Entretien et Petits Equip. | D55: 60
A56: 611 | B56: 1 | C56: Nettoyage des Locaux | D56: 60
A57: 616.1 | B57: 0 | C57: Assurances Multirisques | D57: 60
A58: 616.2 | B58: 0 | C58: A,ARC, | D58: 60
A59: 621.1 | C59: honoraires syndic | D59: 60
A60: 621.2 | B60: 0 | C60: Débours | D60: 60
A61: 621.3 | B61: 0 | C61: Frais Postaux | D61: 60
A62: 621.4 | B62: 1 | C62: Fournitures | D62: 60
A63: 662 | B63: 0 | C63: Autres ch.financières | D63: 60
A64: 671.1 | B64: 0 | C64: travaux peinture | D64: 60
A65: 671.2 | B65: 0 | C65: travaux plomberie | D65: 60
A66: 671.3 | C66: travaux ravalement | D66: 60
A67: 671.4 | C67: trvx peinture couloir esc | D67: 60
A68: 673 | B68: 0 | C68: Etudes Techniques, diagnostic,consultation | D68: 60
A69: 677 | C69: pertes sur créances irrécouvrables | D69: 70
A70: 701.1 | C70: Provisions charges Ctes | D70: 70
A71: 701.2 | C71: Trop perçu Ch.Ctes | D71: 70
A72: 701.3 | C72: Insuffisance Exerc.Ch.Ctes | D72: 70
A73: 702.1 | C73: Provision s/Trav.1 | D73: 70
A74: 702.2 | C74: Provision s/Trav.2 | D74: 70
A75: 702.3 | C75: Provision s/trav.3 | D75: 70
A76: 702.4 | C76: Trop perçu sur Trav.1 | D76: 70
A77: 702.5 | C77: Trop perçu sur Trav.2 | D77: 70
A78: 702.6 | C78: Insuffisance sur Trav.1 | D78: 70
A79: 702.7 | C79: Insuffisance sur Trav.2 | D79: 70
A80: 702.8 | C80: provision s/trav.4 | D80: 70
A81: 711 | C81: subvention | D81: 70
A82: 930
A83: 931
A84: 932
A85: 933
A86: 934
A87: 935
A88: 936
A89: 937
A90: 938
A91: 939
A92: 940
A93: 941
A94: 942
A95: 943
A96: 944
A97: 945
A98: 946
A99: 999 | D99: 99
B101: AJOUTER UN COMPTE
B102: Remplacer le premier numéro commençant par 9 par le numéro du compte à créer et mettre le libellé
B103: Sélectionner une cellule du plan et TRIER sur le "Numéro" de compte.

Sheet Journal
A1: =IF($D1<>"",VLOOKUP($D1,PLANS!$B$2:$C$10,2,FALSE),"") ->  | E1: =VLOOKUP(H1,PLANS!$D$1:$E$9,2,FALSE) -> JOURNAL | F1: =IF($H$1=3,SUM(F5:F971),"") -> 30237.27 | G1: =IF($H$1=3,SUM(G5:G971),"") -> 30237.27 | H1: 3 | M1: =IF($D$1=3,SUM(M5:M971),"") ->  | O1: =IF($D$1=3,SUM(O5:O971),"") ->  | P1: =IF($D$1=3,SUM(P5:P971),"") ->  | Q1: Compte | R1: Compte | S1: Clé | U1: Compte | V1: Compte | W1: Clé | AC1: Compte | AD1: Compte
C2: =IF($D2<>"",VLOOKUP($D2,[1]PLANS!$B$2:$C$10,2,FALSE),"") ->  | D2: =IF(AND($D1<>"",$A2=0),VLOOKUP($D1,[1]PLANS!$A$2:$C$10,2,FALSE),"") ->  | E2: =IF(AND(C1<>"",A2=0),VLOOKUP(C1,[1]PLANS!$A$20:$C$99,3,FALSE),"") ->  | I2: =IF(F2>G2,(F2-G2)*(A2=0),"") ->  | J2: =IF(G2>F2,(G2-F2)*(A2=0),"") ->  | L2: =IF(AND(K2>"",A2=""),VLOOKUP(K2,PLANS!$N$2:$O$11,2),"") ->  | M2: =IF($H$1=3,SUM(M6:M971),"") -> 1565.79 | O2: =IF($H$1=3,SUM(O6:O971),"") -> 1002.29 | P2: =IF($H$1=3,SUM(P6:P971),"") -> 508.93 | Q2: >=600 | R2: <=799 | S2: =PLANS!H15 -> <=9 | U2: >=600 | V2: <=799 | W2: =PLANS!H16 -> >=11 | AC2: >=450 | AD2: <460
A4: N° | B4: Date | C4: Compte | D4: Clé | E4: Libellé | F4: …....Débit……. | G4: …...Crédit…… | H4: X | I4: Solde Débiteur | J4: Solde Créditeur | K4: Classe | L4: Réc. | M4: Mt REC. | N4: Tx TVA | O4: Mt T.V.A. | P4: TVA Loc. | Q4: Banque | S4: Débit | T4: crédit
A5: 1 | B5: 2016-01-01 | C5: 999 | D5: 99 | E5: xxx | H5: =IF(AND(C5>=600,D5=0),"CLE","") ->  | I5: =IF(F5>G5,(F5-G5)*(A5=0),"") ->  | J5: =IF(G5>F5,(G5-F5)*(A5=0),"") ->  | K5: =IF(A5>0,VLOOKUP(C5,PLANS!A$20:$D$99,4),"") -> 99 | L5: =IF(C5<>0,VLOOKUP(C5,PLANS!$A$20:$C$99,2,FALSE),0) -> 0 | M5: =IF(L5<>0,ROUND((F5-G5)*L5,2),0) -> 0 | P5: =O5*L5 -> 0 | S5: =F5*($C5=512) -> 0 | T5: =G5*($C5=512) -> 0
A6: 2 | B6: 2016-01-01 | C6: 512 | E6: A nouveau | F6: 1790.84 | K6: 50 | Q6: 1790.84 | S6: 1790.84
A7: 3 | B7: 2016-01-01 | C7: 450.01 | E7: A nouveau AUBERT | G7: 314.25 | K7: 45 | Q7: 1790.84
A8: 8 | B8: 2016-01-01 | C8: 450.02 | E8: A nouveau AUDIARD | F8: 133.38 | K8: 45 | Q8: 1790.84
A9: 9 | B9: 2016-01-01 | C9: 450.03 | E9: A nouveau BERFNARDIN | F9: 80.13 | K9: 45 | Q9: 1790.84
A10: 10 | B10: 2016-01-01 | C10: 450.05 | E10: A nouveau HUBERT | F10: 551.11 | K10: 45 | Q10: 1790.84
A11: 11 | B11: 2016-01-01 | C11: 450.06 | E11: A nouveau LELIEVRE | F11: 73.02 | K11: 45 | Q11: 1790.84
A12: 12 | B12: 2016-01-01 | C12: 450.07 | E12: A nouveau RONDEAU | F12: 235.43 | K12: 45 | Q12: 1790.84
A13: 13 | B13: 2016-01-01 | C13: 408.1 | E13: A nouveau eau 167m3 | G13: 749.66 | K13: 40 | Q13: 1790.84
A14: 14 | B14: 2016-01-01 | C14: 408.1 | E14: reprise eau 167m3 | F14: 749.66 | K14: 40 | Q14: 1790.84
A15: 15 | B15: 2016-01-01 | C15: 601.6 | D15: 6 | E15: reprise eau 167m3 | G15: 749.66 | K15: 60 | L15: 1 | M15: -749.66 | N15: 20 | O15: 124.89 | P15: 124.89 | Q15: 1790.84
A16: 16 | B16: 2016-01-01 | C16: 103.1 | E16: A nouveau avance trésorerie | K16: 10 | Q16: 1790.84
A17: 17 | B17: 2016-01-01 | C17: 103.1 | E17: SECLIN | G17: 117 | K17: 10 | Q17: 1790.84
A18: 18 | B18: 2016-01-01 | C18: 103.1 | E18: AUDIARD | G18: 150 | K18: 10 | Q18: 1790.84
A19: 19 | B19: 2016-01-01 | C19: 103.1 | E19: BERNARDIN | G19: 195 | K19: 10 | Q19: 1790.84
A20: 20 | B20: 2016-01-01 | C20: 103.1 | E20: HU BERT | G20: 206 | K20: 10 | Q20: 1790.84
A21: 21 | B21: 2016-01-01 | C21: 103.1 | E21: LELIEVRE | G21: 233 | K21: 10 | Q21: 1790.84
A22: 22 | B22: 2016-01-01 | C22: 103.1 | E22: RONDEAU | G22: 99 | K22: 10 | Q22: 1790.84
A23: 23 | B23: 2016-01-01 | C23: 103.2 | E23: A nouveau avance travaux | K23: 10 | Q23: 1790.84
A24: 24 | B24: 2016-01-01 | C24: 103.2 | E24: SECLIN | G24: 93.87 | K24: 10 | Q24: 1790.84
A25: 25 | B25: 2016-01-01 | C25: 103.2 | E25: AUDOARD | G25: 120.36 | K25: 10 | Q25: 1790.84
A26: 26 | B26: 2016-01-01 | C26: 103.2 | E26: BERNARDIN | G26: 154.05 | K26: 10 | Q26: 1790.84
A27: 27 | B27: 2016-01-01 | C27: 103.2 | E27: HUBERT | G27: 165.32 | K27: 10 | Q27: 1790.84
A28: 28 | B28: 2016-01-01 | C28: 103.2 | E28: LELIEVRFE | G28: 186.96 | K28: 10 | Q28: 1790.84
A29: 29 | B29: 2016-01-01 | C29: 103.2 | E29: RONDEAU | G29: 79.45 | K29: 10 | Q29: 1790.84
A30: 30 | B30: 2016-01-01 | C30: 471 | E30: A nouveau écart de répartition | F30: 0.01 | K30: 48 | Q30: 1790.84
A31: 31 | B31: 2016-01-01 | C31: 471 | E31: régul écart de répartition | G31: 0.01 | K31: 48 | Q31: 1790.84
A32: 32 | B32: 2016-01-01 | C32: 611 | D32: 1 | E32: régul écart de répartition | F32: 0.01 | K32: 60 | L32: 1 | M32: 0.01 | Q32: 1790.84
A33: 33 | B33: 2016-01-01 | C33: 701.1 | D33: 9 | E33: Appel prov 1er trim 2016 | G33: 1450.01 | K33: 70 | Q33: 1790.84
A34: 34 | B34: 2016-01-01 | C34: 450.01 | E34: appel 1er trim AUBERT | F34: 254.17 | K34: 45 | Q34: 1790.84
A35: 35 | B35: 2016-01-01 | C35: 450.02 | E35: appel 1er trim AUDIARD | F35: 188.21 | K35: 45 | Q35: 1790.84
A36: 36 | B36: 2016-01-01 | C36: 450.03 | E36: appel 1er trim BERNARDIN | F36: 131.11 | K36: 45 | Q36: 1790.84
A37: 37 | B37: 2016-01-01 | C37: 450.05 | E37: appel 1er trim HU BERT | F37: 376.64 | K37: 45 | Q37: 1790.84
A38: 38 | B38: 2016-01-01 | C38: 450.06 | E38: appel 1er trim LELIEVRE | F38: 298.09 | K38: 45 | Q38: 1790.84
A39: 39 | B39: 2016-01-01 | C39: 450.07 | E39: appel 1er trim RONDEAU | F39: 201.79 | K39: 45 | Q39: 1790.84
A40: 40 | B40: 2016-01-01 | C40: 702.1 | D40: 19 | E40: 1er appel travaux peinture | G40: 740.05 | K40: 70 | Q40: 1790.84
A41: 41 | B41: 2016-01-01 | C41: 450.01 | E41: 1er appel trav,peint, AUBERT | F41: 86.59 | K41: 45 | Q41: 1790.84
A42: 42 | B42: 2016-01-01 | C42: 450.02 | E42: 1er appel trav,peint, AUDIARD | F42: 111.01 | K42: 45 | Q42: 1790.84
A43: 43 | B43: 2016-01-01 | C43: 450.03 | E43: 1er appel trav;pein, BERNARDIN | F43: 144.31 | K43: 45 | Q43: 1790.84
A44: 44 | B44: 2016-01-01 | C44: 450.05 | E44: 1er appel trav,peint,HUBERT | F44: 152.45 | K44: 45 | Q44: 1790.84
A45: 45 | B45: 2016-01-01 | C45: 450.06 | E45: 1er appel trav,peint, LELIEVRE | F45: 172.43 | K45: 45 | Q45: 1790.84
A46: 46 | B46: 2016-01-01 | C46: 450.07 | E46: 1er appel trav,peint, RONDEAU | F46: 73.26 | K46: 45 | Q46: 1790.84
A47: 47 | B47: 2016-01-02 | C47: 671.1 | D47: 11 | E47: facture travaux peinture | F47: 740.05 | K47: 60 | N47: 20 | O47: 123.34 | Q47: 1790.84
A48: 48 | B48: 2016-01-02 | C48: 401.8 | E48: facture DUBOIS | G48: 740.05 | K48: 40 | Q48: 1790.84
A49: 49 | B49: 2016-01-02 | C49: 401.8 | E49: règlt Fact,DUBOIS | F49: 760.05 | K49: 40 | Q49: 1790.84
A50: 50 | B50: 2016-01-02 | C50: 512 | E50: règlt Fact,DUBOIS | G50: 760.05 | K50: 50 | Q50: 1030.79 | T50: 760.05
A51: 51 | B51: 2016-01-04 | C51: 450.05 | E51: règlement HUBERT | G51: 609.8 | K51: 45 | Q51: 1030.79
A52: 52 | B52: 2016-01-04 | C52: 512 | E52: règlement HUGNET | F52: 609.8 | K52: 50 | Q52: 1640.59 | S52: 609.8
A53: 53 | B53: 2016-01-04 | C53: 450.03 | E53: règlement BERNARDIN | G53: 577.24 | K53: 45 | Q53: 1640.59
A54: 54 | B54: 2016-01-04 | C54: 512 | E54: règlement BENHARROSH | F54: 577.24 | K54: 50 | Q54: 2217.83 | S54: 577.24
A55: 55 | B55: 2016-01-04 | C55: 450.01 | E55: règlement AUBERT | G55: 66.27 | K55: 45 | Q55: 2217.83
A56: 56 | B56: 2016-01-04 | C56: 512 | E56: règlement ORTEGA | F56: 66.27 | K56: 50 | Q56: 2284.1 | S56: 66.27
A57: 57 | B57: 2016-01-04 | C57: 450.02 | E57: règlement AUDIARD | G57: 321 | K57: 45 | Q57: 2284.1
A58: 58 | B58: 2016-01-04 | C58: 512 | E58: règlement AUDRAIN | F58: 321 | K58: 50 | Q58: 2605.1 | S58: 321
A59: 59 | B59: 2016-01-05 | C59: 601.6 | D59: 6 | E59: facture VEOLIA eau 177m3 | F59: 794.55 | K59: 60 | L59: 1 | M59: 794.55 | N59: 20 | O59: 132.37 | P59: 132.37 | Q59: 2605.1
A60: 60 | B60: 2016-01-05 | C60: 401.1 | E60: facture VEOLIA eau 177m3 | G60: 794.55 | K60: 40 | Q60: 2605.1
A61: 61 | B61: 2016-01-15 | C61: 662 | D61: 1 | E61: frais CCP | F61: 13.4 | K61: 60 | Q61: 2605.1
A62: 62 | B62: 2016-01-15 | C62: 401.3 | E62: frais CCP | G62: 13.4 | K62: 40 | Q62: 2605.1
A63: 63 | B63: 2016-01-15 | C63: 401.3 | E63: prélèvement CCP | F63: 13.4 | K63: 40 | Q63: 2605.1
A64: 64 | B64: 2016-01-15 | C64: 512 | E64: prèlèvement CCP | G64: 13.4 | K64: 50 | Q64: 2591.7 | T64: 13.4
A65: 65 | B65: 2016-01-16 | C65: 450.07 | E65: règlement RONDEAU | G65: 335.87 | K65: 45 | Q65: 2591.7
A66: 66 | B66: 2016-01-16 | C66: 512 | E66: règlement RODIER | F66: 335.87 | K66: 50 | Q66: 2927.57 | S66: 335.87
A67: 67 | B67: 2016-01-16 | C67: 621.3 | D67: 1 | E67: achat de timbres | F67: 9.6 | K67: 60 | Q67: 2927.57
A68: 68 | B68: 2016-01-16 | C68: 401.4 | E68: achat de timbres | G68: 9.6 | K68: 40 | Q68: 2927.57
A69: 69 | B69: 2016-01-16 | C69: 401.4 | E69: règlement timbres | F69: 9.6 | K69: 40 | Q69: 2927.57
A70: 70 | B70: 2016-01-16 | C70: 450.02 | E70: règlement timbres | G70: 9.6 | K70: 45 | Q70: 2927.57
A71: 71 | B71: 2016-01-16 | C71: 401.1 | E71: règlement VEOLIA eau 177m3 | F71: 794.55 | K71: 40 | Q71: 2927.57
A72: 72 | B72: 2016-01-16 | C72: 512 | E72: règlement VEOLIA eau 177m3 | G72: 794.55 | K72: 50 | Q72: 2133.02 | T72: 794.55
A73: 73 | B73: 2016-01-16 | C73: 450.05 | E73: règlement HUBERT | G73: 78.4 | K73: 45 | Q73: 2133.02
A74: 74 | B74: 2016-01-16 | C74: 512 | E74: règlement HUGNET | F74: 78.4 | K74: 50 | Q74: 2211.42 | S74: 78.4
A75: 75 | B75: 2016-02-01 | C75: 702.1 | D75: 19 | E75: 2e appel travaux peinture | G75: 740.05 | K75: 70 | Q75: 2211.42
A76: 76 | B76: 2016-02-01 | C76: 450.01 | E76: 2è appel trav,peint,AUBERT | F76: 86.59 | K76: 45 | Q76: 2211.42
A77: 77 | B77: 2016-02-01 | C77: 450.02 | E77: 2è appel trav,peint,AUDIARD | F77: 111.01 | K77: 45 | Q77: 2211.42
A78: 78 | B78: 2016-02-01 | C78: 450.03 | E78: 2è appel trav,peint,BENHARDIN | F78: 144.31 | K78: 45 | Q78: 2211.42
A79: 79 | B79: 2016-02-01 | C79: 450.05 | E79: 2è appel trav;peint, HUBERT | F79: 152.45 | K79: 45 | Q79: 2211.42
A80: 80 | B80: 2016-02-01 | C80: 450.06 | E80: 2è appel trav,peint,LELIEVRE | F80: 172.43 | K80: 45 | Q80: 2211.42
A81: 81 | B81: 2016-02-01 | C81: 450.07 | E81: 2è appel trav,pezint,RONDEAU | F81: 73.26 | K81: 45 | Q81: 2211.42
A82: 82 | B82: 2016-02-01 | C82: 450.02 | E82: règlement AUDIARD | G82: 213.01 | K82: 45 | Q82: 2211.42
A83: 83 | B83: 2016-02-01 | C83: 512 | E83: règlement AUDRAIN | F83: 213.01 | K83: 50 | Q83: 2424.43 | S83: 213.01
A84: 84 | B84: 2016-02-01 | C84: 450.01 | E84: règlement AUBERT | G84: 46.83 | K84: 45 | Q84: 2424.43
A85: 85 | B85: 2016-02-01 | C85: 512 | E85: règlement ORTEGA | F85: 46.83 | K85: 50 | Q85: 2471.26 | S85: 46.83
A86: 86 | B86: 2016-02-01 | C86: 671.1 | D86: 11 | E86: facture travaux peinture | F86: 740.05 | K86: 60 | N86: 20 | O86: 123.34 | Q86: 2471.26
A87: 87 | B87: 2016-02-01 | C87: 401.8 | E87: facture DUBOIS | G87: 740.05 | K87: 40 | Q87: 2471.26
A88: 88 | B88: 2016-02-01 | C88: 401.8 | E88: règlt tact,DUBOIS | F88: 760.05 | K88: 40 | Q88: 2471.26
A89: 89 | B89: 2016-02-01 | C89: 512 | E89: règlt Fact,DUBOIS | G89: 760.05 | K89: 50 | Q89: 1711.21 | T89: 760.05
A90: 90 | B90: 2016-02-01 | C90: 611 | D90: 1 | E90: facture EMN janvier H+C | F90: 81.4 | K90: 60 | L90: 1 | M90: 81.4 | N90: 20 | O90: 13.56 | P90: 13.56 | Q90: 1711.21
A91: 91 | B91: 2016-02-01 | C91: 611 | D91: 5 | E91: facture EMN janvier esc | F91: 96 | K91: 60 | L91: 1 | M91: 96 | N91: 20 | O91: 15.99 | P91: 15.99 | Q91: 1711.21
A92: 92 | B92: 2016-02-01 | C92: 401.6 | E92: facture EMN janvier | G92: 177.4 | K92: 40 | Q92: 1711.21
A93: 93 | B93: 2016-02-05 | C93: 401.6 | E93: règlement EMN janvier | F93: 177.4 | K93: 40 | Q93: 1711.21
A94: 94 | B94: 2016-02-05 | C94: 512 | E94: règlement EMN janvier | G94: 177.4 | K94: 50 | Q94: 1533.81 | T94: 177.4
A95: 95 | B95: 2016-02-08 | C95: 621.4 | D95: 1 | E95: facture fournitures compta | F95: 77.98 | K95: 60 | L95: 1 | M95: 77.98 | N95: 20 | O95: 12.99 | P95: 12.99 | Q95: 1533.81
A96: 96 | B96: 2016-02-08 | C96: 401.7 | E96: facture fournitures compta | G96: 77.98 | K96: 40 | Q96: 1533.81
A97: 97 | B97: 2016-02-08 | C97: 401.7 | E97: règlt fournitures compta | F97: 77.98 | K97: 40 | Q97: 1533.81
A98: 98 | B98: 2016-02-08 | C98: 450.02 | E98: règlt fournitures compta | G98: 77.98 | K98: 45 | Q98: 1533.81
A99: 99 | B99: 2016-02-08 | C99: 616.1 | D99: 1 | E99: facture assurance immeuble | F99: 278.56 | K99: 60 | Q99: 1533.81
A100: 100 | B100: 2016-02-08 | C100: 401.501 | E100: facture assurance immeuble | G100: 278.56 | K100: 40 | Q100: 1533.81
A101: 101 | B101: 2016-02-08 | C101: 401.501 | E101: règlt assurance immeuble | F101: 278.56 | K101: 40 | Q101: 1533.81
A102: 102 | B102: 2016-02-08 | C102: 512 | E102: règlt assurance immeuble | G102: 278.56 | K102: 50 | Q102: 1255.25 | T102: 278.56
A103: 103 | B103: 2016-02-09 | C103: 450.06 | E103: règlement | G103: 715.97 | K103: 45 | Q103: 1255.25
A104: 104 | B104: 2016-02-09 | C104: 512 | E104: règlement | F104: 715.97 | K104: 50 | Q104: 1971.22 | S104: 715.97
A105: 105 | B105: 2016-02-24 | C105: 450.01 | E105: règlement AUBERT | G105: 86.59 | K105: 45 | Q105: 1971.22
A106: 106 | B106: 2016-02-24 | C106: 512 | E106: règlement ORTEGA | F106: 86.59 | K106: 50 | Q106: 2057.81 | S106: 86.59
A107: 107 | B107: 2016-02-24 | C107: 103.1 | E107: SECLIN | F107: 117 | K107: 10 | Q107: 2057.81
A108: 108 | B108: 2016-02-24 | C108: 103.1 | E108: AUBERT | G108: 117 | K108: 10 | Q108: 2057.81
A109: 109 | B109: 2016-02-24 | C109: 103.2 | E109: SECLIN | F109: 93.87 | K109: 10 | Q109: 2057.81
A110: 110 | B110: 2016-02-24 | C110: 103.2 | E110: AUBERT | G110: 93.87 | K110: 10 | Q110: 2057.81
A111: 111 | B111: 2016-03-01 | C111: 702.1 | D111: 19 | E111: 3e appel travaux peinture | G111: 740.05 | K111: 70 | Q111: 2057.81
A112: 112 | B112: 2016-03-01 | C112: 450.01 | E112: 3è appel trav,peint,AUBERT | F112: 86.59 | K112: 45 | Q112: 2057.81
A113: 113 | B113: 2016-03-01 | C113: 450.02 | E113: 3è appel trav,peint,AUDIARD | F113: 111.01 | K113: 45 | Q113: 2057.81
A114: 114 | B114: 2016-03-01 | C114: 450.03 | E114: 3è appel trav,peint,BENHARDIN | F114: 144.31 | K114: 45 | Q114: 2057.81
A115: 115 | B115: 2016-03-01 | C115: 450.05 | E115: 3è appel trav,peint,HUBERT | F115: 152.45 | K115: 45 | Q115: 2057.81
A116: 116 | B116: 2016-03-01 | C116: 450.06 | E116: 3è appel trav,peint,LELIEVRE | F116: 172.43 | K116: 45 | Q116: 2057.81
A117: 117 | B117: 2016-03-01 | C117: 450.07 | E117: 3è appel trav,peint,RONDEAU | F117: 73.26 | K117: 45 | Q117: 2057.81
A118: 118 | B118: 2016-03-01 | C118: 671.1 | D118: 11 | E118: facture travaux peinture | F118: 740.05 | K118: 60 | N118: 20 | O118: 123.34 | Q118: 2057.81
A119: 119 | B119: 2016-03-01 | C119: 401.8 | E119: facture DUBOIS | G119: 740.05 | K119: 40 | Q119: 2057.81
A120: 120 | B120: 2016-03-01 | C120: 401.8 | E120: règlt fact,DUBOIS | F120: 720.05 | K120: 40 | Q120: 2057.81
A121: 121 | B121: 2016-03-01 | C121: 512 | E121: règlt taxe ass 3ème verst | G121: 720.05 | K121: 50 | Q121: 1337.76 | T121: 720.05
A122: 122 | B122: 2016-03-01 | C122: 450.05 | E122: règlement HUBERT | G122: 146.9 | K122: 45 | Q122: 1337.76
A123: 123 | B123: 2016-03-01 | C123: 512 | E123: règlement HUGNET | F123: 146.9 | K123: 50 | Q123: 1484.66 | S123: 146.9
A124: 124 | B124: 2016-03-01 | C124: 450.05 | E124: règlement HUBERT | G124: 550 | K124: 45 | Q124: 1484.66
A125: 125 | B125: 2016-03-01 | C125: 512 | E125: règlement HUGNET | F125: 550 | K125: 50 | Q125: 2034.66 | S125: 550
A126: 126 | B126: 2016-03-01 | C126: 450.03 | E126: règlement BERNARDIN | G126: 66.93 | K126: 45 | Q126: 2034.66
A127: 127 | B127: 2016-03-01 | C127: 512 | E127: règlement BENHARROSH | F127: 66.93 | K127: 50 | Q127: 2101.59 | S127: 66.93
A128: 128 | B128: 2016-03-09 | C128: 621.4 | D128: 1 | E128: facture fournitures compta | F128: 5.08 | K128: 60 | L128: 1 | M128: 5.08 | N128: 20 | Q128: 2101.59
A129: 129 | B129: 2016-03-09 | C129: 401.7 | E129: facture fournitures compta | G129: 5.08 | K129: 40 | Q129: 2101.59
A130: 130 | B130: 2016-03-09 | C130: 401.7 | E130: règlt fournitures compta | F130: 5.08 | K130: 40 | Q130: 2101.59
A131: 131 | B131: 2016-03-09 | C131: 450.02 | E131: règlt fournitures compta | G131: 5.08 | K131: 45 | Q131: 2101.59
A132: 132 | B132: 2016-03-09 | C132: 616.2 | D132: 1 | E132: facture assurance ARC | F132: 143 | K132: 60 | Q132: 2101.59
A133: 133 | B133: 2016-03-09 | C133: 401.502 | E133: facture assurance ARC | G133: 143 | K133: 40 | Q133: 2101.59
A134: 134 | B134: 2016-03-09 | C134: 401.502 | E134: règlement ARC | F134: 143 | K134: 40 | Q134: 2101.59
A135: 135 | B135: 2016-03-09 | C135: 512 | E135: règlement ARC | G135: 143 | K135: 50 | Q135: 1958.59 | T135: 143
A136: 136 | B136: 2016-03-18 | C136: 450.06 | E136: règlement LELIEVRE | G136: 172.43 | K136: 45 | Q136: 1958.59
A137: 137 | B137: 2016-03-18 | C137: 512 | E137: règlement LEFEBURE | F137: 172.43 | K137: 50 | Q137: 2131.02 | S137: 172.43
A138: 138 | B138: 2016-03-29 | C138: 602 | D138: 1 | E138: facture EDF | F138: 78.25 | K138: 60 | L138: 1 | M138: 78.25 | N138: 20 | O138: 13.04 | P138: 13.04 | Q138: 2131.02
A139: 139 | B139: 2016-03-29 | C139: 401.2 | E139: facture EDF | G139: 78.25 | K139: 40 | Q139: 2131.02
A140: 140 | B140: 2016-03-29 | C140: 401.2 | E140: règlement EDF | F140: 78.25 | K140: 40 | Q140: 2131.02
A141: 141 | B141: 2016-03-29 | C141: 512 | E141: règlement EDF | G141: 78.25 | K141: 50 | Q141: 2052.77 | T141: 78.25
A142: 142 | B142: 2016-03-31 | C142: 621.4 | D142: 1 | E142: facture carnet entretien imm | F142: 5 | K142: 60 | L142: 1 | M142: 5 | Q142: 2052.77
A143: 143 | B143: 2016-03-31 | C143: 401.7 | E143: facture carnet entretien imm | G143: 5 | K143: 40 | Q143: 2052.77
A144: 144 | B144: 2016-03-31 | C144: 401.7 | E144: règlt carnet entretien imm | F144: 5 | K144: 40 | Q144: 2052.77
A145: 145 | B145: 2016-03-31 | C145: 512 | E145: règlt carnet entretien imm | G145: 5 | K145: 50 | Q145: 2047.77 | T145: 5
A146: 146 | B146: 2016-04-01 | C146: 702.1 | D146: 19 | E146: 4e appel travaux peinture | G146: 740.05 | K146: 70 | Q146: 2047.77
A147: 147 | B147: 2016-04-01 | C147: 450.01 | E147: 4è appel trav,peint,AUBERT | F147: 86.59 | K147: 45 | Q147: 2047.77
A148: 148 | B148: 2016-04-01 | C148: 450.02 | E148: 4è appel trav,peint,AUDIARD | F148: 111.01 | K148: 45 | Q148: 2047.77
A149: 149 | B149: 2016-04-01 | C149: 450.03 | E149: 4è appel trav,peint,BERNARDIN | F149: 144.31 | K149: 45 | Q149: 2047.77
A150: 150 | B150: 2016-04-01 | C150: 450.05 | E150: 4è appel trav:peint,HUBERT | F150: 152.45 | K150: 45 | Q150: 2047.77
A151: 151 | B151: 2016-04-01 | C151: 450.06 | E151: 4è appel trav,peint,LELIEVRE | F151: 172.43 | K151: 45 | Q151: 2047.77
A152: 152 | B152: 2016-04-01 | C152: 450.07 | E152: 4è appel trav,peint,RONDEAU | F152: 73.26 | K152: 45 | Q152: 2047.77
A153: 153 | B153: 2016-04-01 | C153: 701.1 | D153: 9 | E153: Appel prov 2ème trim 2016 | G153: 1450 | K153: 70 | Q153: 2047.77
A154: 154 | B154: 2016-04-01 | C154: 450.01 | E154: appel prov 2è trim AUBERT | F154: 218.89 | K154: 45 | Q154: 2047.77
A155: 155 | B155: 2016-04-01 | C155: 450.02 | E155: appel prov 2è trim AUDIARD | F155: 183.15 | K155: 45 | Q155: 2047.77
A156: 156 | B156: 2016-04-01 | C156: 450.03 | E156: appel prov 2è trim BERNARDIN | F156: 131.11 | K156: 45 | Q156: 2047.77
A157: 157 | B157: 2016-04-01 | C157: 450.05 | E157: appel prov 2è trim HUBERT | F157: 423.01 | K157: 45 | Q157: 2047.77
A158: 158 | B158: 2016-04-01 | C158: 450.06 | E158: appel prov 2è trim LELIEVRE | F158: 291.69 | K158: 45 | Q158: 2047.77
A159: 159 | B159: 2016-04-01 | C159: 450.07 | E159: appel prov 2è trim RONDEAU | F159: 202.15 | K159: 45 | Q159: 2047.77
A160: 160 | B160: 2016-04-01 | C160: 671.1 | D160: 11 | E160: facture travaux peinture | F160: 740.05 | K160: 60 | N160: 20 | O160: 123.34 | Q160: 2047.77
A161: 161 | B161: 2016-04-01 | C161: 401.8 | E161: facture DUBOIS | G161: 740.05 | K161: 40 | Q161: 2047.77
A162: 162 | B162: 2016-04-01 | C162: 401.8 | E162: règlt fact,DUBOIS | F162: 720.05 | K162: 40 | Q162: 2047.77
A163: 163 | B163: 2016-04-01 | C163: 512 | E163: règlt fact,DUBOIS | G163: 720.05 | K163: 50 | Q163: 1327.72 | T163: 720.05
A164: 164 | B164: 2016-04-01 | C164: 450.02 | E164: règlement AUDIARD | G164: 323 | K164: 45 | Q164: 1327.72
A165: 165 | B165: 2016-04-01 | C165: 512 | E165: règlement AUDRAIN | F165: 323 | K165: 50 | Q165: 1650.72 | S165: 323
A166: 166 | B166: 2016-04-01 | C166: 450.01 | E166: règlement AUBERT | G166: 86.59 | K166: 45 | Q166: 1650.72
A167: 167 | B167: 2016-04-01 | C167: 512 | E167: règlement ORTEGA | F167: 86.59 | K167: 50 | Q167: 1737.31 | S167: 86.59
A168: 168 | B168: 2016-04-01 | C168: 450.01 | E168: règlement AUBERT | G168: 218.89 | K168: 45 | Q168: 1737.31
A169: 169 | B169: 2016-04-01 | C169: 512 | E169: règlement SECLIN | F169: 218.89 | K169: 50 | Q169: 1956.2 | S169: 218.89
A170: 170 | B170: 2016-04-01 | C170: 450.03 | E170: règlement BERNARDIN | G170: 275.42 | K170: 45 | Q170: 1956.2
A171: 171 | B171: 2016-04-01 | C171: 512 | E171: règlement BENHARROSH | F171: 275.42 | K171: 50 | Q171: 2231.62 | S171: 275.42
A172: 172 | B172: 2016-04-01 | C172: 621.3 | D172: 1 | E172: achat de timbres | F172: 8 | K172: 60 | Q172: 2231.62
A173: 173 | B173: 2016-04-01 | C173: 401.4 | E173: achat de timbres | G173: 8 | K173: 40 | Q173: 2231.62
A174: 174 | B174: 2016-04-01 | C174: 401.4 | E174: règlement timbres | F174: 8 | K174: 40 | Q174: 2231.62
A175: 175 | B175: 2016-04-01 | C175: 450.02 | E175: règlement timbres | G175: 8 | K175: 45 | Q175: 2231.62
A176: 176 | B176: 2016-04-05 | C176: 611 | D176: 1 | E176: facture EMN fevrier H+C | F176: 81.4 | K176: 60 | L176: 1 | M176: 81.4 | N176: 20 | O176: 13.56 | P176: 13.56 | Q176: 2231.62
A177: 177 | B177: 2016-04-05 | C177: 611 | D177: 5 | E177: facture EMN fevrier esc | F177: 96 | K177: 60 | L177: 1 | M177: 96 | N177: 20 | O177: 15.99 | P177: 15.99 | Q177: 2231.62
A178: 178 | B178: 2016-04-05 | C178: 401.6 | E178: facture EMN fevrier | G178: 177.4 | K178: 40 | Q178: 2231.62
A179: 179 | B179: 2016-04-05 | C179: 611 | D179: 1 | E179: facture EMN mars H+C | F179: 81.4 | K179: 60 | L179: 1 | M179: 81.4 | N179: 20 | O179: 13.56 | P179: 13.56 | Q179: 2231.62
A180: 180 | B180: 2016-04-05 | C180: 611 | D180: 5 | E180: facture EMN mars esc | F180: 96 | K180: 60 | L180: 1 | M180: 96 | N180: 20 | O180: 15.99 | P180: 15.99 | Q180: 2231.62
A181: 181 | B181: 2016-04-05 | C181: 401.6 | E181: facture EMN mars | G181: 177.4 | K181: 40 | Q181: 2231.62
A182: 182 | B182: 2016-04-08 | C182: 601.6 | D182: 6 | E182: facture VEOLIA eau 148m3 | F182: 644.98 | K182: 60 | L182: 1 | M182: 644.98 | N182: 20 | O182: 107.44 | P182: 107.44 | Q182: 2231.62
A183: 183 | B183: 2016-04-08 | C183: 401.1 | E183: facture VEOLIA eau 148m3 | G183: 644.98 | K183: 40 | Q183: 2231.62
A184: 184 | B184: 2016-04-08 | C184: 401.1 | E184: règlement VEOLIA eau 148m3 | F184: 644.98 | K184: 40 | Q184: 2231.62
A185: 185 | B185: 2016-04-08 | C185: 512 | E185: règlement VEOLIA eau 148m3 | G185: 644.98 | K185: 50 | Q185: 1586.64 | T185: 644.98
A186: 186 | B186: 2016-04-12 | C186: 450.06 | E186: règlement LELIEVRE | G186: 464.12 | K186: 45 | Q186: 1586.64
A187: 187 | B187: 2016-04-12 | C187: 512 | E187: règlement LEFEBURE | F187: 464.12 | K187: 50 | Q187: 2050.76 | S187: 464.12
A188: 188 | B188: 2016-04-14 | C188: 662 | D188: 1 | E188: frais CCP | F188: 16.5 | K188: 60 | Q188: 2050.76
A189: 189 | B189: 2016-04-14 | C189: 401.3 | E189: frais CCP | G189: 16.5 | K189: 40 | Q189: 2050.76
A190: 190 | B190: 2016-04-14 | C190: 401.3 | E190: prélèvement CCP | F190: 16.5 | K190: 40 | Q190: 2050.76
A191: 191 | B191: 2016-04-14 | C191: 512 | E191: prélèvement CCP | G191: 16.5 | K191: 50 | Q191: 2034.26 | T191: 16.5
A192: 192 | B192: 2016-04-15 | C192: 621.3 | D192: 1 | E192: envoi courrier assurance | F192: 2.58 | K192: 60 | Q192: 2034.26
A193: 193 | B193: 2016-04-15 | C193: 401.4 | E193: envoi courrier assurance | G193: 2.58 | K193: 40 | Q193: 2034.26
A194: 194 | B194: 2016-04-15 | C194: 401.4 | E194: règlt envoi courrier assurance | F194: 2.58 | K194: 40 | Q194: 2034.26
A195: 195 | B195: 2016-04-15 | C195: 450.02 | E195: règlt envoi courrier assurance | G195: 2.58 | K195: 45 | Q195: 2034.26
A196: 196 | B196: 2016-04-16 | C196: 616.1 | D196: 1 | E196: facture assurance immeuble | F196: 595.94 | K196: 60 | Q196: 2034.26
A197: 197 | B197: 2016-04-16 | C197: 401.501 | E197: facture assurance immeuble | G197: 595.94 | K197: 40 | Q197: 2034.26
A198: 198 | B198: 2016-04-16 | C198: 401.501 | E198: règlt assurance immeuble | F198: 595.94 | K198: 40 | Q198: 2034.26
A199: 199 | B199: 2016-04-16 | C199: 512 | E199: règlt assurance immeuble | G199: 595.94 | K199: 50 | Q199: 1438.32 | T199: 595.94
A200: 200 | B200: 2016-04-18 | C200: 450.05 | E200: règlement HUBERT | G200: 575.46 | K200: 45 | Q200: 1438.32
A201: 201 | B201: 2016-04-18 | C201: 512 | E201: règlement HUGNET | F201: 575.46 | K201: 50 | Q201: 2013.78 | S201: 575.46
... 4189 more rows

Sheet Grand-Livre
A1: =IF($D1<>"",VLOOKUP($D1,PLANS!$B$2:$C$10,2,FALSE),"") ->  | E1: =VLOOKUP(H1,PLANS!$D$1:$E$9,2,FALSE) -> GRAND LIVRE | F1: =IF($H$1=3,SUM(F5:F1014),"") ->  | G1: =IF($H$1=3,SUM(G5:G1014),"") ->  | H1: 4 | I1: Situation au | J1: 2016-06-22 | M1: =IF($D$1=3,SUM(M5:M1014),"") ->  | O1: =IF($D$1=3,SUM(O5:O1014),"") ->  | W1: Clé | AC1: Compte | AD1: Compte
C2: =IF($D2<>"",VLOOKUP($D2,[1]PLANS!$B$2:$C$10,2,FALSE),"") ->  | D2: =IF(AND($D1<>"",$A2=0),VLOOKUP($D1,[1]PLANS!$A$2:$C$10,2,FALSE),"") ->  | E2: =IF(AND(C1<>"",A2=0),VLOOKUP(C1,[1]PLANS!$A$20:$C$99,3,FALSE),"") ->  | I2: =IF(F2>G2,(F2-G2)*(A2=0),"") ->  | J2: =IF(G2>F2,(G2-F2)*(A2=0),"") ->  | L2: =IF(AND(K2>"",A2=""),VLOOKUP(K2,PLANS!$N$2:$O$11,2),"") ->  | M2: =IF($H$1=3,SUM(M6:M1014),"") ->  | O2: =IF($H$1=3,SUM(O6:O1014),"") ->  | W2: =PLANS!H16 -> >=11 | AC2: >=450 | AD2: <460
A4: N° | B4: Date | C4: Compte | D4: Clé | E4: Libellé | F4: …....Débit……. | G4: …...Crédit…… | H4: X | I4: Solde Débiteur | J4: Solde Créditeur | K4: Classe
A5: 16 | B5: 2016-01-01 | C5: 103.1 | E5: A nouveau avance trésorerie | I5: =IF(F5>G5,(F5-G5)*(A5=0),"") ->  | J5: =IF(G5>F5,(G5-F5)*(A5=0),"") ->  | K5: 10 | L5: =IF(AND(K5>"",A5=""),VLOOKUP(K5,PLANS!$N$2:$O$11,2),"") -> 
A6: 17 | B6: 2016-01-01 | C6: 103.1 | E6: SECLIN | G6: 117 | I6: =IF(F6>G6,(F6-G6)*(A6=0),"") ->  | J6: =IF(G6>F6,(G6-F6)*(A6=0),"") -> 0 | K6: 10 | L6: =IF(AND(K6>"",A6=""),VLOOKUP(K6,PLANS!$N$2:$O$11,2),"") -> 
A7: 18 | B7: 2016-01-01 | C7: 103.1 | E7: AUDIARD | G7: 150 | J7: 0 | K7: 10 | L7: =IF(AND(K7>"",A7=""),VLOOKUP(K7,PLANS!$N$2:$O$11,2),"") -> 
A8: 19 | B8: 2016-01-01 | C8: 103.1 | E8: BERNARDIN | G8: 195 | J8: 0 | K8: 10 | L8: =IF(AND(K8>"",A8=""),VLOOKUP(K8,PLANS!$N$2:$O$11,2),"") -> 
A9: 20 | B9: 2016-01-01 | C9: 103.1 | E9: HU BERT | G9: 206 | J9: 0 | K9: 10 | L9: =IF(AND(K9>"",A9=""),VLOOKUP(K9,PLANS!$N$2:$O$11,2),"") -> 
A10: 21 | B10: 2016-01-01 | C10: 103.1 | E10: LELIEVRE | G10: 233 | J10: 0 | K10: 10 | L10: =IF(AND(K10>"",A10=""),VLOOKUP(K10,PLANS!$N$2:$O$11,2),"") -> 
A11: 22 | B11: 2016-01-01 | C11: 103.1 | E11: RONDEAU | G11: 99 | J11: 0 | K11: 10 | L11: =IF(AND(K11>"",A11=""),VLOOKUP(K11,PLANS!$N$2:$O$11,2),"") -> 
A12: 107 | B12: 2016-02-24 | C12: 103.1 | E12: SECLIN | F12: 117 | I12: 0 | K12: 10 | L12: =IF(AND(K12>"",A12=""),VLOOKUP(K12,PLANS!$N$2:$O$11,2),"") -> 
A13: 108 | B13: 2016-02-24 | C13: 103.1 | E13: AUBERT | G13: 117 | J13: 0 | K13: 10 | L13: =IF(AND(K13>"",A13=""),VLOOKUP(K13,PLANS!$N$2:$O$11,2),"") -> 
C14: Total 103.1 | E14: =IF(AND(C13<>"",A14=0),VLOOKUP(C13,[1]PLANS!$A$20:$C$99,3,FALSE),"") -> Avances de Trésorerie | F14: =SUBTOTAL(9,F5:F13) -> 117 | G14: =SUBTOTAL(9,G5:G13) -> 1117 | J14: 1000 | L14: =IF(AND(K14>"",A14=""),VLOOKUP(K14,PLANS!$N$2:$O$11,2),"") -> 
A15: 23 | B15: 2016-01-01 | C15: 103.2 | E15: A nouveau avance travaux | K15: 10 | L15: =IF(AND(K15>"",A15=""),VLOOKUP(K15,PLANS!$N$2:$O$11,2),"") -> 
A16: 24 | B16: 2016-01-01 | C16: 103.2 | E16: SECLIN | G16: 93.87 | J16: 0 | K16: 10 | L16: =IF(AND(K16>"",A16=""),VLOOKUP(K16,PLANS!$N$2:$O$11,2),"") -> 
A17: 25 | B17: 2016-01-01 | C17: 103.2 | E17: AUDOARD | G17: 120.36 | J17: 0 | K17: 10 | L17: =IF(AND(K17>"",A17=""),VLOOKUP(K17,PLANS!$N$2:$O$11,2),"") -> 
A18: 26 | B18: 2016-01-01 | C18: 103.2 | E18: BERNARDIN | G18: 154.05 | J18: 0 | K18: 10 | L18: =IF(AND(K18>"",A18=""),VLOOKUP(K18,PLANS!$N$2:$O$11,2),"") -> 
A19: 27 | B19: 2016-01-01 | C19: 103.2 | E19: HUBERT | G19: 165.32 | J19: 0 | K19: 10 | L19: =IF(AND(K19>"",A19=""),VLOOKUP(K19,PLANS!$N$2:$O$11,2),"") -> 
A20: 28 | B20: 2016-01-01 | C20: 103.2 | E20: LELIEVRFE | G20: 186.96 | J20: 0 | K20: 10 | L20: =IF(AND(K20>"",A20=""),VLOOKUP(K20,PLANS!$N$2:$O$11,2),"") -> 
A21: 29 | B21: 2016-01-01 | C21: 103.2 | E21: RONDEAU | G21: 79.45 | J21: 0 | K21: 10 | L21: =IF(AND(K21>"",A21=""),VLOOKUP(K21,PLANS!$N$2:$O$11,2),"") -> 
A22: 109 | B22: 2016-02-24 | C22: 103.2 | E22: SECLIN | F22: 93.87 | I22: 0 | K22: 10 | L22: =IF(AND(K22>"",A22=""),VLOOKUP(K22,PLANS!$N$2:$O$11,2),"") -> 
A23: 110 | B23: 2016-02-24 | C23: 103.2 | E23: AUBERT | G23: 93.87 | J23: 0 | K23: 10 | L23: =IF(AND(K23>"",A23=""),VLOOKUP(K23,PLANS!$N$2:$O$11,2),"") -> 
A24: 202 | B24: 2016-05-01 | C24: 103.2 | E24: avance travaux mai | G24: 400 | J24: 0 | K24: 10 | L24: =IF(AND(K24>"",A24=""),VLOOKUP(K24,PLANS!$N$2:$O$11,2),"") -> 
C25: Total 103.2 | E25: =IF(AND(C24<>"",A25=0),VLOOKUP(C24,[1]PLANS!$A$20:$C$99,3,FALSE),"") -> Avances travaux | F25: =SUBTOTAL(9,F15:F24) -> 93.87 | G25: =SUBTOTAL(9,G15:G24) -> 1293.88 | J25: 1200.01 | L25: =IF(AND(K25>"",A25=""),VLOOKUP(K25,PLANS!$N$2:$O$11,2),"") -> 
F26: =SUBTOTAL(9,F5:F24) -> 210.87 | G26: =SUBTOTAL(9,G5:G24) -> 2410.88 | J26: 2200.01 | K26: Total 10 | L26: =IF(AND(K26>"",A26=""),VLOOKUP(K26,PLANS!$N$2:$O$11,2),"") -> PROVISIONS-SUBV,
A27: 60 | B27: 2016-01-05 | C27: 401.1 | E27: facture VEOLIA eau 177m3 | G27: 794.55 | J27: 0 | K27: 40 | L27: =IF(AND(K27>"",A27=""),VLOOKUP(K27,PLANS!$N$2:$O$11,2),"") -> 
A28: 71 | B28: 2016-01-16 | C28: 401.1 | E28: règlement VEOLIA eau 177m3 | F28: 794.55 | I28: 0 | K28: 40 | L28: =IF(AND(K28>"",A28=""),VLOOKUP(K28,PLANS!$N$2:$O$11,2),"") -> 
A29: 183 | B29: 2016-04-08 | C29: 401.1 | E29: facture VEOLIA eau 148m3 | G29: 644.98 | J29: 0 | K29: 40 | L29: =IF(AND(K29>"",A29=""),VLOOKUP(K29,PLANS!$N$2:$O$11,2),"") -> 
A30: 184 | B30: 2016-04-08 | C30: 401.1 | E30: règlement VEOLIA eau 148m3 | F30: 644.98 | I30: 0 | K30: 40 | L30: =IF(AND(K30>"",A30=""),VLOOKUP(K30,PLANS!$N$2:$O$11,2),"") -> 
C31: Total 401.1 | E31: =IF(AND(C30<>"",A31=0),VLOOKUP(C30,[1]PLANS!$A$20:$C$99,3,FALSE),"") -> C.G.E | F31: =SUBTOTAL(9,F27:F30) -> 1439.53 | G31: =SUBTOTAL(9,G27:G30) -> 1439.53 | L31: =IF(AND(K31>"",A31=""),VLOOKUP(K31,PLANS!$N$2:$O$11,2),"") -> 
A32: 139 | B32: 2016-03-29 | C32: 401.2 | E32: facture EDF | G32: 78.25 | J32: 0 | K32: 40 | L32: =IF(AND(K32>"",A32=""),VLOOKUP(K32,PLANS!$N$2:$O$11,2),"") -> 
A33: 140 | B33: 2016-03-29 | C33: 401.2 | E33: règlement EDF | F33: 78.25 | I33: 0 | K33: 40 | L33: =IF(AND(K33>"",A33=""),VLOOKUP(K33,PLANS!$N$2:$O$11,2),"") -> 
C34: Total 401.2 | E34: =IF(AND(C33<>"",A34=0),VLOOKUP(C33,[1]PLANS!$A$20:$C$99,3,FALSE),"") -> E.D.F | F34: =SUBTOTAL(9,F32:F33) -> 78.25 | G34: =SUBTOTAL(9,G32:G33) -> 78.25 | L34: =IF(AND(K34>"",A34=""),VLOOKUP(K34,PLANS!$N$2:$O$11,2),"") -> 
A35: 62 | B35: 2016-01-15 | C35: 401.3 | E35: frais CCP | G35: 13.4 | J35: 0 | K35: 40 | L35: =IF(AND(K35>"",A35=""),VLOOKUP(K35,PLANS!$N$2:$O$11,2),"") -> 
A36: 63 | B36: 2016-01-15 | C36: 401.3 | E36: prélèvement CCP | F36: 13.4 | I36: 0 | K36: 40 | L36: =IF(AND(K36>"",A36=""),VLOOKUP(K36,PLANS!$N$2:$O$11,2),"") -> 
A37: 189 | B37: 2016-04-14 | C37: 401.3 | E37: frais CCP | G37: 16.5 | J37: 0 | K37: 40 | L37: =IF(AND(K37>"",A37=""),VLOOKUP(K37,PLANS!$N$2:$O$11,2),"") -> 
A38: 190 | B38: 2016-04-14 | C38: 401.3 | E38: prélèvement CCP | F38: 16.5 | I38: 0 | K38: 40 | L38: =IF(AND(K38>"",A38=""),VLOOKUP(K38,PLANS!$N$2:$O$11,2),"") -> 
C39: Total 401.3 | E39: =IF(AND(C38<>"",A39=0),VLOOKUP(C38,[1]PLANS!$A$20:$C$99,3,FALSE),"") -> C.C.P. | F39: =SUBTOTAL(9,F35:F38) -> 29.9 | G39: =SUBTOTAL(9,G35:G38) -> 29.9 | L39: =IF(AND(K39>"",A39=""),VLOOKUP(K39,PLANS!$N$2:$O$11,2),"") -> 
A40: 68 | B40: 2016-01-16 | C40: 401.4 | E40: achat de timbres | G40: 9.6 | J40: 0 | K40: 40 | L40: =IF(AND(K40>"",A40=""),VLOOKUP(K40,PLANS!$N$2:$O$11,2),"") -> 
A41: 69 | B41: 2016-01-16 | C41: 401.4 | E41: règlement timbres | F41: 9.6 | I41: 0 | K41: 40 | L41: =IF(AND(K41>"",A41=""),VLOOKUP(K41,PLANS!$N$2:$O$11,2),"") -> 
A42: 173 | B42: 2016-04-01 | C42: 401.4 | E42: achat de timbres | G42: 8 | J42: 0 | K42: 40 | L42: =IF(AND(K42>"",A42=""),VLOOKUP(K42,PLANS!$N$2:$O$11,2),"") -> 
A43: 174 | B43: 2016-04-01 | C43: 401.4 | E43: règlement timbres | F43: 8 | I43: 0 | K43: 40 | L43: =IF(AND(K43>"",A43=""),VLOOKUP(K43,PLANS!$N$2:$O$11,2),"") -> 
A44: 193 | B44: 2016-04-15 | C44: 401.4 | E44: envoi courrier assurance | G44: 2.58 | J44: 0 | K44: 40 | L44: =IF(AND(K44>"",A44=""),VLOOKUP(K44,PLANS!$N$2:$O$11,2),"") -> 
A45: 194 | B45: 2016-04-15 | C45: 401.4 | E45: règlt envoi courrier assurance | F45: 2.58 | I45: 0 | K45: 40 | L45: =IF(AND(K45>"",A45=""),VLOOKUP(K45,PLANS!$N$2:$O$11,2),"") -> 
A46: 212 | B46: 2016-05-06 | C46: 401.4 | E46: envois LR convocs AG | G46: 33.04 | J46: 0 | K46: 40 | L46: =IF(AND(K46>"",A46=""),VLOOKUP(K46,PLANS!$N$2:$O$11,2),"") -> 
A47: 213 | B47: 2015-05-06 | C47: 401.4 | E47: règlt envois LR convocs AG | F47: 33.04 | I47: 0 | K47: 40 | L47: =IF(AND(K47>"",A47=""),VLOOKUP(K47,PLANS!$N$2:$O$11,2),"") -> 
A48: 221 | B48: 2016-05-11 | C48: 401.4 | E48: envoi LR rappel de charges | G48: 5.42 | J48: 0 | K48: 40 | L48: =IF(AND(K48>"",A48=""),VLOOKUP(K48,PLANS!$N$2:$O$11,2),"") -> 
A49: 222 | B49: 2016-05-11 | C49: 401.4 | E49: règlt envoi LR rappel charges | F49: 5.42 | I49: 0 | K49: 40 | L49: =IF(AND(K49>"",A49=""),VLOOKUP(K49,PLANS!$N$2:$O$11,2),"") -> 
C50: Total 401.4 | E50: =IF(AND(C49<>"",A50=0),VLOOKUP(C49,[1]PLANS!$A$20:$C$99,3,FALSE),"") -> Frais Postaux | F50: =SUBTOTAL(9,F40:F49) -> 58.64 | G50: =SUBTOTAL(9,G40:G49) -> 58.64 | L50: =IF(AND(K50>"",A50=""),VLOOKUP(K50,PLANS!$N$2:$O$11,2),"") -> 
A51: 100 | B51: 2016-02-08 | C51: 401.501 | E51: facture assurance immeuble | G51: 278.56 | J51: 0 | K51: 40 | L51: =IF(AND(K51>"",A51=""),VLOOKUP(K51,PLANS!$N$2:$O$11,2),"") -> 
A52: 101 | B52: 2016-02-08 | C52: 401.501 | E52: règlt assurance immeuble | F52: 278.56 | I52: 0 | K52: 40 | L52: =IF(AND(K52>"",A52=""),VLOOKUP(K52,PLANS!$N$2:$O$11,2),"") -> 
A53: 197 | B53: 2016-04-16 | C53: 401.501 | E53: facture assurance immeuble | G53: 595.94 | J53: 0 | K53: 40 | L53: =IF(AND(K53>"",A53=""),VLOOKUP(K53,PLANS!$N$2:$O$11,2),"") -> 
A54: 198 | B54: 2016-04-16 | C54: 401.501 | E54: règlt assurance immeuble | F54: 595.94 | I54: 0 | K54: 40 | L54: =IF(AND(K54>"",A54=""),VLOOKUP(K54,PLANS!$N$2:$O$11,2),"") -> 
A55: 225 | B55: 2016-05-11 | C55: 401.501 | E55: remb trop perçu ass imm | F55: 229.26 | I55: 0 | K55: 40 | L55: =IF(AND(K55>"",A55=""),VLOOKUP(K55,PLANS!$N$2:$O$11,2),"") -> 
A56: 226 | B56: 2016-05-11 | C56: 401.501 | E56: trop perçu ass imm | G56: 229.26 | J56: 0 | K56: 40 | L56: =IF(AND(K56>"",A56=""),VLOOKUP(K56,PLANS!$N$2:$O$11,2),"") -> 
C57: Total 401.501 | E57: =IF(AND(C56<>"",A57=0),VLOOKUP(C56,[1]PLANS!$A$20:$C$99,3,FALSE),"") -> Ass.Dumontier | F57: =SUBTOTAL(9,F51:F56) -> 1103.76 | G57: =SUBTOTAL(9,G51:G56) -> 1103.76 | L57: =IF(AND(K57>"",A57=""),VLOOKUP(K57,PLANS!$N$2:$O$11,2),"") -> 
A58: 133 | B58: 2016-03-09 | C58: 401.502 | E58: facture assurance ARC | G58: 143 | J58: 0 | K58: 40 | L58: =IF(AND(K58>"",A58=""),VLOOKUP(K58,PLANS!$N$2:$O$11,2),"") -> 
A59: 134 | B59: 2016-03-09 | C59: 401.502 | E59: règlement ARC | F59: 143 | I59: 0 | K59: 40 | L59: =IF(AND(K59>"",A59=""),VLOOKUP(K59,PLANS!$N$2:$O$11,2),"") -> 
C60: Total 401.502 | E60: =IF(AND(C59<>"",A60=0),VLOOKUP(C59,[1]PLANS!$A$20:$C$99,3,FALSE),"") -> A.R.C. | F60: =SUBTOTAL(9,F58:F59) -> 143 | G60: =SUBTOTAL(9,G58:G59) -> 143 | L60: =IF(AND(K60>"",A60=""),VLOOKUP(K60,PLANS!$N$2:$O$11,2),"") -> 
A61: 92 | B61: 2016-02-01 | C61: 401.6 | E61: facture EMN janvier | G61: 177.4 | J61: 0 | K61: 40 | L61: =IF(AND(K61>"",A61=""),VLOOKUP(K61,PLANS!$N$2:$O$11,2),"") -> 
A62: 93 | B62: 2016-02-05 | C62: 401.6 | E62: règlement EMN janvier | F62: 177.4 | I62: 0 | K62: 40 | L62: =IF(AND(K62>"",A62=""),VLOOKUP(K62,PLANS!$N$2:$O$11,2),"") -> 
A63: 178 | B63: 2016-04-05 | C63: 401.6 | E63: facture EMN fevrier | G63: 177.4 | J63: 0 | K63: 40 | L63: =IF(AND(K63>"",A63=""),VLOOKUP(K63,PLANS!$N$2:$O$11,2),"") -> 
A64: 181 | B64: 2016-04-05 | C64: 401.6 | E64: facture EMN mars | G64: 177.4 | J64: 0 | K64: 40 | L64: =IF(AND(K64>"",A64=""),VLOOKUP(K64,PLANS!$N$2:$O$11,2),"") -> 
A65: 209 | B65: 2016-05-01 | C65: 401.6 | E65: règlement EMN fevrier mars | F65: 354.8 | I65: 0 | K65: 40 | L65: =IF(AND(K65>"",A65=""),VLOOKUP(K65,PLANS!$N$2:$O$11,2),"") -> 
A66: 217 | B66: 2016-05-09 | C66: 401.6 | E66: facture EMN avril | G66: 177.4 | J66: 0 | K66: 40 | L66: =IF(AND(K66>"",A66=""),VLOOKUP(K66,PLANS!$N$2:$O$11,2),"") -> 
A67: 218 | B67: 2016-05-09 | C67: 401.6 | E67: règlement EMN avril | F67: 177.4 | I67: 0 | K67: 40 | L67: =IF(AND(K67>"",A67=""),VLOOKUP(K67,PLANS!$N$2:$O$11,2),"") -> 
C68: Total 401.6 | E68: =IF(AND(C67<>"",A68=0),VLOOKUP(C67,[1]PLANS!$A$20:$C$99,3,FALSE),"") -> E.M.N. | F68: =SUBTOTAL(9,F61:F67) -> 709.6 | G68: =SUBTOTAL(9,G61:G67) -> 709.6 | L68: =IF(AND(K68>"",A68=""),VLOOKUP(K68,PLANS!$N$2:$O$11,2),"") -> 
A69: 96 | B69: 2016-02-08 | C69: 401.7 | E69: facture fournitures compta | G69: 77.98 | J69: 0 | K69: 40 | L69: =IF(AND(K69>"",A69=""),VLOOKUP(K69,PLANS!$N$2:$O$11,2),"") -> 
A70: 97 | B70: 2016-02-08 | C70: 401.7 | E70: règlt fournitures compta | F70: 77.98 | I70: =IF(F70>G70,(F70-G70)*(A70=0),"") -> 0 | J70: =IF(G70>F70,(G70-F70)*(A70=0),"") ->  | K70: 40 | L70: =IF(AND(K70>"",A70=""),VLOOKUP(K70,PLANS!$N$2:$O$11,2),"") -> 
A71: 129 | B71: 2016-03-09 | C71: 401.7 | E71: facture fournitures compta | G71: 5.08 | J71: 0 | K71: 40 | L71: =IF(AND(K71>"",A71=""),VLOOKUP(K71,PLANS!$N$2:$O$11,2),"") -> 
A72: 130 | B72: 2016-03-09 | C72: 401.7 | E72: règlt fournitures compta | F72: 5.08 | I72: 0 | K72: 40 | L72: =IF(AND(K72>"",A72=""),VLOOKUP(K72,PLANS!$N$2:$O$11,2),"") -> 
A73: 143 | B73: 2016-03-31 | C73: 401.7 | E73: facture carnet entretien imm | G73: 5 | J73: 0 | K73: 40 | L73: =IF(AND(K73>"",A73=""),VLOOKUP(K73,PLANS!$N$2:$O$11,2),"") -> 
A74: 144 | B74: 2016-03-31 | C74: 401.7 | E74: règlt carnet entretien imm | F74: 5 | I74: 0 | K74: 40 | L74: =IF(AND(K74>"",A74=""),VLOOKUP(K74,PLANS!$N$2:$O$11,2),"") -> 
C75: Total 401.7 | E75: =IF(AND(C74<>"",A75=0),VLOOKUP(C74,[1]PLANS!$A$20:$C$99,3,FALSE),"") -> fournitures | F75: =SUBTOTAL(9,F69:F74) -> 88.06 | G75: =SUBTOTAL(9,G69:G74) -> 88.06 | L75: =IF(AND(K75>"",A75=""),VLOOKUP(K75,PLANS!$N$2:$O$11,2),"") -> 
A76: 48 | B76: 2016-01-02 | C76: 401.8 | E76: facture DUBOIS | G76: 740.05 | J76: 0 | K76: 40 | L76: =IF(AND(K76>"",A76=""),VLOOKUP(K76,PLANS!$N$2:$O$11,2),"") -> 
A77: 49 | B77: 2016-01-02 | C77: 401.8 | E77: règlt Fact,DUBOIS | F77: 760.05 | I77: 0 | K77: 40 | L77: =IF(AND(K77>"",A77=""),VLOOKUP(K77,PLANS!$N$2:$O$11,2),"") -> 
A78: 87 | B78: 2016-02-01 | C78: 401.8 | E78: facture DUBOIS | G78: 740.05 | J78: 0 | K78: 40 | L78: =IF(AND(K78>"",A78=""),VLOOKUP(K78,PLANS!$N$2:$O$11,2),"") -> 
A79: 88 | B79: 2016-02-01 | C79: 401.8 | E79: règlt tact,DUBOIS | F79: 760.05 | I79: 0 | K79: 40 | L79: =IF(AND(K79>"",A79=""),VLOOKUP(K79,PLANS!$N$2:$O$11,2),"") -> 
A80: 119 | B80: 2016-03-01 | C80: 401.8 | E80: facture DUBOIS | G80: 740.05 | J80: 0 | K80: 40 | L80: =IF(AND(K80>"",A80=""),VLOOKUP(K80,PLANS!$N$2:$O$11,2),"") -> 
A81: 120 | B81: 2016-03-01 | C81: 401.8 | E81: règlt fact,DUBOIS | F81: 720.05 | I81: 0 | K81: 40 | L81: =IF(AND(K81>"",A81=""),VLOOKUP(K81,PLANS!$N$2:$O$11,2),"") -> 
A82: 161 | B82: 2016-04-01 | C82: 401.8 | E82: facture DUBOIS | G82: 740.05 | J82: 0 | K82: 40 | L82: =IF(AND(K82>"",A82=""),VLOOKUP(K82,PLANS!$N$2:$O$11,2),"") -> 
A83: 162 | B83: 2016-04-01 | C83: 401.8 | E83: règlt fact,DUBOIS | F83: 720.05 | I83: 0 | K83: 40 | L83: =IF(AND(K83>"",A83=""),VLOOKUP(K83,PLANS!$N$2:$O$11,2),"") -> 
C84: Total 401.8 | E84: =IF(AND(C83<>"",A84=0),VLOOKUP(C83,[1]PLANS!$A$20:$C$99,3,FALSE),"") -> taxe assainissement | F84: =SUBTOTAL(9,F76:F83) -> 2960.2 | G84: =SUBTOTAL(9,G76:G83) -> 2960.2 | L84: =IF(AND(K84>"",A84=""),VLOOKUP(K84,PLANS!$N$2:$O$11,2),"") -> 
A85: 13 | B85: 2016-01-01 | C85: 408.1 | E85: A nouveau eau 167m3 | G85: 749.66 | J85: 0 | K85: 40 | L85: =IF(AND(K85>"",A85=""),VLOOKUP(K85,PLANS!$N$2:$O$11,2),"") -> 
A86: 14 | B86: 2016-01-01 | C86: 408.1 | E86: reprise eau 167m3 | F86: 749.66 | I86: 0 | K86: 40 | L86: =IF(AND(K86>"",A86=""),VLOOKUP(K86,PLANS!$N$2:$O$11,2),"") -> 
C87: Total 408.1 | E87: =IF(AND(C86<>"",A87=0),VLOOKUP(C86,[1]PLANS!$A$20:$C$99,3,FALSE),"") -> Factures non parvenues | F87: =SUBTOTAL(9,F85:F86) -> 749.66 | G87: =SUBTOTAL(9,G85:G86) -> 749.66 | L87: =IF(AND(K87>"",A87=""),VLOOKUP(K87,PLANS!$N$2:$O$11,2),"") -> 
F88: =SUBTOTAL(9,F27:F86) -> 7360.6 | G88: =SUBTOTAL(9,G27:G86) -> 7360.6 | K88: Total 40 | L88: =IF(AND(K88>"",A88=""),VLOOKUP(K88,PLANS!$N$2:$O$11,2),"") -> FOURNISSEURS
A89: 228 | B89: 2016-06-22 | C89: 409 | E89: Acompte VERNEUIL | F89: 1000 | I89: 0 | K89: 41 | L89: =IF(AND(K89>"",A89=""),VLOOKUP(K89,PLANS!$N$2:$O$11,2),"") -> 
C90: Total 409 | E90: =IF(AND(C89<>"",A90=0),VLOOKUP(C89,[1]PLANS!$A$20:$C$99,3,FALSE),"") -> Fournisseurs débiteurs | F90: =SUBTOTAL(9,F89:F89) -> 1000 | G90: =SUBTOTAL(9,G89:G89) -> 0 | I90: 1000 | L90: =IF(AND(K90>"",A90=""),VLOOKUP(K90,PLANS!$N$2:$O$11,2),"") -> 
F91: =SUBTOTAL(9,F89:F89) -> 1000 | G91: =SUBTOTAL(9,G89:G89) -> 0 | I91: 1000 | K91: Total 41 | L91: =IF(AND(K91>"",A91=""),VLOOKUP(K91,PLANS!$N$2:$O$11,2),"") -> FOURN.DEBITEURS
A92: 3 | B92: 2016-01-01 | C92: 450.01 | E92: A nouveau AUBERT | G92: 314.25 | J92: 0 | K92: 45 | L92: =IF(AND(K92>"",A92=""),VLOOKUP(K92,PLANS!$N$2:$O$11,2),"") -> 
A93: 34 | B93: 2016-01-01 | C93: 450.01 | E93: appel 1er trim AUBERT | F93: 254.17 | I93: 0 | K93: 45 | L93: =IF(AND(K93>"",A93=""),VLOOKUP(K93,PLANS!$N$2:$O$11,2),"") -> 
A94: 41 | B94: 2016-01-01 | C94: 450.01 | E94: 1er appel trav,peint, AUBERT | F94: 86.59 | I94: 0 | K94: 45 | L94: =IF(AND(K94>"",A94=""),VLOOKUP(K94,PLANS!$N$2:$O$11,2),"") -> 
A95: 55 | B95: 2016-01-04 | C95: 450.01 | E95: règlement AUBERT | G95: 66.27 | J95: 0 | K95: 45 | L95: =IF(AND(K95>"",A95=""),VLOOKUP(K95,PLANS!$N$2:$O$11,2),"") -> 
A96: 76 | B96: 2016-02-01 | C96: 450.01 | E96: 2è appel trav,peint,AUBERT | F96: 86.59 | I96: 0 | K96: 45 | L96: =IF(AND(K96>"",A96=""),VLOOKUP(K96,PLANS!$N$2:$O$11,2),"") -> 
A97: 84 | B97: 2016-02-01 | C97: 450.01 | E97: règlement AUBERT | G97: 46.83 | J97: 0 | K97: 45 | L97: =IF(AND(K97>"",A97=""),VLOOKUP(K97,PLANS!$N$2:$O$11,2),"") -> 
A98: 105 | B98: 2016-02-24 | C98: 450.01 | E98: règlement AUBERT | G98: 86.59 | J98: 0 | K98: 45 | L98: =IF(AND(K98>"",A98=""),VLOOKUP(K98,PLANS!$N$2:$O$11,2),"") -> 
A99: 112 | B99: 2016-03-01 | C99: 450.01 | E99: 3è appel trav,peint,AUBERT | F99: 86.59 | I99: 0 | K99: 45 | L99: =IF(AND(K99>"",A99=""),VLOOKUP(K99,PLANS!$N$2:$O$11,2),"") -> 
A100: 147 | B100: 2016-04-01 | C100: 450.01 | E100: 4è appel trav,peint,AUBERT | F100: 86.59 | I100: 0 | K100: 45 | L100: =IF(AND(K100>"",A100=""),VLOOKUP(K100,PLANS!$N$2:$O$11,2),"") -> 
A101: 154 | B101: 2016-04-01 | C101: 450.01 | E101: appel prov 2è trim AUBERT | F101: 218.89 | I101: 0 | K101: 45 | L101: =IF(AND(K101>"",A101=""),VLOOKUP(K101,PLANS!$N$2:$O$11,2),"") -> 
A102: 166 | B102: 2016-04-01 | C102: 450.01 | E102: règlement AUBERT | G102: 86.59 | J102: 0 | K102: 45 | L102: =IF(AND(K102>"",A102=""),VLOOKUP(K102,PLANS!$N$2:$O$11,2),"") -> 
A103: 168 | B103: 2016-04-01 | C103: 450.01 | E103: règlement AUBERT | G103: 218.89 | J103: 0 | K103: 45 | L103: =IF(AND(K103>"",A103=""),VLOOKUP(K103,PLANS!$N$2:$O$11,2),"") -> 
A104: 203 | B104: 2016-05-01 | C104: 450.01 | E104: av travx mai AUBERT | F104: 46.94 | I104: 0 | K104: 45 | L104: =IF(AND(K104>"",A104=""),VLOOKUP(K104,PLANS!$N$2:$O$11,2),"") -> 
C105: Total 450.01 | E105: =IF(AND(C104<>"",A105=0),VLOOKUP(C104,[1]PLANS!$A$20:$C$99,3,FALSE),"") -> AUBERT | F105: =SUBTOTAL(9,F92:F104) -> 866.36 | G105: =SUBTOTAL(9,G92:G104) -> 819.42 | I105: 46.94 | L105: =IF(AND(K105>"",A105=""),VLOOKUP(K105,PLANS!$N$2:$O$11,2),"") -> 
A106: 8 | B106: 2016-01-01 | C106: 450.02 | E106: A nouveau AUDIARD | F106: 133.38 | I106: 0 | K106: 45 | L106: =IF(AND(K106>"",A106=""),VLOOKUP(K106,PLANS!$N$2:$O$11,2),"") -> 
A107: 35 | B107: 2016-01-01 | C107: 450.02 | E107: appel 1er trim AUDIARD | F107: 188.21 | I107: 0 | K107: 45 | L107: =IF(AND(K107>"",A107=""),VLOOKUP(K107,PLANS!$N$2:$O$11,2),"") -> 
A108: 42 | B108: 2016-01-01 | C108: 450.02 | E108: 1er appel trav,peint, AUDIARD | F108: 111.01 | I108: 0 | K108: 45 | L108: =IF(AND(K108>"",A108=""),VLOOKUP(K108,PLANS!$N$2:$O$11,2),"") -> 
A109: 57 | B109: 2016-01-04 | C109: 450.02 | E109: règlement AUDIARD | G109: 321 | J109: 0 | K109: 45 | L109: =IF(AND(K109>"",A109=""),VLOOKUP(K109,PLANS!$N$2:$O$11,2),"") -> 
A110: 70 | B110: 2016-01-16 | C110: 450.02 | E110: règlement timbres | G110: 9.6 | J110: 0 | K110: 45 | L110: =IF(AND(K110>"",A110=""),VLOOKUP(K110,PLANS!$N$2:$O$11,2),"") -> 
A111: 77 | B111: 2016-02-01 | C111: 450.02 | E111: 2è appel trav,peint,AUDIARD | F111: 111.01 | I111: 0 | K111: 45 | L111: =IF(AND(K111>"",A111=""),VLOOKUP(K111,PLANS!$N$2:$O$11,2),"") -> 
A112: 82 | B112: 2016-02-01 | C112: 450.02 | E112: règlement AUDIARD | G112: 213.01 | J112: 0 | K112: 45 | L112: =IF(AND(K112>"",A112=""),VLOOKUP(K112,PLANS!$N$2:$O$11,2),"") -> 
A113: 98 | B113: 2016-02-08 | C113: 450.02 | E113: règlt fournitures compta | G113: 77.98 | J113: 0 | K113: 45 | L113: =IF(AND(K113>"",A113=""),VLOOKUP(K113,PLANS!$N$2:$O$11,2),"") -> 
A114: 113 | B114: 2016-03-01 | C114: 450.02 | E114: 3è appel trav,peint,AUDIARD | F114: 111.01 | I114: 0 | K114: 45 | L114: =IF(AND(K114>"",A114=""),VLOOKUP(K114,PLANS!$N$2:$O$11,2),"") -> 
A115: 131 | B115: 2016-03-09 | C115: 450.02 | E115: règlt fournitures compta | G115: 5.08 | J115: 0 | K115: 45 | L115: =IF(AND(K115>"",A115=""),VLOOKUP(K115,PLANS!$N$2:$O$11,2),"") -> 
A116: 148 | B116: 2016-04-01 | C116: 450.02 | E116: 4è appel trav,peint,AUDIARD | F116: 111.01 | I116: 0 | K116: 45 | L116: =IF(AND(K116>"",A116=""),VLOOKUP(K116,PLANS!$N$2:$O$11,2),"") -> 
A117: 155 | B117: 2016-04-01 | C117: 450.02 | E117: appel prov 2è trim AUDIARD | F117: 183.15 | I117: 0 | K117: 45 | L117: =IF(AND(K117>"",A117=""),VLOOKUP(K117,PLANS!$N$2:$O$11,2),"") -> 
A118: 164 | B118: 2016-04-01 | C118: 450.02 | E118: règlement AUDIARD | G118: 323 | J118: 0 | K118: 45 | L118: =IF(AND(K118>"",A118=""),VLOOKUP(K118,PLANS!$N$2:$O$11,2),"") -> 
A119: 175 | B119: 2016-04-01 | C119: 450.02 | E119: règlement timbres | G119: 8 | J119: 0 | K119: 45 | L119: =IF(AND(K119>"",A119=""),VLOOKUP(K119,PLANS!$N$2:$O$11,2),"") -> 
A120: 195 | B120: 2016-04-15 | C120: 450.02 | E120: règlt envoi courrier assurance | G120: 2.58 | J120: 0 | K120: 45 | L120: =IF(AND(K120>"",A120=""),VLOOKUP(K120,PLANS!$N$2:$O$11,2),"") -> 
A121: 204 | B121: 2016-05-01 | C121: 450.02 | E121: av travx mai AUDIARD | F121: 60.18 | I121: 0 | K121: 45 | L121: =IF(AND(K121>"",A121=""),VLOOKUP(K121,PLANS!$N$2:$O$11,2),"") -> 
A122: 214 | B122: 2015-05-06 | C122: 450.02 | E122: règlt envois LR convocs AG | G122: 33.04 | J122: 0 | K122: 45 | L122: =IF(AND(K122>"",A122=""),VLOOKUP(K122,PLANS!$N$2:$O$11,2),"") -> 
A123: 223 | B123: 2016-05-11 | C123: 450.02 | E123: règlt envoi LR rappel charges | G123: 5.42 | J123: 0 | K123: 45 | L123: =IF(AND(K123>"",A123=""),VLOOKUP(K123,PLANS!$N$2:$O$11,2),"") -> 
C124: Total 450.02 | E124: =IF(AND(C123<>"",A124=0),VLOOKUP(C123,[1]PLANS!$A$20:$C$99,3,FALSE),"") -> AUDIARD | F124: =SUBTOTAL(9,F106:F123) -> 1008.96 | G124: =SUBTOTAL(9,G106:G123) -> 998.71 | I124: 10.25 | L124: =IF(AND(K124>"",A124=""),VLOOKUP(K124,PLANS!$N$2:$O$11,2),"") -> 
A125: 9 | B125: 2016-01-01 | C125: 450.03 | E125: A nouveau BERFNARDIN | F125: 80.13 | I125: 0 | K125: 45 | L125: =IF(AND(K125>"",A125=""),VLOOKUP(K125,PLANS!$N$2:$O$11,2),"") -> 
A126: 36 | B126: 2016-01-01 | C126: 450.03 | E126: appel 1er trim BERNARDIN | F126: 131.11 | I126: 0 | K126: 45 | L126: =IF(AND(K126>"",A126=""),VLOOKUP(K126,PLANS!$N$2:$O$11,2),"") -> 
A127: 43 | B127: 2016-01-01 | C127: 450.03 | E127: 1er appel trav;pein, BERNARDIN | F127: 144.31 | I127: 0 | K127: 45 | L127: =IF(AND(K127>"",A127=""),VLOOKUP(K127,PLANS!$N$2:$O$11,2),"") -> 
A128: 53 | B128: 2016-01-04 | C128: 450.03 | E128: règlement BERNARDIN | G128: 577.24 | J128: 0 | K128: 45 | L128: =IF(AND(K128>"",A128=""),VLOOKUP(K128,PLANS!$N$2:$O$11,2),"") -> 
A129: 78 | B129: 2016-02-01 | C129: 450.03 | E129: 2è appel trav,peint,BENHARDIN | F129: 144.31 | I129: 0 | K129: 45 | L129: =IF(AND(K129>"",A129=""),VLOOKUP(K129,PLANS!$N$2:$O$11,2),"") -> 
A130: 114 | B130: 2016-03-01 | C130: 450.03 | E130: 3è appel trav,peint,BENHARDIN | F130: 144.31 | I130: 0 | K130: 45 | L130: =IF(AND(K130>"",A130=""),VLOOKUP(K130,PLANS!$N$2:$O$11,2),"") -> 
A131: 126 | B131: 2016-03-01 | C131: 450.03 | E131: règlement BERNARDIN | G131: 66.93 | J131: 0 | K131: 45 | L131: =IF(AND(K131>"",A131=""),VLOOKUP(K131,PLANS!$N$2:$O$11,2),"") -> 
A132: 149 | B132: 2016-04-01 | C132: 450.03 | E132: 4è appel trav,peint,BERNARDIN | F132: 144.31 | I132: 0 | K132: 45 | L132: =IF(AND(K132>"",A132=""),VLOOKUP(K132,PLANS!$N$2:$O$11,2),"") -> 
A133: 156 | B133: 2016-04-01 | C133: 450.03 | E133: appel prov 2è trim BERNARDIN | F133: 131.11 | I133: 0 | K133: 45 | L133: =IF(AND(K133>"",A133=""),VLOOKUP(K133,PLANS!$N$2:$O$11,2),"") -> 
A134: 170 | B134: 2016-04-01 | C134: 450.03 | E134: règlement BERNARDIN | G134: 275.42 | I134: =IF(F134>G134,(F134-G134)*(A134=0),"") ->  | J134: =IF(G134>F134,(G134-F134)*(A134=0),"") -> 0 | K134: 45 | L134: =IF(AND(K134>"",A134=""),VLOOKUP(K134,PLANS!$N$2:$O$11,2),"") -> 
A135: 205 | B135: 2016-05-01 | C135: 450.03 | E135: av travx mai BERNARDIN | F135: 77.03 | I135: 0 | K135: 45 | L135: =IF(AND(K135>"",A135=""),VLOOKUP(K135,PLANS!$N$2:$O$11,2),"") -> 
C136: Total 450.03 | E136: =IF(AND(C135<>"",A136=0),VLOOKUP(C135,[1]PLANS!$A$20:$C$99,3,FALSE),"") -> BERNARDIN | F136: =SUBTOTAL(9,F125:F135) -> 996.62 | G136: =SUBTOTAL(9,G125:G135) -> 919.59 | I136: 77.03 | L136: =IF(AND(K136>"",A136=""),VLOOKUP(K136,PLANS!$N$2:$O$11,2),"") -> 
A137: 10 | B137: 2016-01-01 | C137: 450.05 | E137: A nouveau HUBERT | F137: 551.11 | I137: 0 | K137: 45 | L137: =IF(AND(K137>"",A137=""),VLOOKUP(K137,PLANS!$N$2:$O$11,2),"") -> 
A138: 37 | B138: 2016-01-01 | C138: 450.05 | E138: appel 1er trim HU BERT | F138: 376.64 | I138: 0 | K138: 45 | L138: =IF(AND(K138>"",A138=""),VLOOKUP(K138,PLANS!$N$2:$O$11,2),"") -> 
A139: 44 | B139: 2016-01-01 | C139: 450.05 | E139: 1er appel trav,peint,HUBERT | F139: 152.45 | I139: 0 | K139: 45 | L139: =IF(AND(K139>"",A139=""),VLOOKUP(K139,PLANS!$N$2:$O$11,2),"") -> 
A140: 51 | B140: 2016-01-04 | C140: 450.05 | E140: règlement HUBERT | G140: 609.8 | J140: 0 | K140: 45 | L140: =IF(AND(K140>"",A140=""),VLOOKUP(K140,PLANS!$N$2:$O$11,2),"") -> 
A141: 73 | B141: 2016-01-16 | C141: 450.05 | E141: règlement HUBERT | G141: 78.4 | J141: 0 | K141: 45 | L141: =IF(AND(K141>"",A141=""),VLOOKUP(K141,PLANS!$N$2:$O$11,2),"") -> 
A142: 79 | B142: 2016-02-01 | C142: 450.05 | E142: 2è appel trav;peint, HUBERT | F142: 152.45 | I142: 0 | K142: 45 | L142: =IF(AND(K142>"",A142=""),VLOOKUP(K142,PLANS!$N$2:$O$11,2),"") -> 
A143: 115 | B143: 2016-03-01 | C143: 450.05 | E143: 3è appel trav,peint,HUBERT | F143: 152.45 | I143: 0 | K143: 45 | L143: =IF(AND(K143>"",A143=""),VLOOKUP(K143,PLANS!$N$2:$O$11,2),"") -> 
A144: 122 | B144: 2016-03-01 | C144: 450.05 | E144: règlement HUBERT | G144: 146.9 | J144: 0 | K144: 45 | L144: =IF(AND(K144>"",A144=""),VLOOKUP(K144,PLANS!$N$2:$O$11,2),"") -> 
A145: 124 | B145: 2016-03-01 | C145: 450.05 | E145: règlement HUBERT | G145: 550 | J145: 0 | K145: 45 | L145: =IF(AND(K145>"",A145=""),VLOOKUP(K145,PLANS!$N$2:$O$11,2),"") -> 
A146: 150 | B146: 2016-04-01 | C146: 450.05 | E146: 4è appel trav:peint,HUBERT | F146: 152.45 | I146: 0 | K146: 45 | L146: =IF(AND(K146>"",A146=""),VLOOKUP(K146,PLANS!$N$2:$O$11,2),"") -> 
A147: 157 | B147: 2016-04-01 | C147: 450.05 | E147: appel prov 2è trim HUBERT | F147: 423.01 | I147: 0 | K147: 45 | L147: =IF(AND(K147>"",A147=""),VLOOKUP(K147,PLANS!$N$2:$O$11,2),"") -> 
A148: 200 | B148: 2016-04-18 | C148: 450.05 | E148: règlement HUBERT | G148: 575.46 | J148: 0 | K148: 45 | L148: =IF(AND(K148>"",A148=""),VLOOKUP(K148,PLANS!$N$2:$O$11,2),"") -> 
A149: 206 | B149: 2016-05-01 | C149: 450.05 | E149: av travx mai HUBERT | F149: 82.65 | I149: 0 | K149: 45 | L149: =IF(AND(K149>"",A149=""),VLOOKUP(K149,PLANS!$N$2:$O$11,2),"") -> 
C150: Total 450.05 | E150: =IF(AND(C149<>"",A150=0),VLOOKUP(C149,[1]PLANS!$A$20:$C$99,3,FALSE),"") -> HUBERT | F150: =SUBTOTAL(9,F137:F149) -> 2043.21 | G150: =SUBTOTAL(9,G137:G149) -> 1960.56 | I150: 82.65 | L150: =IF(AND(K150>"",A150=""),VLOOKUP(K150,PLANS!$N$2:$O$11,2),"") -> 
A151: 11 | B151: 2016-01-01 | C151: 450.06 | E151: A nouveau LELIEVRE | F151: 73.02 | I151: 0 | K151: 45 | L151: =IF(AND(K151>"",A151=""),VLOOKUP(K151,PLANS!$N$2:$O$11,2),"") -> 
A152: 38 | B152: 2016-01-01 | C152: 450.06 | E152: appel 1er trim LELIEVRE | F152: 298.09 | I152: 0 | K152: 45 | L152: =IF(AND(K152>"",A152=""),VLOOKUP(K152,PLANS!$N$2:$O$11,2),"") -> 
A153: 45 | B153: 2016-01-01 | C153: 450.06 | E153: 1er appel trav,peint, LELIEVRE | F153: 172.43 | I153: 0 | K153: 45 | L153: =IF(AND(K153>"",A153=""),VLOOKUP(K153,PLANS!$N$2:$O$11,2),"") -> 
A154: 80 | B154: 2016-02-01 | C154: 450.06 | E154: 2è appel trav,peint,LELIEVRE | F154: 172.43 | I154: 0 | K154: 45 | L154: =IF(AND(K154>"",A154=""),VLOOKUP(K154,PLANS!$N$2:$O$11,2),"") -> 
A155: 103 | B155: 2016-02-09 | C155: 450.06 | E155: règlement | G155: 715.97 | J155: 0 | K155: 45 | L155: =IF(AND(K155>"",A155=""),VLOOKUP(K155,PLANS!$N$2:$O$11,2),"") -> 
A156: 116 | B156: 2016-03-01 | C156: 450.06 | E156: 3è appel trav,peint,LELIEVRE | F156: 172.43 | I156: 0 | K156: 45 | L156: =IF(AND(K156>"",A156=""),VLOOKUP(K156,PLANS!$N$2:$O$11,2),"") -> 
A157: 136 | B157: 2016-03-18 | C157: 450.06 | E157: règlement LELIEVRE | G157: 172.43 | J157: 0 | K157: 45 | L157: =IF(AND(K157>"",A157=""),VLOOKUP(K157,PLANS!$N$2:$O$11,2),"") -> 
A158: 151 | B158: 2016-04-01 | C158: 450.06 | E158: 4è appel trav,peint,LELIEVRE | F158: 172.43 | I158: 0 | K158: 45 | L158: =IF(AND(K158>"",A158=""),VLOOKUP(K158,PLANS!$N$2:$O$11,2),"") -> 
A159: 158 | B159: 2016-04-01 | C159: 450.06 | E159: appel prov 2è trim LELIEVRE | F159: 291.69 | I159: 0 | K159: 45 | L159: =IF(AND(K159>"",A159=""),VLOOKUP(K159,PLANS!$N$2:$O$11,2),"") -> 
A160: 186 | B160: 2016-04-12 | C160: 450.06 | E160: règlement LELIEVRE | G160: 464.12 | J160: 0 | K160: 45 | L160: =IF(AND(K160>"",A160=""),VLOOKUP(K160,PLANS!$N$2:$O$11,2),"") -> 
A161: 207 | B161: 2016-05-01 | C161: 450.06 | E161: av travx mai LELIEVRE | F161: 93.48 | I161: 0 | K161: 45 | L161: =IF(AND(K161>"",A161=""),VLOOKUP(K161,PLANS!$N$2:$O$11,2),"") -> 
C162: Total 450.06 | E162: =IF(AND(C161<>"",A162=0),VLOOKUP(C161,[1]PLANS!$A$20:$C$99,3,FALSE),"") -> LELIEVRE | F162: =SUBTOTAL(9,F151:F161) -> 1446 | G162: =SUBTOTAL(9,G151:G161) -> 1352.52 | I162: 93.48 | L162: =IF(AND(K162>"",A162=""),VLOOKUP(K162,PLANS!$N$2:$O$11,2),"") -> 
A163: 12 | B163: 2016-01-01 | C163: 450.07 | E163: A nouveau RONDEAU | F163: 235.43 | I163: 0 | K163: 45 | L163: =IF(AND(K163>"",A163=""),VLOOKUP(K163,PLANS!$N$2:$O$11,2),"") -> 
A164: 39 | B164: 2016-01-01 | C164: 450.07 | E164: appel 1er trim RONDEAU | F164: 201.79 | I164: 0 | K164: 45 | L164: =IF(AND(K164>"",A164=""),VLOOKUP(K164,PLANS!$N$2:$O$11,2),"") -> 
A165: 46 | B165: 2016-01-01 | C165: 450.07 | E165: 1er appel trav,peint, RONDEAU | F165: 73.26 | I165: 0 | K165: 45 | L165: =IF(AND(K165>"",A165=""),VLOOKUP(K165,PLANS!$N$2:$O$11,2),"") -> 
A166: 65 | B166: 2016-01-16 | C166: 450.07 | E166: règlement RONDEAU | G166: 335.87 | J166: 0 | K166: 45 | L166: =IF(AND(K166>"",A166=""),VLOOKUP(K166,PLANS!$N$2:$O$11,2),"") -> 
A167: 81 | B167: 2016-02-01 | C167: 450.07 | E167: 2è appel trav,pezint,RONDEAU | F167: 73.26 | I167: 0 | K167: 45 | L167: =IF(AND(K167>"",A167=""),VLOOKUP(K167,PLANS!$N$2:$O$11,2),"") -> 
A168: 117 | B168: 2016-03-01 | C168: 450.07 | E168: 3è appel trav,peint,RONDEAU | F168: 73.26 | I168: 0 | K168: 45 | L168: =IF(AND(K168>"",A168=""),VLOOKUP(K168,PLANS!$N$2:$O$11,2),"") -> 
A169: 152 | B169: 2016-04-01 | C169: 450.07 | E169: 4è appel trav,peint,RONDEAU | F169: 73.26 | I169: 0 | K169: 45 | L169: =IF(AND(K169>"",A169=""),VLOOKUP(K169,PLANS!$N$2:$O$11,2),"") -> 
A170: 159 | B170: 2016-04-01 | C170: 450.07 | E170: appel prov 2è trim RONDEAU | F170: 202.15 | I170: 0 | K170: 45 | L170: =IF(AND(K170>"",A170=""),VLOOKUP(K170,PLANS!$N$2:$O$11,2),"") -> 
A171: 208 | B171: 2016-05-01 | C171: 450.07 | E171: av travx mai RONDEAU | F171: 39.72 | I171: 0 | K171: 45 | L171: =IF(AND(K171>"",A171=""),VLOOKUP(K171,PLANS!$N$2:$O$11,2),"") -> 
C172: Total 450.07 | E172: =IF(AND(C171<>"",A172=0),VLOOKUP(C171,[1]PLANS!$A$20:$C$99,3,FALSE),"") -> RONDEAU | F172: =SUBTOTAL(9,F163:F171) -> 972.13 | G172: =SUBTOTAL(9,G163:G171) -> 335.87 | I172: 636.26 | L172: =IF(AND(K172>"",A172=""),VLOOKUP(K172,PLANS!$N$2:$O$11,2),"") -> 
F173: =SUBTOTAL(9,F92:F171) -> 7333.28 | G173: =SUBTOTAL(9,G92:G171) -> 6386.67 | I173: 946.61 | K173: Total 45 | L173: =IF(AND(K173>"",A173=""),VLOOKUP(K173,PLANS!$N$2:$O$11,2),"") -> COPROPRIETAIRES
A174: 30 | B174: 2016-01-01 | C174: 471 | E174: A nouveau écart de répartition | F174: 0.01 | I174: 0 | K174: 48 | L174: =IF(AND(K174>"",A174=""),VLOOKUP(K174,PLANS!$N$2:$O$11,2),"") -> 
A175: 31 | B175: 2016-01-01 | C175: 471 | E175: régul écart de répartition | G175: 0.01 | J175: 0 | K175: 48 | L175: =IF(AND(K175>"",A175=""),VLOOKUP(K175,PLANS!$N$2:$O$11,2),"") -> 
C176: Total 471 | E176: =IF(AND(C175<>"",A176=0),VLOOKUP(C175,[1]PLANS!$A$20:$C$99,3,FALSE),"") -> Compte Attente Débiteur | F176: =SUBTOTAL(9,F174:F175) -> 0.01 | G176: =SUBTOTAL(9,G174:G175) -> 0.01 | L176: =IF(AND(K176>"",A176=""),VLOOKUP(K176,PLANS!$N$2:$O$11,2),"") -> 
F177: =SUBTOTAL(9,F174:F175) -> 0.01 | G177: =SUBTOTAL(9,G174:G175) -> 0.01 | K177: Total 48 | L177: =IF(AND(K177>"",A177=""),VLOOKUP(K177,PLANS!$N$2:$O$11,2),"") -> DEBITEURS DIVERS
A178: 2 | B178: 2016-01-01 | C178: 512 | E178: A nouveau | F178: 1790.84 | I178: 0 | K178: 50 | L178: =IF(AND(K178>"",A178=""),VLOOKUP(K178,PLANS!$N$2:$O$11,2),"") -> 
A179: 50 | B179: 2016-01-02 | C179: 512 | E179: règlt Fact,DUBOIS | G179: 760.05 | J179: 0 | K179: 50 | L179: =IF(AND(K179>"",A179=""),VLOOKUP(K179,PLANS!$N$2:$O$11,2),"") -> 
A180: 52 | B180: 2016-01-04 | C180: 512 | E180: règlement HUGNET | F180: 609.8 | I180: 0 | K180: 50 | L180: =IF(AND(K180>"",A180=""),VLOOKUP(K180,PLANS!$N$2:$O$11,2),"") -> 
A181: 54 | B181: 2016-01-04 | C181: 512 | E181: règlement BENHARROSH | F181: 577.24 | I181: 0 | K181: 50 | L181: =IF(AND(K181>"",A181=""),VLOOKUP(K181,PLANS!$N$2:$O$11,2),"") -> 
A182: 56 | B182: 2016-01-04 | C182: 512 | E182: règlement ORTEGA | F182: 66.27 | I182: 0 | K182: 50 | L182: =IF(AND(K182>"",A182=""),VLOOKUP(K182,PLANS!$N$2:$O$11,2),"") -> 
A183: 58 | B183: 2016-01-04 | C183: 512 | E183: règlement AUDRAIN | F183: 321 | I183: 0 | K183: 50 | L183: =IF(AND(K183>"",A183=""),VLOOKUP(K183,PLANS!$N$2:$O$11,2),"") -> 
A184: 64 | B184: 2016-01-15 | C184: 512 | E184: prèlèvement CCP | G184: 13.4 | J184: 0 | K184: 50 | L184: =IF(AND(K184>"",A184=""),VLOOKUP(K184,PLANS!$N$2:$O$11,2),"") -> 
A185: 66 | B185: 2016-01-16 | C185: 512 | E185: règlement RODIER | F185: 335.87 | I185: 0 | K185: 50 | L185: =IF(AND(K185>"",A185=""),VLOOKUP(K185,PLANS!$N$2:$O$11,2),"") -> 
A186: 72 | B186: 2016-01-16 | C186: 512 | E186: règlement VEOLIA eau 177m3 | G186: 794.55 | J186: 0 | K186: 50 | L186: =IF(AND(K186>"",A186=""),VLOOKUP(K186,PLANS!$N$2:$O$11,2),"") -> 
A187: 74 | B187: 2016-01-16 | C187: 512 | E187: règlement HUGNET | F187: 78.4 | I187: 0 | K187: 50 | L187: =IF(AND(K187>"",A187=""),VLOOKUP(K187,PLANS!$N$2:$O$11,2),"") -> 
A188: 83 | B188: 2016-02-01 | C188: 512 | E188: règlement AUDRAIN | F188: 213.01 | I188: 0 | K188: 50 | L188: =IF(AND(K188>"",A188=""),VLOOKUP(K188,PLANS!$N$2:$O$11,2),"") -> 
A189: 85 | B189: 2016-02-01 | C189: 512 | E189: règlement ORTEGA | F189: 46.83 | I189: 0 | K189: 50 | L189: =IF(AND(K189>"",A189=""),VLOOKUP(K189,PLANS!$N$2:$O$11,2),"") -> 
A190: 89 | B190: 2016-02-01 | C190: 512 | E190: règlt Fact,DUBOIS | G190: 760.05 | J190: 0 | K190: 50 | L190: =IF(AND(K190>"",A190=""),VLOOKUP(K190,PLANS!$N$2:$O$11,2),"") -> 
A191: 94 | B191: 2016-02-05 | C191: 512 | E191: règlement EMN janvier | G191: 177.4 | J191: 0 | K191: 50 | L191: =IF(AND(K191>"",A191=""),VLOOKUP(K191,PLANS!$N$2:$O$11,2),"") -> 
A192: 102 | B192: 2016-02-08 | C192: 512 | E192: règlt assurance immeuble | G192: 278.56 | J192: 0 | K192: 50 | L192: =IF(AND(K192>"",A192=""),VLOOKUP(K192,PLANS!$N$2:$O$11,2),"") -> 
A193: 104 | B193: 2016-02-09 | C193: 512 | E193: règlement | F193: 715.97 | I193: 0 | K193: 50 | L193: =IF(AND(K193>"",A193=""),VLOOKUP(K193,PLANS!$N$2:$O$11,2),"") -> 
A194: 106 | B194: 2016-02-24 | C194: 512 | E194: règlement ORTEGA | F194: 86.59 | I194: 0 | K194: 50 | L194: =IF(AND(K194>"",A194=""),VLOOKUP(K194,PLANS!$N$2:$O$11,2),"") -> 
A195: 121 | B195: 2016-03-01 | C195: 512 | E195: règlt taxe ass 3ème verst | G195: 720.05 | J195: 0 | K195: 50 | L195: =IF(AND(K195>"",A195=""),VLOOKUP(K195,PLANS!$N$2:$O$11,2),"") -> 
A196: 123 | B196: 2016-03-01 | C196: 512 | E196: règlement HUGNET | F196: 146.9 | I196: 0 | K196: 50 | L196: =IF(AND(K196>"",A196=""),VLOOKUP(K196,PLANS!$N$2:$O$11,2),"") -> 
A197: 125 | B197: 2016-03-01 | C197: 512 | E197: règlement HUGNET | F197: 550 | I197: 0 | K197: 50 | L197: =IF(AND(K197>"",A197=""),VLOOKUP(K197,PLANS!$N$2:$O$11,2),"") -> 
A198: 127 | B198: 2016-03-01 | C198: 512 | E198: règlement BENHARROSH | F198: 66.93 | I198: =IF(F198>G198,(F198-G198)*(A198=0),"") -> 0 | J198: =IF(G198>F198,(G198-F198)*(A198=0),"") ->  | K198: 50 | L198: =IF(AND(K198>"",A198=""),VLOOKUP(K198,PLANS!$N$2:$O$11,2),"") -> 
A199: 135 | B199: 2016-03-09 | C199: 512 | E199: règlement ARC | G199: 143 | J199: 0 | K199: 50 | L199: =IF(AND(K199>"",A199=""),VLOOKUP(K199,PLANS!$N$2:$O$11,2),"") -> 
A200: 137 | B200: 2016-03-18 | C200: 512 | E200: règlement LEFEBURE | F200: 172.43 | I200: 0 | K200: 50 | L200: =IF(AND(K200>"",A200=""),VLOOKUP(K200,PLANS!$N$2:$O$11,2),"") -> 
A201: 141 | B201: 2016-03-29 | C201: 512 | E201: règlement EDF | G201: 78.25 | J201: 0 | K201: 50 | L201: =IF(AND(K201>"",A201=""),VLOOKUP(K201,PLANS!$N$2:$O$11,2),"") -> 
... 4124 more rows

Sheet BALANCE
A1: =IF($D1<>"",VLOOKUP($D1,PLANS!$B$2:$C$10,2,FALSE),"") ->  | C1: BALANCE | E1: Situation au | F1: 2016-06-22 | G1: =IF($H$1=3,SUM(G5:G1014),"") ->  | H1: 4 | M1: =IF($D$1=3,SUM(M5:M1014),"") ->  | O1: =IF($D$1=3,SUM(O5:O1014),"") ->  | W1: Clé | AC1: Compte | AD1: Compte
C2: =IF($D2<>"",VLOOKUP($D2,[1]PLANS!$B$2:$C$10,2,FALSE),"") ->  | D2: =IF(AND($D1<>"",$A2=0),VLOOKUP($D1,[1]PLANS!$A$2:$C$10,2,FALSE),"") ->  | I2: =IF(F2>G2,(F2-G2)*(A2=0),"") ->  | J2: =IF(G2>F2,(G2-F2)*(A2=0),"") ->  | L2: =IF(AND(K2>"",A2=""),VLOOKUP(K2,PLANS!$N$2:$O$11,2),"") ->  | M2: =IF($H$1=3,SUM(M6:M1014),"") ->  | O2: =IF($H$1=3,SUM(O6:O1014),"") ->  | W2: =PLANS!H16 -> >=11 | AC2: >=450 | AD2: <460
A4: N° | B4: Date | C4: Compte | D4: Clé | E4: Libellé | F4: …....Débit……. | G4: …...Crédit…… | H4: X | I4: Solde Débiteur | J4: Solde Créditeur | K4: Classe | T4: crédit
A5: 16 | B5: 2016-01-01 | C5: 103.1 | E5: A nouveau avance trésorerie | I5: =IF(F5>G5,(F5-G5)*(A5=0),"") ->  | J5: =IF(G5>F5,(G5-F5)*(A5=0),"") ->  | K5: 10 | L5: =IF(AND(K5>"",A5=""),VLOOKUP(K5,PLANS!$N$2:$O$11,2),"") ->  | T5: =G5*($C5=512) -> 0
A6: 17 | B6: 2016-01-01 | C6: 103.1 | E6: SECLIN | G6: 117 | I6: =IF(F6>G6,(F6-G6)*(A6=0),"") ->  | J6: =IF(G6>F6,(G6-F6)*(A6=0),"") -> 0 | K6: 10 | L6: =IF(AND(K6>"",A6=""),VLOOKUP(K6,PLANS!$N$2:$O$11,2),"") -> 
A7: 18 | B7: 2016-01-01 | C7: 103.1 | E7: AUDIARD | G7: 150 | J7: 0 | K7: 10 | L7: =IF(AND(K7>"",A7=""),VLOOKUP(K7,PLANS!$N$2:$O$11,2),"") -> 
A8: 19 | B8: 2016-01-01 | C8: 103.1 | E8: BERNARDIN | G8: 195 | J8: 0 | K8: 10 | L8: =IF(AND(K8>"",A8=""),VLOOKUP(K8,PLANS!$N$2:$O$11,2),"") -> 
A9: 20 | B9: 2016-01-01 | C9: 103.1 | E9: HU BERT | G9: 206 | J9: 0 | K9: 10 | L9: =IF(AND(K9>"",A9=""),VLOOKUP(K9,PLANS!$N$2:$O$11,2),"") -> 
A10: 21 | B10: 2016-01-01 | C10: 103.1 | E10: LELIEVRE | G10: 233 | J10: 0 | K10: 10 | L10: =IF(AND(K10>"",A10=""),VLOOKUP(K10,PLANS!$N$2:$O$11,2),"") -> 
A11: 22 | B11: 2016-01-01 | C11: 103.1 | E11: RONDEAU | G11: 99 | J11: 0 | K11: 10 | L11: =IF(AND(K11>"",A11=""),VLOOKUP(K11,PLANS!$N$2:$O$11,2),"") -> 
A12: 107 | B12: 2016-02-24 | C12: 103.1 | E12: SECLIN | F12: 117 | I12: 0 | K12: 10 | L12: =IF(AND(K12>"",A12=""),VLOOKUP(K12,PLANS!$N$2:$O$11,2),"") -> 
A13: 108 | B13: 2016-02-24 | C13: 103.1 | E13: AUBERT | G13: 117 | J13: 0 | K13: 10 | L13: =IF(AND(K13>"",A13=""),VLOOKUP(K13,PLANS!$N$2:$O$11,2),"") -> 
C14: Total 103.1 | F14: =SUBTOTAL(9,F5:F13) -> 117 | G14: =SUBTOTAL(9,G5:G13) -> 1117 | J14: 1000 | L14: =IF(AND(K14>"",A14=""),VLOOKUP(K14,PLANS!$N$2:$O$11,2),"") -> 
A15: 23 | B15: 2016-01-01 | C15: 103.2 | E15: A nouveau avance travaux | K15: 10 | L15: =IF(AND(K15>"",A15=""),VLOOKUP(K15,PLANS!$N$2:$O$11,2),"") -> 
A16: 24 | B16: 2016-01-01 | C16: 103.2 | E16: SECLIN | G16: 93.87 | J16: 0 | K16: 10 | L16: =IF(AND(K16>"",A16=""),VLOOKUP(K16,PLANS!$N$2:$O$11,2),"") -> 
A17: 25 | B17: 2016-01-01 | C17: 103.2 | E17: AUDOARD | G17: 120.36 | J17: 0 | K17: 10 | L17: =IF(AND(K17>"",A17=""),VLOOKUP(K17,PLANS!$N$2:$O$11,2),"") -> 
A18: 26 | B18: 2016-01-01 | C18: 103.2 | E18: BERNARDIN | G18: 154.05 | J18: 0 | K18: 10 | L18: =IF(AND(K18>"",A18=""),VLOOKUP(K18,PLANS!$N$2:$O$11,2),"") -> 
A19: 27 | B19: 2016-01-01 | C19: 103.2 | E19: HUBERT | G19: 165.32 | J19: 0 | K19: 10 | L19: =IF(AND(K19>"",A19=""),VLOOKUP(K19,PLANS!$N$2:$O$11,2),"") -> 
A20: 28 | B20: 2016-01-01 | C20: 103.2 | E20: LELIEVRFE | G20: 186.96 | J20: 0 | K20: 10 | L20: =IF(AND(K20>"",A20=""),VLOOKUP(K20,PLANS!$N$2:$O$11,2),"") -> 
A21: 29 | B21: 2016-01-01 | C21: 103.2 | E21: RONDEAU | G21: 79.45 | J21: 0 | K21: 10 | L21: =IF(AND(K21>"",A21=""),VLOOKUP(K21,PLANS!$N$2:$O$11,2),"") -> 
A22: 109 | B22: 2016-02-24 | C22: 103.2 | E22: SECLIN | F22: 93.87 | I22: 0 | K22: 10 | L22: =IF(AND(K22>"",A22=""),VLOOKUP(K22,PLANS!$N$2:$O$11,2),"") -> 
A23: 110 | B23: 2016-02-24 | C23: 103.2 | E23: AUBERT | G23: 93.87 | J23: 0 | K23: 10 | L23: =IF(AND(K23>"",A23=""),VLOOKUP(K23,PLANS!$N$2:$O$11,2),"") -> 
A24: 202 | B24: 2016-05-01 | C24: 103.2 | E24: avance travaux mai | G24: 400 | J24: 0 | K24: 10 | L24: =IF(AND(K24>"",A24=""),VLOOKUP(K24,PLANS!$N$2:$O$11,2),"") -> 
C25: Total 103.2 | F25: =SUBTOTAL(9,F15:F24) -> 93.87 | G25: =SUBTOTAL(9,G15:G24) -> 1293.88 | J25: 1200.01 | L25: =IF(AND(K25>"",A25=""),VLOOKUP(K25,PLANS!$N$2:$O$11,2),"") -> 
F26: =SUBTOTAL(9,F5:F24) -> 210.87 | G26: =SUBTOTAL(9,G5:G24) -> 2410.88 | J26: 2200.01 | K26: Total 10 | L26: =IF(AND(K26>"",A26=""),VLOOKUP(K26,PLANS!$N$2:$O$11,2),"") -> PROVISIONS-SUBV,
A27: 60 | B27: 2016-01-05 | C27: 401.1 | E27: facture VEOLIA eau 177m3 | G27: 794.55 | J27: 0 | K27: 40 | L27: =IF(AND(K27>"",A27=""),VLOOKUP(K27,PLANS!$N$2:$O$11,2),"") -> 
A28: 71 | B28: 2016-01-16 | C28: 401.1 | E28: règlement VEOLIA eau 177m3 | F28: 794.55 | I28: 0 | K28: 40 | L28: =IF(AND(K28>"",A28=""),VLOOKUP(K28,PLANS!$N$2:$O$11,2),"") -> 
A29: 183 | B29: 2016-04-08 | C29: 401.1 | E29: facture VEOLIA eau 148m3 | G29: 644.98 | J29: 0 | K29: 40 | L29: =IF(AND(K29>"",A29=""),VLOOKUP(K29,PLANS!$N$2:$O$11,2),"") -> 
A30: 184 | B30: 2016-04-08 | C30: 401.1 | E30: règlement VEOLIA eau 148m3 | F30: 644.98 | I30: 0 | K30: 40 | L30: =IF(AND(K30>"",A30=""),VLOOKUP(K30,PLANS!$N$2:$O$11,2),"") -> 
C31: Total 401.1 | F31: =SUBTOTAL(9,F27:F30) -> 1439.53 | G31: =SUBTOTAL(9,G27:G30) -> 1439.53 | L31: =IF(AND(K31>"",A31=""),VLOOKUP(K31,PLANS!$N$2:$O$11,2),"") -> 
A32: 139 | B32: 2016-03-29 | C32: 401.2 | E32: facture EDF | G32: 78.25 | J32: 0 | K32: 40 | L32: =IF(AND(K32>"",A32=""),VLOOKUP(K32,PLANS!$N$2:$O$11,2),"") -> 
A33: 140 | B33: 2016-03-29 | C33: 401.2 | E33: règlement EDF | F33: 78.25 | I33: 0 | K33: 40 | L33: =IF(AND(K33>"",A33=""),VLOOKUP(K33,PLANS!$N$2:$O$11,2),"") -> 
C34: Total 401.2 | F34: =SUBTOTAL(9,F32:F33) -> 78.25 | G34: =SUBTOTAL(9,G32:G33) -> 78.25 | L34: =IF(AND(K34>"",A34=""),VLOOKUP(K34,PLANS!$N$2:$O$11,2),"") -> 
A35: 62 | B35: 2016-01-15 | C35: 401.3 | E35: frais CCP | G35: 13.4 | J35: 0 | K35: 40 | L35: =IF(AND(K35>"",A35=""),VLOOKUP(K35,PLANS!$N$2:$O$11,2),"") -> 
A36: 63 | B36: 2016-01-15 | C36: 401.3 | E36: prélèvement CCP | F36: 13.4 | I36: 0 | K36: 40 | L36: =IF(AND(K36>"",A36=""),VLOOKUP(K36,PLANS!$N$2:$O$11,2),"") -> 
A37: 189 | B37: 2016-04-14 | C37: 401.3 | E37: frais CCP | G37: 16.5 | J37: 0 | K37: 40 | L37: =IF(AND(K37>"",A37=""),VLOOKUP(K37,PLANS!$N$2:$O$11,2),"") -> 
A38: 190 | B38: 2016-04-14 | C38: 401.3 | E38: prélèvement CCP | F38: 16.5 | I38: 0 | K38: 40 | L38: =IF(AND(K38>"",A38=""),VLOOKUP(K38,PLANS!$N$2:$O$11,2),"") -> 
C39: Total 401.3 | F39: =SUBTOTAL(9,F35:F38) -> 29.9 | G39: =SUBTOTAL(9,G35:G38) -> 29.9 | L39: =IF(AND(K39>"",A39=""),VLOOKUP(K39,PLANS!$N$2:$O$11,2),"") -> 
A40: 68 | B40: 2016-01-16 | C40: 401.4 | E40: achat de timbres | G40: 9.6 | J40: 0 | K40: 40 | L40: =IF(AND(K40>"",A40=""),VLOOKUP(K40,PLANS!$N$2:$O$11,2),"") -> 
A41: 69 | B41: 2016-01-16 | C41: 401.4 | E41: règlement timbres | F41: 9.6 | I41: 0 | K41: 40 | L41: =IF(AND(K41>"",A41=""),VLOOKUP(K41,PLANS!$N$2:$O$11,2),"") -> 
A42: 173 | B42: 2016-04-01 | C42: 401.4 | E42: achat de timbres | G42: 8 | J42: 0 | K42: 40 | L42: =IF(AND(K42>"",A42=""),VLOOKUP(K42,PLANS!$N$2:$O$11,2),"") -> 
A43: 174 | B43: 2016-04-01 | C43: 401.4 | E43: règlement timbres | F43: 8 | I43: 0 | K43: 40 | L43: =IF(AND(K43>"",A43=""),VLOOKUP(K43,PLANS!$N$2:$O$11,2),"") -> 
A44: 193 | B44: 2016-04-15 | C44: 401.4 | E44: envoi courrier assurance | G44: 2.58 | J44: 0 | K44: 40 | L44: =IF(AND(K44>"",A44=""),VLOOKUP(K44,PLANS!$N$2:$O$11,2),"") -> 
A45: 194 | B45: 2016-04-15 | C45: 401.4 | E45: règlt envoi courrier assurance | F45: 2.58 | I45: 0 | K45: 40 | L45: =IF(AND(K45>"",A45=""),VLOOKUP(K45,PLANS!$N$2:$O$11,2),"") -> 
A46: 212 | B46: 2016-05-06 | C46: 401.4 | E46: envois LR convocs AG | G46: 33.04 | J46: 0 | K46: 40 | L46: =IF(AND(K46>"",A46=""),VLOOKUP(K46,PLANS!$N$2:$O$11,2),"") -> 
A47: 213 | B47: 2015-05-06 | C47: 401.4 | E47: règlt envois LR convocs AG | F47: 33.04 | I47: 0 | K47: 40 | L47: =IF(AND(K47>"",A47=""),VLOOKUP(K47,PLANS!$N$2:$O$11,2),"") -> 
A48: 221 | B48: 2016-05-11 | C48: 401.4 | E48: envoi LR rappel de charges | G48: 5.42 | J48: 0 | K48: 40 | L48: =IF(AND(K48>"",A48=""),VLOOKUP(K48,PLANS!$N$2:$O$11,2),"") -> 
A49: 222 | B49: 2016-05-11 | C49: 401.4 | E49: règlt envoi LR rappel charges | F49: 5.42 | I49: 0 | K49: 40 | L49: =IF(AND(K49>"",A49=""),VLOOKUP(K49,PLANS!$N$2:$O$11,2),"") -> 
C50: Total 401.4 | F50: =SUBTOTAL(9,F40:F49) -> 58.64 | G50: =SUBTOTAL(9,G40:G49) -> 58.64 | L50: =IF(AND(K50>"",A50=""),VLOOKUP(K50,PLANS!$N$2:$O$11,2),"") -> 
A51: 100 | B51: 2016-02-08 | C51: 401.501 | E51: facture assurance immeuble | G51: 278.56 | J51: 0 | K51: 40 | L51: =IF(AND(K51>"",A51=""),VLOOKUP(K51,PLANS!$N$2:$O$11,2),"") -> 
A52: 101 | B52: 2016-02-08 | C52: 401.501 | E52: règlt assurance immeuble | F52: 278.56 | I52: 0 | K52: 40 | L52: =IF(AND(K52>"",A52=""),VLOOKUP(K52,PLANS!$N$2:$O$11,2),"") -> 
A53: 197 | B53: 2016-04-16 | C53: 401.501 | E53: facture assurance immeuble | G53: 595.94 | J53: 0 | K53: 40 | L53: =IF(AND(K53>"",A53=""),VLOOKUP(K53,PLANS!$N$2:$O$11,2),"") -> 
A54: 198 | B54: 2016-04-16 | C54: 401.501 | E54: règlt assurance immeuble | F54: 595.94 | I54: 0 | K54: 40 | L54: =IF(AND(K54>"",A54=""),VLOOKUP(K54,PLANS!$N$2:$O$11,2),"") -> 
A55: 225 | B55: 2016-05-11 | C55: 401.501 | E55: remb trop perçu ass imm | F55: 229.26 | I55: 0 | K55: 40 | L55: =IF(AND(K55>"",A55=""),VLOOKUP(K55,PLANS!$N$2:$O$11,2),"") -> 
A56: 226 | B56: 2016-05-11 | C56: 401.501 | E56: trop perçu ass imm | G56: 229.26 | J56: 0 | K56: 40 | L56: =IF(AND(K56>"",A56=""),VLOOKUP(K56,PLANS!$N$2:$O$11,2),"") -> 
C57: Total 401.501 | F57: =SUBTOTAL(9,F51:F56) -> 1103.76 | G57: =SUBTOTAL(9,G51:G56) -> 1103.76 | L57: =IF(AND(K57>"",A57=""),VLOOKUP(K57,PLANS!$N$2:$O$11,2),"") -> 
A58: 133 | B58: 2016-03-09 | C58: 401.502 | E58: facture assurance ARC | G58: 143 | J58: 0 | K58: 40 | L58: =IF(AND(K58>"",A58=""),VLOOKUP(K58,PLANS!$N$2:$O$11,2),"") ->  | T58: 760.05
A59: 134 | B59: 2016-03-09 | C59: 401.502 | E59: règlement ARC | F59: 143 | I59: 0 | K59: 40 | L59: =IF(AND(K59>"",A59=""),VLOOKUP(K59,PLANS!$N$2:$O$11,2),"") -> 
C60: Total 401.502 | F60: =SUBTOTAL(9,F58:F59) -> 143 | G60: =SUBTOTAL(9,G58:G59) -> 143 | L60: =IF(AND(K60>"",A60=""),VLOOKUP(K60,PLANS!$N$2:$O$11,2),"") -> 
A61: 92 | B61: 2016-02-01 | C61: 401.6 | E61: facture EMN janvier | G61: 177.4 | J61: 0 | K61: 40 | L61: =IF(AND(K61>"",A61=""),VLOOKUP(K61,PLANS!$N$2:$O$11,2),"") -> 
A62: 93 | B62: 2016-02-05 | C62: 401.6 | E62: règlement EMN janvier | F62: 177.4 | I62: 0 | K62: 40 | L62: =IF(AND(K62>"",A62=""),VLOOKUP(K62,PLANS!$N$2:$O$11,2),"") -> 
A63: 178 | B63: 2016-04-05 | C63: 401.6 | E63: facture EMN fevrier | G63: 177.4 | J63: 0 | K63: 40 | L63: =IF(AND(K63>"",A63=""),VLOOKUP(K63,PLANS!$N$2:$O$11,2),"") -> 
A64: 181 | B64: 2016-04-05 | C64: 401.6 | E64: facture EMN mars | G64: 177.4 | J64: 0 | K64: 40 | L64: =IF(AND(K64>"",A64=""),VLOOKUP(K64,PLANS!$N$2:$O$11,2),"") -> 
A65: 209 | B65: 2016-05-01 | C65: 401.6 | E65: règlement EMN fevrier mars | F65: 354.8 | I65: 0 | K65: 40 | L65: =IF(AND(K65>"",A65=""),VLOOKUP(K65,PLANS!$N$2:$O$11,2),"") -> 
A66: 217 | B66: 2016-05-09 | C66: 401.6 | E66: facture EMN avril | G66: 177.4 | J66: 0 | K66: 40 | L66: =IF(AND(K66>"",A66=""),VLOOKUP(K66,PLANS!$N$2:$O$11,2),"") -> 
A67: 218 | B67: 2016-05-09 | C67: 401.6 | E67: règlement EMN avril | F67: 177.4 | I67: 0 | K67: 40 | L67: =IF(AND(K67>"",A67=""),VLOOKUP(K67,PLANS!$N$2:$O$11,2),"") -> 
C68: Total 401.6 | F68: =SUBTOTAL(9,F61:F67) -> 709.6 | G68: =SUBTOTAL(9,G61:G67) -> 709.6 | L68: =IF(AND(K68>"",A68=""),VLOOKUP(K68,PLANS!$N$2:$O$11,2),"") -> 
A69: 96 | B69: 2016-02-08 | C69: 401.7 | E69: facture fournitures compta | G69: 77.98 | J69: 0 | K69: 40 | L69: =IF(AND(K69>"",A69=""),VLOOKUP(K69,PLANS!$N$2:$O$11,2),"") -> 
A70: 97 | B70: 2016-02-08 | C70: 401.7 | E70: règlt fournitures compta | F70: 77.98 | I70: =IF(F70>G70,(F70-G70)*(A70=0),"") -> 0 | J70: =IF(G70>F70,(G70-F70)*(A70=0),"") ->  | K70: 40 | L70: =IF(AND(K70>"",A70=""),VLOOKUP(K70,PLANS!$N$2:$O$11,2),"") -> 
A71: 129 | B71: 2016-03-09 | C71: 401.7 | E71: facture fournitures compta | G71: 5.08 | J71: 0 | K71: 40 | L71: =IF(AND(K71>"",A71=""),VLOOKUP(K71,PLANS!$N$2:$O$11,2),"") -> 
A72: 130 | B72: 2016-03-09 | C72: 401.7 | E72: règlt fournitures compta | F72: 5.08 | I72: 0 | K72: 40 | L72: =IF(AND(K72>"",A72=""),VLOOKUP(K72,PLANS!$N$2:$O$11,2),"") -> 
A73: 143 | B73: 2016-03-31 | C73: 401.7 | E73: facture carnet entretien imm | G73: 5 | J73: 0 | K73: 40 | L73: =IF(AND(K73>"",A73=""),VLOOKUP(K73,PLANS!$N$2:$O$11,2),"") -> 
A74: 144 | B74: 2016-03-31 | C74: 401.7 | E74: règlt carnet entretien imm | F74: 5 | I74: 0 | K74: 40 | L74: =IF(AND(K74>"",A74=""),VLOOKUP(K74,PLANS!$N$2:$O$11,2),"") ->  | T74: 13.4
C75: Total 401.7 | F75: =SUBTOTAL(9,F69:F74) -> 88.06 | G75: =SUBTOTAL(9,G69:G74) -> 88.06 | L75: =IF(AND(K75>"",A75=""),VLOOKUP(K75,PLANS!$N$2:$O$11,2),"") -> 
A76: 48 | B76: 2016-01-02 | C76: 401.8 | E76: facture DUBOIS | G76: 740.05 | J76: 0 | K76: 40 | L76: =IF(AND(K76>"",A76=""),VLOOKUP(K76,PLANS!$N$2:$O$11,2),"") -> 
A77: 49 | B77: 2016-01-02 | C77: 401.8 | E77: règlt Fact,DUBOIS | F77: 760.05 | I77: 0 | K77: 40 | L77: =IF(AND(K77>"",A77=""),VLOOKUP(K77,PLANS!$N$2:$O$11,2),"") -> 
A78: 87 | B78: 2016-02-01 | C78: 401.8 | E78: facture DUBOIS | G78: 740.05 | J78: 0 | K78: 40 | L78: =IF(AND(K78>"",A78=""),VLOOKUP(K78,PLANS!$N$2:$O$11,2),"") -> 
A79: 88 | B79: 2016-02-01 | C79: 401.8 | E79: règlt tact,DUBOIS | F79: 760.05 | I79: 0 | K79: 40 | L79: =IF(AND(K79>"",A79=""),VLOOKUP(K79,PLANS!$N$2:$O$11,2),"") -> 
A80: 119 | B80: 2016-03-01 | C80: 401.8 | E80: facture DUBOIS | G80: 740.05 | J80: 0 | K80: 40 | L80: =IF(AND(K80>"",A80=""),VLOOKUP(K80,PLANS!$N$2:$O$11,2),"") -> 
A81: 120 | B81: 2016-03-01 | C81: 401.8 | E81: règlt fact,DUBOIS | F81: 720.05 | I81: 0 | K81: 40 | L81: =IF(AND(K81>"",A81=""),VLOOKUP(K81,PLANS!$N$2:$O$11,2),"") -> 
A82: 161 | B82: 2016-04-01 | C82: 401.8 | E82: facture DUBOIS | G82: 740.05 | J82: 0 | K82: 40 | L82: =IF(AND(K82>"",A82=""),VLOOKUP(K82,PLANS!$N$2:$O$11,2),"") -> 
A83: 162 | B83: 2016-04-01 | C83: 401.8 | E83: règlt fact,DUBOIS | F83: 720.05 | I83: 0 | K83: 40 | L83: =IF(AND(K83>"",A83=""),VLOOKUP(K83,PLANS!$N$2:$O$11,2),"") ->  | T83: 794.55
C84: Total 401.8 | F84: =SUBTOTAL(9,F76:F83) -> 2960.2 | G84: =SUBTOTAL(9,G76:G83) -> 2960.2 | L84: =IF(AND(K84>"",A84=""),VLOOKUP(K84,PLANS!$N$2:$O$11,2),"") -> 
A85: 13 | B85: 2016-01-01 | C85: 408.1 | E85: A nouveau eau 167m3 | G85: 749.66 | J85: 0 | K85: 40 | L85: =IF(AND(K85>"",A85=""),VLOOKUP(K85,PLANS!$N$2:$O$11,2),"") -> 
A86: 14 | B86: 2016-01-01 | C86: 408.1 | E86: reprise eau 167m3 | F86: 749.66 | I86: 0 | K86: 40 | L86: =IF(AND(K86>"",A86=""),VLOOKUP(K86,PLANS!$N$2:$O$11,2),"") -> 
C87: Total 408.1 | F87: =SUBTOTAL(9,F85:F86) -> 749.66 | G87: =SUBTOTAL(9,G85:G86) -> 749.66 | L87: =IF(AND(K87>"",A87=""),VLOOKUP(K87,PLANS!$N$2:$O$11,2),"") -> 
F88: =SUBTOTAL(9,F27:F86) -> 7360.6 | G88: =SUBTOTAL(9,G27:G86) -> 7360.6 | K88: Total 40 | L88: =IF(AND(K88>"",A88=""),VLOOKUP(K88,PLANS!$N$2:$O$11,2),"") -> FOURNISSEURS
A89: 228 | B89: 2016-06-22 | C89: 409 | E89: Acompte VERNEUIL | F89: 1000 | I89: 0 | K89: 41 | L89: =IF(AND(K89>"",A89=""),VLOOKUP(K89,PLANS!$N$2:$O$11,2),"") -> 
C90: Total 409 | F90: =SUBTOTAL(9,F89:F89) -> 1000 | G90: =SUBTOTAL(9,G89:G89) -> 0 | I90: 1000 | L90: =IF(AND(K90>"",A90=""),VLOOKUP(K90,PLANS!$N$2:$O$11,2),"") -> 
F91: =SUBTOTAL(9,F89:F89) -> 1000 | G91: =SUBTOTAL(9,G89:G89) -> 0 | I91: 1000 | K91: Total 41 | L91: =IF(AND(K91>"",A91=""),VLOOKUP(K91,PLANS!$N$2:$O$11,2),"") -> FOURN.DEBITEURS
A92: 3 | B92: 2016-01-01 | C92: 450.01 | E92: A nouveau AUBERT | G92: 314.25 | J92: 0 | K92: 45 | L92: =IF(AND(K92>"",A92=""),VLOOKUP(K92,PLANS!$N$2:$O$11,2),"") -> 
A93: 34 | B93: 2016-01-01 | C93: 450.01 | E93: appel 1er trim AUBERT | F93: 254.17 | I93: 0 | K93: 45 | L93: =IF(AND(K93>"",A93=""),VLOOKUP(K93,PLANS!$N$2:$O$11,2),"") -> 
A94: 41 | B94: 2016-01-01 | C94: 450.01 | E94: 1er appel trav,peint, AUBERT | F94: 86.59 | I94: 0 | K94: 45 | L94: =IF(AND(K94>"",A94=""),VLOOKUP(K94,PLANS!$N$2:$O$11,2),"") -> 
A95: 55 | B95: 2016-01-04 | C95: 450.01 | E95: règlement AUBERT | G95: 66.27 | J95: 0 | K95: 45 | L95: =IF(AND(K95>"",A95=""),VLOOKUP(K95,PLANS!$N$2:$O$11,2),"") -> 
A96: 76 | B96: 2016-02-01 | C96: 450.01 | E96: 2è appel trav,peint,AUBERT | F96: 86.59 | I96: 0 | K96: 45 | L96: =IF(AND(K96>"",A96=""),VLOOKUP(K96,PLANS!$N$2:$O$11,2),"") -> 
A97: 84 | B97: 2016-02-01 | C97: 450.01 | E97: règlement AUBERT | G97: 46.83 | J97: 0 | K97: 45 | L97: =IF(AND(K97>"",A97=""),VLOOKUP(K97,PLANS!$N$2:$O$11,2),"") -> 
A98: 105 | B98: 2016-02-24 | C98: 450.01 | E98: règlement AUBERT | G98: 86.59 | J98: 0 | K98: 45 | L98: =IF(AND(K98>"",A98=""),VLOOKUP(K98,PLANS!$N$2:$O$11,2),"") -> 
A99: 112 | B99: 2016-03-01 | C99: 450.01 | E99: 3è appel trav,peint,AUBERT | F99: 86.59 | I99: 0 | K99: 45 | L99: =IF(AND(K99>"",A99=""),VLOOKUP(K99,PLANS!$N$2:$O$11,2),"") -> 
A100: 147 | B100: 2016-04-01 | C100: 450.01 | E100: 4è appel trav,peint,AUBERT | F100: 86.59 | I100: 0 | K100: 45 | L100: =IF(AND(K100>"",A100=""),VLOOKUP(K100,PLANS!$N$2:$O$11,2),"") -> 
A101: 154 | B101: 2016-04-01 | C101: 450.01 | E101: appel prov 2è trim AUBERT | F101: 218.89 | I101: 0 | K101: 45 | L101: =IF(AND(K101>"",A101=""),VLOOKUP(K101,PLANS!$N$2:$O$11,2),"") -> 
A102: 166 | B102: 2016-04-01 | C102: 450.01 | E102: règlement AUBERT | G102: 86.59 | J102: 0 | K102: 45 | L102: =IF(AND(K102>"",A102=""),VLOOKUP(K102,PLANS!$N$2:$O$11,2),"") -> 
A103: 168 | B103: 2016-04-01 | C103: 450.01 | E103: règlement AUBERT | G103: 218.89 | J103: 0 | K103: 45 | L103: =IF(AND(K103>"",A103=""),VLOOKUP(K103,PLANS!$N$2:$O$11,2),"") -> 
A104: 203 | B104: 2016-05-01 | C104: 450.01 | E104: av travx mai AUBERT | F104: 46.94 | I104: 0 | K104: 45 | L104: =IF(AND(K104>"",A104=""),VLOOKUP(K104,PLANS!$N$2:$O$11,2),"") -> 
C105: Total 450.01 | F105: =SUBTOTAL(9,F92:F104) -> 866.36 | G105: =SUBTOTAL(9,G92:G104) -> 819.42 | I105: 46.94 | L105: =IF(AND(K105>"",A105=""),VLOOKUP(K105,PLANS!$N$2:$O$11,2),"") -> 
A106: 8 | B106: 2016-01-01 | C106: 450.02 | E106: A nouveau AUDIARD | F106: 133.38 | I106: 0 | K106: 45 | L106: =IF(AND(K106>"",A106=""),VLOOKUP(K106,PLANS!$N$2:$O$11,2),"") ->  | T106: 760.05
A107: 35 | B107: 2016-01-01 | C107: 450.02 | E107: appel 1er trim AUDIARD | F107: 188.21 | I107: 0 | K107: 45 | L107: =IF(AND(K107>"",A107=""),VLOOKUP(K107,PLANS!$N$2:$O$11,2),"") -> 
A108: 42 | B108: 2016-01-01 | C108: 450.02 | E108: 1er appel trav,peint, AUDIARD | F108: 111.01 | I108: 0 | K108: 45 | L108: =IF(AND(K108>"",A108=""),VLOOKUP(K108,PLANS!$N$2:$O$11,2),"") -> 
A109: 57 | B109: 2016-01-04 | C109: 450.02 | E109: règlement AUDIARD | G109: 321 | J109: 0 | K109: 45 | L109: =IF(AND(K109>"",A109=""),VLOOKUP(K109,PLANS!$N$2:$O$11,2),"") -> 
A110: 70 | B110: 2016-01-16 | C110: 450.02 | E110: règlement timbres | G110: 9.6 | J110: 0 | K110: 45 | L110: =IF(AND(K110>"",A110=""),VLOOKUP(K110,PLANS!$N$2:$O$11,2),"") -> 
A111: 77 | B111: 2016-02-01 | C111: 450.02 | E111: 2è appel trav,peint,AUDIARD | F111: 111.01 | I111: 0 | K111: 45 | L111: =IF(AND(K111>"",A111=""),VLOOKUP(K111,PLANS!$N$2:$O$11,2),"") ->  | T111: 177.4
A112: 82 | B112: 2016-02-01 | C112: 450.02 | E112: règlement AUDIARD | G112: 213.01 | J112: 0 | K112: 45 | L112: =IF(AND(K112>"",A112=""),VLOOKUP(K112,PLANS!$N$2:$O$11,2),"") -> 
A113: 98 | B113: 2016-02-08 | C113: 450.02 | E113: règlt fournitures compta | G113: 77.98 | J113: 0 | K113: 45 | L113: =IF(AND(K113>"",A113=""),VLOOKUP(K113,PLANS!$N$2:$O$11,2),"") -> 
A114: 113 | B114: 2016-03-01 | C114: 450.02 | E114: 3è appel trav,peint,AUDIARD | F114: 111.01 | I114: 0 | K114: 45 | L114: =IF(AND(K114>"",A114=""),VLOOKUP(K114,PLANS!$N$2:$O$11,2),"") -> 
A115: 131 | B115: 2016-03-09 | C115: 450.02 | E115: règlt fournitures compta | G115: 5.08 | J115: 0 | K115: 45 | L115: =IF(AND(K115>"",A115=""),VLOOKUP(K115,PLANS!$N$2:$O$11,2),"") -> 
A116: 148 | B116: 2016-04-01 | C116: 450.02 | E116: 4è appel trav,peint,AUDIARD | F116: 111.01 | I116: 0 | K116: 45 | L116: =IF(AND(K116>"",A116=""),VLOOKUP(K116,PLANS!$N$2:$O$11,2),"") -> 
A117: 155 | B117: 2016-04-01 | C117: 450.02 | E117: appel prov 2è trim AUDIARD | F117: 183.15 | I117: 0 | K117: 45 | L117: =IF(AND(K117>"",A117=""),VLOOKUP(K117,PLANS!$N$2:$O$11,2),"") -> 
A118: 164 | B118: 2016-04-01 | C118: 450.02 | E118: règlement AUDIARD | G118: 323 | J118: 0 | K118: 45 | L118: =IF(AND(K118>"",A118=""),VLOOKUP(K118,PLANS!$N$2:$O$11,2),"") -> 
A119: 175 | B119: 2016-04-01 | C119: 450.02 | E119: règlement timbres | G119: 8 | J119: 0 | K119: 45 | L119: =IF(AND(K119>"",A119=""),VLOOKUP(K119,PLANS!$N$2:$O$11,2),"") ->  | T119: 278.56
A120: 195 | B120: 2016-04-15 | C120: 450.02 | E120: règlt envoi courrier assurance | G120: 2.58 | J120: 0 | K120: 45 | L120: =IF(AND(K120>"",A120=""),VLOOKUP(K120,PLANS!$N$2:$O$11,2),"") -> 
A121: 204 | B121: 2016-05-01 | C121: 450.02 | E121: av travx mai AUDIARD | F121: 60.18 | I121: 0 | K121: 45 | L121: =IF(AND(K121>"",A121=""),VLOOKUP(K121,PLANS!$N$2:$O$11,2),"") -> 
A122: 214 | B122: 2015-05-06 | C122: 450.02 | E122: règlt envois LR convocs AG | G122: 33.04 | J122: 0 | K122: 45 | L122: =IF(AND(K122>"",A122=""),VLOOKUP(K122,PLANS!$N$2:$O$11,2),"") -> 
A123: 223 | B123: 2016-05-11 | C123: 450.02 | E123: règlt envoi LR rappel charges | G123: 5.42 | J123: 0 | K123: 45 | L123: =IF(AND(K123>"",A123=""),VLOOKUP(K123,PLANS!$N$2:$O$11,2),"") -> 
C124: Total 450.02 | F124: =SUBTOTAL(9,F106:F123) -> 1008.96 | G124: =SUBTOTAL(9,G106:G123) -> 998.71 | I124: 10.25 | L124: =IF(AND(K124>"",A124=""),VLOOKUP(K124,PLANS!$N$2:$O$11,2),"") -> 
A125: 9 | B125: 2016-01-01 | C125: 450.03 | E125: A nouveau BERFNARDIN | F125: 80.13 | I125: 0 | K125: 45 | L125: =IF(AND(K125>"",A125=""),VLOOKUP(K125,PLANS!$N$2:$O$11,2),"") -> 
A126: 36 | B126: 2016-01-01 | C126: 450.03 | E126: appel 1er trim BERNARDIN | F126: 131.11 | I126: 0 | K126: 45 | L126: =IF(AND(K126>"",A126=""),VLOOKUP(K126,PLANS!$N$2:$O$11,2),"") -> 
A127: 43 | B127: 2016-01-01 | C127: 450.03 | E127: 1er appel trav;pein, BERNARDIN | F127: 144.31 | I127: 0 | K127: 45 | L127: =IF(AND(K127>"",A127=""),VLOOKUP(K127,PLANS!$N$2:$O$11,2),"") -> 
A128: 53 | B128: 2016-01-04 | C128: 450.03 | E128: règlement BERNARDIN | G128: 577.24 | J128: 0 | K128: 45 | L128: =IF(AND(K128>"",A128=""),VLOOKUP(K128,PLANS!$N$2:$O$11,2),"") -> 
A129: 78 | B129: 2016-02-01 | C129: 450.03 | E129: 2è appel trav,peint,BENHARDIN | F129: 144.31 | I129: 0 | K129: 45 | L129: =IF(AND(K129>"",A129=""),VLOOKUP(K129,PLANS!$N$2:$O$11,2),"") -> 
A130: 114 | B130: 2016-03-01 | C130: 450.03 | E130: 3è appel trav,peint,BENHARDIN | F130: 144.31 | I130: 0 | K130: 45 | L130: =IF(AND(K130>"",A130=""),VLOOKUP(K130,PLANS!$N$2:$O$11,2),"") -> 
A131: 126 | B131: 2016-03-01 | C131: 450.03 | E131: règlement BERNARDIN | G131: 66.93 | J131: 0 | K131: 45 | L131: =IF(AND(K131>"",A131=""),VLOOKUP(K131,PLANS!$N$2:$O$11,2),"") -> 
A132: 149 | B132: 2016-04-01 | C132: 450.03 | E132: 4è appel trav,peint,BERNARDIN | F132: 144.31 | I132: 0 | K132: 45 | L132: =IF(AND(K132>"",A132=""),VLOOKUP(K132,PLANS!$N$2:$O$11,2),"") -> 
A133: 156 | B133: 2016-04-01 | C133: 450.03 | E133: appel prov 2è trim BERNARDIN | F133: 131.11 | I133: 0 | K133: 45 | L133: =IF(AND(K133>"",A133=""),VLOOKUP(K133,PLANS!$N$2:$O$11,2),"") -> 
A134: 170 | B134: 2016-04-01 | C134: 450.03 | E134: règlement BERNARDIN | G134: 275.42 | I134: =IF(F134>G134,(F134-G134)*(A134=0),"") ->  | J134: =IF(G134>F134,(G134-F134)*(A134=0),"") -> 0 | K134: 45 | L134: =IF(AND(K134>"",A134=""),VLOOKUP(K134,PLANS!$N$2:$O$11,2),"") -> 
A135: 205 | B135: 2016-05-01 | C135: 450.03 | E135: av travx mai BERNARDIN | F135: 77.03 | I135: 0 | K135: 45 | L135: =IF(AND(K135>"",A135=""),VLOOKUP(K135,PLANS!$N$2:$O$11,2),"") -> 
C136: Total 450.03 | F136: =SUBTOTAL(9,F125:F135) -> 996.62 | G136: =SUBTOTAL(9,G125:G135) -> 919.59 | I136: 77.03 | L136: =IF(AND(K136>"",A136=""),VLOOKUP(K136,PLANS!$N$2:$O$11,2),"") -> 
A137: 10 | B137: 2016-01-01 | C137: 450.05 | E137: A nouveau HUBERT | F137: 551.11 | I137: 0 | K137: 45 | L137: =IF(AND(K137>"",A137=""),VLOOKUP(K137,PLANS!$N$2:$O$11,2),"") -> 
A138: 37 | B138: 2016-01-01 | C138: 450.05 | E138: appel 1er trim HU BERT | F138: 376.64 | I138: 0 | K138: 45 | L138: =IF(AND(K138>"",A138=""),VLOOKUP(K138,PLANS!$N$2:$O$11,2),"") -> 
A139: 44 | B139: 2016-01-01 | C139: 450.05 | E139: 1er appel trav,peint,HUBERT | F139: 152.45 | I139: 0 | K139: 45 | L139: =IF(AND(K139>"",A139=""),VLOOKUP(K139,PLANS!$N$2:$O$11,2),"") -> 
A140: 51 | B140: 2016-01-04 | C140: 450.05 | E140: règlement HUBERT | G140: 609.8 | J140: 0 | K140: 45 | L140: =IF(AND(K140>"",A140=""),VLOOKUP(K140,PLANS!$N$2:$O$11,2),"") ->  | T140: 720.05
A141: 73 | B141: 2016-01-16 | C141: 450.05 | E141: règlement HUBERT | G141: 78.4 | J141: 0 | K141: 45 | L141: =IF(AND(K141>"",A141=""),VLOOKUP(K141,PLANS!$N$2:$O$11,2),"") -> 
A142: 79 | B142: 2016-02-01 | C142: 450.05 | E142: 2è appel trav;peint, HUBERT | F142: 152.45 | I142: 0 | K142: 45 | L142: =IF(AND(K142>"",A142=""),VLOOKUP(K142,PLANS!$N$2:$O$11,2),"") -> 
A143: 115 | B143: 2016-03-01 | C143: 450.05 | E143: 3è appel trav,peint,HUBERT | F143: 152.45 | I143: 0 | K143: 45 | L143: =IF(AND(K143>"",A143=""),VLOOKUP(K143,PLANS!$N$2:$O$11,2),"") -> 
A144: 122 | B144: 2016-03-01 | C144: 450.05 | E144: règlement HUBERT | G144: 146.9 | J144: 0 | K144: 45 | L144: =IF(AND(K144>"",A144=""),VLOOKUP(K144,PLANS!$N$2:$O$11,2),"") -> 
A145: 124 | B145: 2016-03-01 | C145: 450.05 | E145: règlement HUBERT | G145: 550 | J145: 0 | K145: 45 | L145: =IF(AND(K145>"",A145=""),VLOOKUP(K145,PLANS!$N$2:$O$11,2),"") -> 
A146: 150 | B146: 2016-04-01 | C146: 450.05 | E146: 4è appel trav:peint,HUBERT | F146: 152.45 | I146: 0 | K146: 45 | L146: =IF(AND(K146>"",A146=""),VLOOKUP(K146,PLANS!$N$2:$O$11,2),"") -> 
A147: 157 | B147: 2016-04-01 | C147: 450.05 | E147: appel prov 2è trim HUBERT | F147: 423.01 | I147: 0 | K147: 45 | L147: =IF(AND(K147>"",A147=""),VLOOKUP(K147,PLANS!$N$2:$O$11,2),"") -> 
A148: 200 | B148: 2016-04-18 | C148: 450.05 | E148: règlement HUBERT | G148: 575.46 | J148: 0 | K148: 45 | L148: =IF(AND(K148>"",A148=""),VLOOKUP(K148,PLANS!$N$2:$O$11,2),"") -> 
A149: 206 | B149: 2016-05-01 | C149: 450.05 | E149: av travx mai HUBERT | F149: 82.65 | I149: 0 | K149: 45 | L149: =IF(AND(K149>"",A149=""),VLOOKUP(K149,PLANS!$N$2:$O$11,2),"") -> 
C150: Total 450.05 | F150: =SUBTOTAL(9,F137:F149) -> 2043.21 | G150: =SUBTOTAL(9,G137:G149) -> 1960.56 | I150: 82.65 | L150: =IF(AND(K150>"",A150=""),VLOOKUP(K150,PLANS!$N$2:$O$11,2),"") -> 
A151: 11 | B151: 2016-01-01 | C151: 450.06 | E151: A nouveau LELIEVRE | F151: 73.02 | I151: 0 | K151: 45 | L151: =IF(AND(K151>"",A151=""),VLOOKUP(K151,PLANS!$N$2:$O$11,2),"") -> 
A152: 38 | B152: 2016-01-01 | C152: 450.06 | E152: appel 1er trim LELIEVRE | F152: 298.09 | I152: 0 | K152: 45 | L152: =IF(AND(K152>"",A152=""),VLOOKUP(K152,PLANS!$N$2:$O$11,2),"") -> 
A153: 45 | B153: 2016-01-01 | C153: 450.06 | E153: 1er appel trav,peint, LELIEVRE | F153: 172.43 | I153: 0 | K153: 45 | L153: =IF(AND(K153>"",A153=""),VLOOKUP(K153,PLANS!$N$2:$O$11,2),"") -> 
A154: 80 | B154: 2016-02-01 | C154: 450.06 | E154: 2è appel trav,peint,LELIEVRE | F154: 172.43 | I154: 0 | K154: 45 | L154: =IF(AND(K154>"",A154=""),VLOOKUP(K154,PLANS!$N$2:$O$11,2),"") -> 
A155: 103 | B155: 2016-02-09 | C155: 450.06 | E155: règlement | G155: 715.97 | J155: 0 | K155: 45 | L155: =IF(AND(K155>"",A155=""),VLOOKUP(K155,PLANS!$N$2:$O$11,2),"") ->  | T155: 143
A156: 116 | B156: 2016-03-01 | C156: 450.06 | E156: 3è appel trav,peint,LELIEVRE | F156: 172.43 | I156: 0 | K156: 45 | L156: =IF(AND(K156>"",A156=""),VLOOKUP(K156,PLANS!$N$2:$O$11,2),"") -> 
A157: 136 | B157: 2016-03-18 | C157: 450.06 | E157: règlement LELIEVRE | G157: 172.43 | J157: 0 | K157: 45 | L157: =IF(AND(K157>"",A157=""),VLOOKUP(K157,PLANS!$N$2:$O$11,2),"") -> 
A158: 151 | B158: 2016-04-01 | C158: 450.06 | E158: 4è appel trav,peint,LELIEVRE | F158: 172.43 | I158: 0 | K158: 45 | L158: =IF(AND(K158>"",A158=""),VLOOKUP(K158,PLANS!$N$2:$O$11,2),"") -> 
A159: 158 | B159: 2016-04-01 | C159: 450.06 | E159: appel prov 2è trim LELIEVRE | F159: 291.69 | I159: 0 | K159: 45 | L159: =IF(AND(K159>"",A159=""),VLOOKUP(K159,PLANS!$N$2:$O$11,2),"") -> 
A160: 186 | B160: 2016-04-12 | C160: 450.06 | E160: règlement LELIEVRE | G160: 464.12 | J160: 0 | K160: 45 | L160: =IF(AND(K160>"",A160=""),VLOOKUP(K160,PLANS!$N$2:$O$11,2),"") -> 
A161: 207 | B161: 2016-05-01 | C161: 450.06 | E161: av travx mai LELIEVRE | F161: 93.48 | I161: 0 | K161: 45 | L161: =IF(AND(K161>"",A161=""),VLOOKUP(K161,PLANS!$N$2:$O$11,2),"") ->  | T161: 78.25
C162: Total 450.06 | F162: =SUBTOTAL(9,F151:F161) -> 1446 | G162: =SUBTOTAL(9,G151:G161) -> 1352.52 | I162: 93.48 | L162: =IF(AND(K162>"",A162=""),VLOOKUP(K162,PLANS!$N$2:$O$11,2),"") -> 
A163: 12 | B163: 2016-01-01 | C163: 450.07 | E163: A nouveau RONDEAU | F163: 235.43 | I163: 0 | K163: 45 | L163: =IF(AND(K163>"",A163=""),VLOOKUP(K163,PLANS!$N$2:$O$11,2),"") -> 
A164: 39 | B164: 2016-01-01 | C164: 450.07 | E164: appel 1er trim RONDEAU | F164: 201.79 | I164: 0 | K164: 45 | L164: =IF(AND(K164>"",A164=""),VLOOKUP(K164,PLANS!$N$2:$O$11,2),"") -> 
A165: 46 | B165: 2016-01-01 | C165: 450.07 | E165: 1er appel trav,peint, RONDEAU | F165: 73.26 | I165: 0 | K165: 45 | L165: =IF(AND(K165>"",A165=""),VLOOKUP(K165,PLANS!$N$2:$O$11,2),"") -> 
A166: 65 | B166: 2016-01-16 | C166: 450.07 | E166: règlement RONDEAU | G166: 335.87 | J166: 0 | K166: 45 | L166: =IF(AND(K166>"",A166=""),VLOOKUP(K166,PLANS!$N$2:$O$11,2),"") ->  | T166: 5
A167: 81 | B167: 2016-02-01 | C167: 450.07 | E167: 2è appel trav,pezint,RONDEAU | F167: 73.26 | I167: 0 | K167: 45 | L167: =IF(AND(K167>"",A167=""),VLOOKUP(K167,PLANS!$N$2:$O$11,2),"") -> 
A168: 117 | B168: 2016-03-01 | C168: 450.07 | E168: 3è appel trav,peint,RONDEAU | F168: 73.26 | I168: 0 | K168: 45 | L168: =IF(AND(K168>"",A168=""),VLOOKUP(K168,PLANS!$N$2:$O$11,2),"") -> 
A169: 152 | B169: 2016-04-01 | C169: 450.07 | E169: 4è appel trav,peint,RONDEAU | F169: 73.26 | I169: 0 | K169: 45 | L169: =IF(AND(K169>"",A169=""),VLOOKUP(K169,PLANS!$N$2:$O$11,2),"") -> 
A170: 159 | B170: 2016-04-01 | C170: 450.07 | E170: appel prov 2è trim RONDEAU | F170: 202.15 | I170: 0 | K170: 45 | L170: =IF(AND(K170>"",A170=""),VLOOKUP(K170,PLANS!$N$2:$O$11,2),"") -> 
A171: 208 | B171: 2016-05-01 | C171: 450.07 | E171: av travx mai RONDEAU | F171: 39.72 | I171: 0 | K171: 45 | L171: =IF(AND(K171>"",A171=""),VLOOKUP(K171,PLANS!$N$2:$O$11,2),"") -> 
C172: Total 450.07 | F172: =SUBTOTAL(9,F163:F171) -> 972.13 | G172: =SUBTOTAL(9,G163:G171) -> 335.87 | I172: 636.26 | L172: =IF(AND(K172>"",A172=""),VLOOKUP(K172,PLANS!$N$2:$O$11,2),"") -> 
F173: =SUBTOTAL(9,F92:F171) -> 7333.28 | G173: =SUBTOTAL(9,G92:G171) -> 6386.67 | I173: 946.61 | K173: Total 45 | L173: =IF(AND(K173>"",A173=""),VLOOKUP(K173,PLANS!$N$2:$O$11,2),"") -> COPROPRIETAIRES
A174: 30 | B174: 2016-01-01 | C174: 471 | E174: A nouveau écart de répartition | F174: 0.01 | I174: 0 | K174: 48 | L174: =IF(AND(K174>"",A174=""),VLOOKUP(K174,PLANS!$N$2:$O$11,2),"") -> 
A175: 31 | B175: 2016-01-01 | C175: 471 | E175: régul écart de répartition | G175: 0.01 | J175: 0 | K175: 48 | L175: =IF(AND(K175>"",A175=""),VLOOKUP(K175,PLANS!$N$2:$O$11,2),"") -> 
C176: Total 471 | F176: =SUBTOTAL(9,F174:F175) -> 0.01 | G176: =SUBTOTAL(9,G174:G175) -> 0.01 | L176: =IF(AND(K176>"",A176=""),VLOOKUP(K176,PLANS!$N$2:$O$11,2),"") -> 
F177: =SUBTOTAL(9,F174:F175) -> 0.01 | G177: =SUBTOTAL(9,G174:G175) -> 0.01 | K177: Total 48 | L177: =IF(AND(K177>"",A177=""),VLOOKUP(K177,PLANS!$N$2:$O$11,2),"") -> DEBITEURS DIVERS
A178: 2 | B178: 2016-01-01 | C178: 512 | E178: A nouveau | F178: 1790.84 | I178: 0 | K178: 50 | L178: =IF(AND(K178>"",A178=""),VLOOKUP(K178,PLANS!$N$2:$O$11,2),"") -> 
A179: 50 | B179: 2016-01-02 | C179: 512 | E179: règlt Fact,DUBOIS | G179: 760.05 | J179: 0 | K179: 50 | L179: =IF(AND(K179>"",A179=""),VLOOKUP(K179,PLANS!$N$2:$O$11,2),"") -> 
A180: 52 | B180: 2016-01-04 | C180: 512 | E180: règlement HUGNET | F180: 609.8 | I180: 0 | K180: 50 | L180: =IF(AND(K180>"",A180=""),VLOOKUP(K180,PLANS!$N$2:$O$11,2),"") -> 
A181: 54 | B181: 2016-01-04 | C181: 512 | E181: règlement BENHARROSH | F181: 577.24 | I181: 0 | K181: 50 | L181: =IF(AND(K181>"",A181=""),VLOOKUP(K181,PLANS!$N$2:$O$11,2),"") -> 
A182: 56 | B182: 2016-01-04 | C182: 512 | E182: règlement ORTEGA | F182: 66.27 | I182: 0 | K182: 50 | L182: =IF(AND(K182>"",A182=""),VLOOKUP(K182,PLANS!$N$2:$O$11,2),"") -> 
A183: 58 | B183: 2016-01-04 | C183: 512 | E183: règlement AUDRAIN | F183: 321 | I183: 0 | K183: 50 | L183: =IF(AND(K183>"",A183=""),VLOOKUP(K183,PLANS!$N$2:$O$11,2),"") -> 
A184: 64 | B184: 2016-01-15 | C184: 512 | E184: prèlèvement CCP | G184: 13.4 | J184: 0 | K184: 50 | L184: =IF(AND(K184>"",A184=""),VLOOKUP(K184,PLANS!$N$2:$O$11,2),"") -> 
A185: 66 | B185: 2016-01-16 | C185: 512 | E185: règlement RODIER | F185: 335.87 | I185: 0 | K185: 50 | L185: =IF(AND(K185>"",A185=""),VLOOKUP(K185,PLANS!$N$2:$O$11,2),"") -> 
A186: 72 | B186: 2016-01-16 | C186: 512 | E186: règlement VEOLIA eau 177m3 | G186: 794.55 | J186: 0 | K186: 50 | L186: =IF(AND(K186>"",A186=""),VLOOKUP(K186,PLANS!$N$2:$O$11,2),"") -> 
A187: 74 | B187: 2016-01-16 | C187: 512 | E187: règlement HUGNET | F187: 78.4 | I187: 0 | K187: 50 | L187: =IF(AND(K187>"",A187=""),VLOOKUP(K187,PLANS!$N$2:$O$11,2),"") -> 
A188: 83 | B188: 2016-02-01 | C188: 512 | E188: règlement AUDRAIN | F188: 213.01 | I188: 0 | K188: 50 | L188: =IF(AND(K188>"",A188=""),VLOOKUP(K188,PLANS!$N$2:$O$11,2),"") ->  | T188: 720.05
A189: 85 | B189: 2016-02-01 | C189: 512 | E189: règlement ORTEGA | F189: 46.83 | I189: 0 | K189: 50 | L189: =IF(AND(K189>"",A189=""),VLOOKUP(K189,PLANS!$N$2:$O$11,2),"") -> 
A190: 89 | B190: 2016-02-01 | C190: 512 | E190: règlt Fact,DUBOIS | G190: 760.05 | J190: 0 | K190: 50 | L190: =IF(AND(K190>"",A190=""),VLOOKUP(K190,PLANS!$N$2:$O$11,2),"") -> 
A191: 94 | B191: 2016-02-05 | C191: 512 | E191: règlement EMN janvier | G191: 177.4 | J191: 0 | K191: 50 | L191: =IF(AND(K191>"",A191=""),VLOOKUP(K191,PLANS!$N$2:$O$11,2),"") -> 
A192: 102 | B192: 2016-02-08 | C192: 512 | E192: règlt assurance immeuble | G192: 278.56 | J192: 0 | K192: 50 | L192: =IF(AND(K192>"",A192=""),VLOOKUP(K192,PLANS!$N$2:$O$11,2),"") -> 
A193: 104 | B193: 2016-02-09 | C193: 512 | E193: règlement | F193: 715.97 | I193: 0 | K193: 50 | L193: =IF(AND(K193>"",A193=""),VLOOKUP(K193,PLANS!$N$2:$O$11,2),"") -> 
A194: 106 | B194: 2016-02-24 | C194: 512 | E194: règlement ORTEGA | F194: 86.59 | I194: 0 | K194: 50 | L194: =IF(AND(K194>"",A194=""),VLOOKUP(K194,PLANS!$N$2:$O$11,2),"") -> 
A195: 121 | B195: 2016-03-01 | C195: 512 | E195: règlt taxe ass 3ème verst | G195: 720.05 | J195: 0 | K195: 50 | L195: =IF(AND(K195>"",A195=""),VLOOKUP(K195,PLANS!$N$2:$O$11,2),"") -> 
A196: 123 | B196: 2016-03-01 | C196: 512 | E196: règlement HUGNET | F196: 146.9 | I196: 0 | K196: 50 | L196: =IF(AND(K196>"",A196=""),VLOOKUP(K196,PLANS!$N$2:$O$11,2),"") -> 
A197: 125 | B197: 2016-03-01 | C197: 512 | E197: règlement HUGNET | F197: 550 | I197: 0 | K197: 50 | L197: =IF(AND(K197>"",A197=""),VLOOKUP(K197,PLANS!$N$2:$O$11,2),"") -> 
A198: 127 | B198: 2016-03-01 | C198: 512 | E198: règlement BENHARROSH | F198: 66.93 | I198: =IF(F198>G198,(F198-G198)*(A198=0),"") -> 0 | J198: =IF(G198>F198,(G198-F198)*(A198=0),"") ->  | K198: 50 | L198: =IF(AND(K198>"",A198=""),VLOOKUP(K198,PLANS!$N$2:$O$11,2),"") -> 
A199: 135 | B199: 2016-03-09 | C199: 512 | E199: règlement ARC | G199: 143 | J199: 0 | K199: 50 | L199: =IF(AND(K199>"",A199=""),VLOOKUP(K199,PLANS!$N$2:$O$11,2),"") -> 
A200: 137 | B200: 2016-03-18 | C200: 512 | E200: règlement LEFEBURE | F200: 172.43 | I200: 0 | K200: 50 | L200: =IF(AND(K200>"",A200=""),VLOOKUP(K200,PLANS!$N$2:$O$11,2),"") -> 
A201: 141 | B201: 2016-03-29 | C201: 512 | E201: règlement EDF | G201: 78.25 | J201: 0 | K201: 50 | L201: =IF(AND(K201>"",A201=""),VLOOKUP(K201,PLANS!$N$2:$O$11,2),"") -> 
... 4169 more rows

Sheet ChargesCtes
A1: =IF($D1<>"",VLOOKUP($D1,PLANS!$B$2:$C$10,2,FALSE),"") ->  | E1: =VLOOKUP(H1,PLANS!$D$1:$E$9,2,FALSE) -> CHARGES PAR COMPTES | F1: Situation au | G1: 2016-06-22 | H1: 6 | M1: =IF($D$1=3,SUM(M5:M981),"") ->  | O1: =IF($D$1=3,SUM(O5:O981),"") ->  | W1: Clé | AC1: Compte | AD1: Compte
C2: =IF($D2<>"",VLOOKUP($D2,[1]PLANS!$B$2:$C$10,2,FALSE),"") ->  | D2: =IF(AND($D1<>"",$A2=0),VLOOKUP($D1,[1]PLANS!$A$2:$C$10,2,FALSE),"") ->  | E2: =IF(AND(C1<>"",A2=0),VLOOKUP(C1,[1]PLANS!$A$20:$C$99,3,FALSE),"") ->  | I2: =IF(F2>G2,(F2-G2)*(A2=0),"") ->  | J2: =IF(G2>F2,(G2-F2)*(A2=0),"") ->  | L2: =IF(AND(K2>"",A2=""),VLOOKUP(K2,PLANS!$N$2:$O$11,2),"") ->  | M2: =IF($H$1=3,SUM(M6:M981),"") ->  | O2: =IF($H$1=3,SUM(O6:O981),"") ->  | W2: =PLANS!H16 -> >=11 | AC2: >=450 | AD2: <460
A4: N° | B4: Date | C4: Compte | D4: Clé | E4: Libellé | F4: Charges | G4: Produits
A5: 16 | B5: 2016-01-01 | C5: 103.1 | E5: A nouveau avance trésorerie
A6: 17 | B6: 2016-01-01 | C6: 103.1 | E6: SECLIN | G6: 117
A7: 18 | B7: 2016-01-01 | C7: 103.1 | E7: AUDIARD | G7: 150
A8: 19 | B8: 2016-01-01 | C8: 103.1 | E8: BERNARDIN | G8: 195
A9: 20 | B9: 2016-01-01 | C9: 103.1 | E9: HU BERT | G9: 206
A10: 21 | B10: 2016-01-01 | C10: 103.1 | E10: LELIEVRE | G10: 233
A11: 22 | B11: 2016-01-01 | C11: 103.1 | E11: RONDEAU | G11: 99
A12: 107 | B12: 2016-02-24 | C12: 103.1 | E12: SECLIN | F12: 117
A13: 108 | B13: 2016-02-24 | C13: 103.1 | E13: AUBERT | G13: 117
A14: 23 | B14: 2016-01-01 | C14: 103.2 | E14: A nouveau avance travaux
A15: 24 | B15: 2016-01-01 | C15: 103.2 | E15: SECLIN | G15: 93.87
A16: 25 | B16: 2016-01-01 | C16: 103.2 | E16: AUDOARD | G16: 120.36
A17: 26 | B17: 2016-01-01 | C17: 103.2 | E17: BERNARDIN | G17: 154.05
A18: 27 | B18: 2016-01-01 | C18: 103.2 | E18: HUBERT | G18: 165.32
A19: 28 | B19: 2016-01-01 | C19: 103.2 | E19: LELIEVRFE | G19: 186.96
A20: 29 | B20: 2016-01-01 | C20: 103.2 | E20: RONDEAU | G20: 79.45
A21: 109 | B21: 2016-02-24 | C21: 103.2 | E21: SECLIN | F21: 93.87
A22: 110 | B22: 2016-02-24 | C22: 103.2 | E22: AUBERT | G22: 93.87
A23: 202 | B23: 2016-05-01 | C23: 103.2 | E23: avance travaux mai | G23: 400
A24: 60 | B24: 2016-01-05 | C24: 401.1 | E24: facture VEOLIA eau 177m3 | G24: 794.55
A25: 71 | B25: 2016-01-16 | C25: 401.1 | E25: règlement VEOLIA eau 177m3 | F25: 794.55
A26: 183 | B26: 2016-04-08 | C26: 401.1 | E26: facture VEOLIA eau 148m3 | G26: 644.98
A27: 184 | B27: 2016-04-08 | C27: 401.1 | E27: règlement VEOLIA eau 148m3 | F27: 644.98
A28: 139 | B28: 2016-03-29 | C28: 401.2 | E28: facture EDF | G28: 78.25
A29: 140 | B29: 2016-03-29 | C29: 401.2 | E29: règlement EDF | F29: 78.25
A30: 62 | B30: 2016-01-15 | C30: 401.3 | E30: frais CCP | G30: 13.4
A31: 63 | B31: 2016-01-15 | C31: 401.3 | E31: prélèvement CCP | F31: 13.4
A32: 189 | B32: 2016-04-14 | C32: 401.3 | E32: frais CCP | G32: 16.5
A33: 190 | B33: 2016-04-14 | C33: 401.3 | E33: prélèvement CCP | F33: 16.5
A34: 68 | B34: 2016-01-16 | C34: 401.4 | E34: achat de timbres | G34: 9.6
A35: 69 | B35: 2016-01-16 | C35: 401.4 | E35: règlement timbres | F35: 9.6
A36: 173 | B36: 2016-04-01 | C36: 401.4 | E36: achat de timbres | G36: 8
A37: 174 | B37: 2016-04-01 | C37: 401.4 | E37: règlement timbres | F37: 8
A38: 193 | B38: 2016-04-15 | C38: 401.4 | E38: envoi courrier assurance | G38: 2.58
A39: 194 | B39: 2016-04-15 | C39: 401.4 | E39: règlt envoi courrier assurance | F39: 2.58
A40: 212 | B40: 2016-05-06 | C40: 401.4 | E40: envois LR convocs AG | G40: 33.04
A41: 213 | B41: 2015-05-06 | C41: 401.4 | E41: règlt envois LR convocs AG | F41: 33.04
A42: 221 | B42: 2016-05-11 | C42: 401.4 | E42: envoi LR rappel de charges | G42: 5.42
A43: 222 | B43: 2016-05-11 | C43: 401.4 | E43: règlt envoi LR rappel charges | F43: 5.42
A44: 100 | B44: 2016-02-08 | C44: 401.501 | E44: facture assurance immeuble | G44: 278.56
A45: 101 | B45: 2016-02-08 | C45: 401.501 | E45: règlt assurance immeuble | F45: 278.56
A46: 197 | B46: 2016-04-16 | C46: 401.501 | E46: facture assurance immeuble | G46: 595.94
A47: 198 | B47: 2016-04-16 | C47: 401.501 | E47: règlt assurance immeuble | F47: 595.94
A48: 225 | B48: 2016-05-11 | C48: 401.501 | E48: remb trop perçu ass imm | F48: 229.26
A49: 226 | B49: 2016-05-11 | C49: 401.501 | E49: trop perçu ass imm | G49: 229.26
A50: 133 | B50: 2016-03-09 | C50: 401.502 | E50: facture assurance ARC | G50: 143
A51: 134 | B51: 2016-03-09 | C51: 401.502 | E51: règlement ARC | F51: 143
A52: 92 | B52: 2016-02-01 | C52: 401.6 | E52: facture EMN janvier | G52: 177.4
A53: 93 | B53: 2016-02-05 | C53: 401.6 | E53: règlement EMN janvier | F53: 177.4
A54: 178 | B54: 2016-04-05 | C54: 401.6 | E54: facture EMN fevrier | G54: 177.4
A55: 181 | B55: 2016-04-05 | C55: 401.6 | E55: facture EMN mars | G55: 177.4
A56: 209 | B56: 2016-05-01 | C56: 401.6 | E56: règlement EMN fevrier mars | F56: 354.8
A57: 217 | B57: 2016-05-09 | C57: 401.6 | E57: facture EMN avril | G57: 177.4
A58: 218 | B58: 2016-05-09 | C58: 401.6 | E58: règlement EMN avril | F58: 177.4
A59: 96 | B59: 2016-02-08 | C59: 401.7 | E59: facture fournitures compta | G59: 77.98
A60: 97 | B60: 2016-02-08 | C60: 401.7 | E60: règlt fournitures compta | F60: 77.98
A61: 129 | B61: 2016-03-09 | C61: 401.7 | E61: facture fournitures compta | G61: 5.08
A62: 130 | B62: 2016-03-09 | C62: 401.7 | E62: règlt fournitures compta | F62: 5.08
A63: 143 | B63: 2016-03-31 | C63: 401.7 | E63: facture carnet entretien imm | G63: 5
A64: 144 | B64: 2016-03-31 | C64: 401.7 | E64: règlt carnet entretien imm | F64: 5
A65: 48 | B65: 2016-01-02 | C65: 401.8 | E65: facture DUBOIS | G65: 740.05
A66: 49 | B66: 2016-01-02 | C66: 401.8 | E66: règlt Fact,DUBOIS | F66: 760.05
A67: 87 | B67: 2016-02-01 | C67: 401.8 | E67: facture DUBOIS | G67: 740.05
A68: 88 | B68: 2016-02-01 | C68: 401.8 | E68: règlt tact,DUBOIS | F68: 760.05
A69: 119 | B69: 2016-03-01 | C69: 401.8 | E69: facture DUBOIS | G69: 740.05
A70: 120 | B70: 2016-03-01 | C70: 401.8 | E70: règlt fact,DUBOIS | F70: 720.05
A71: 161 | B71: 2016-04-01 | C71: 401.8 | E71: facture DUBOIS | G71: 740.05
A72: 162 | B72: 2016-04-01 | C72: 401.8 | E72: règlt fact,DUBOIS | F72: 720.05
A73: 13 | B73: 2016-01-01 | C73: 408.1 | E73: A nouveau eau 167m3 | G73: 749.66
A74: 14 | B74: 2016-01-01 | C74: 408.1 | E74: reprise eau 167m3 | F74: 749.66
A75: 228 | B75: 2016-06-22 | C75: 409 | E75: Acompte VERNEUIL | F75: 1000
A76: 3 | B76: 2016-01-01 | C76: 450.01 | E76: A nouveau AUBERT | G76: 314.25
A77: 34 | B77: 2016-01-01 | C77: 450.01 | E77: appel 1er trim AUBERT | F77: 254.17
A78: 41 | B78: 2016-01-01 | C78: 450.01 | E78: 1er appel trav,peint, AUBERT | F78: 86.59
A79: 55 | B79: 2016-01-04 | C79: 450.01 | E79: règlement AUBERT | G79: 66.27
A80: 76 | B80: 2016-02-01 | C80: 450.01 | E80: 2è appel trav,peint,AUBERT | F80: 86.59
A81: 84 | B81: 2016-02-01 | C81: 450.01 | E81: règlement AUBERT | G81: 46.83
A82: 105 | B82: 2016-02-24 | C82: 450.01 | E82: règlement AUBERT | G82: 86.59
A83: 112 | B83: 2016-03-01 | C83: 450.01 | E83: 3è appel trav,peint,AUBERT | F83: 86.59
A84: 147 | B84: 2016-04-01 | C84: 450.01 | E84: 4è appel trav,peint,AUBERT | F84: 86.59
A85: 154 | B85: 2016-04-01 | C85: 450.01 | E85: appel prov 2è trim AUBERT | F85: 218.89
A86: 166 | B86: 2016-04-01 | C86: 450.01 | E86: règlement AUBERT | G86: 86.59
A87: 168 | B87: 2016-04-01 | C87: 450.01 | E87: règlement AUBERT | G87: 218.89
A88: 203 | B88: 2016-05-01 | C88: 450.01 | E88: av travx mai AUBERT | F88: 46.94
A89: 8 | B89: 2016-01-01 | C89: 450.02 | E89: A nouveau AUDIARD | F89: 133.38
A90: 35 | B90: 2016-01-01 | C90: 450.02 | E90: appel 1er trim AUDIARD | F90: 188.21
A91: 42 | B91: 2016-01-01 | C91: 450.02 | E91: 1er appel trav,peint, AUDIARD | F91: 111.01
A92: 57 | B92: 2016-01-04 | C92: 450.02 | E92: règlement AUDIARD | G92: 321
A93: 70 | B93: 2016-01-16 | C93: 450.02 | E93: règlement timbres | G93: 9.6
A94: 77 | B94: 2016-02-01 | C94: 450.02 | E94: 2è appel trav,peint,AUDIARD | F94: 111.01
A95: 82 | B95: 2016-02-01 | C95: 450.02 | E95: règlement AUDIARD | G95: 213.01
A96: 98 | B96: 2016-02-08 | C96: 450.02 | E96: règlt fournitures compta | G96: 77.98
A97: 113 | B97: 2016-03-01 | C97: 450.02 | E97: 3è appel trav,peint,AUDIARD | F97: 111.01
A98: 131 | B98: 2016-03-09 | C98: 450.02 | E98: règlt fournitures compta | G98: 5.08
A99: 148 | B99: 2016-04-01 | C99: 450.02 | E99: 4è appel trav,peint,AUDIARD | F99: 111.01
A100: 155 | B100: 2016-04-01 | C100: 450.02 | E100: appel prov 2è trim AUDIARD | F100: 183.15
A101: 164 | B101: 2016-04-01 | C101: 450.02 | E101: règlement AUDIARD | G101: 323
A102: 175 | B102: 2016-04-01 | C102: 450.02 | E102: règlement timbres | G102: 8
A103: 195 | B103: 2016-04-15 | C103: 450.02 | E103: règlt envoi courrier assurance | G103: 2.58
A104: 204 | B104: 2016-05-01 | C104: 450.02 | E104: av travx mai AUDIARD | F104: 60.18
A105: 214 | B105: 2015-05-06 | C105: 450.02 | E105: règlt envois LR convocs AG | G105: 33.04
A106: 223 | B106: 2016-05-11 | C106: 450.02 | E106: règlt envoi LR rappel charges | G106: 5.42
A107: 9 | B107: 2016-01-01 | C107: 450.03 | E107: A nouveau BERFNARDIN | F107: 80.13
A108: 36 | B108: 2016-01-01 | C108: 450.03 | E108: appel 1er trim BERNARDIN | F108: 131.11
A109: 43 | B109: 2016-01-01 | C109: 450.03 | E109: 1er appel trav;pein, BERNARDIN | F109: 144.31
A110: 53 | B110: 2016-01-04 | C110: 450.03 | E110: règlement BERNARDIN | G110: 577.24
A111: 78 | B111: 2016-02-01 | C111: 450.03 | E111: 2è appel trav,peint,BENHARDIN | F111: 144.31
A112: 114 | B112: 2016-03-01 | C112: 450.03 | E112: 3è appel trav,peint,BENHARDIN | F112: 144.31
A113: 126 | B113: 2016-03-01 | C113: 450.03 | E113: règlement BERNARDIN | G113: 66.93
A114: 149 | B114: 2016-04-01 | C114: 450.03 | E114: 4è appel trav,peint,BERNARDIN | F114: 144.31
A115: 156 | B115: 2016-04-01 | C115: 450.03 | E115: appel prov 2è trim BERNARDIN | F115: 131.11
A116: 170 | B116: 2016-04-01 | C116: 450.03 | E116: règlement BERNARDIN | G116: 275.42
A117: 205 | B117: 2016-05-01 | C117: 450.03 | E117: av travx mai BERNARDIN | F117: 77.03
A118: 10 | B118: 2016-01-01 | C118: 450.05 | E118: A nouveau HUBERT | F118: 551.11
A119: 37 | B119: 2016-01-01 | C119: 450.05 | E119: appel 1er trim HU BERT | F119: 376.64
A120: 44 | B120: 2016-01-01 | C120: 450.05 | E120: 1er appel trav,peint,HUBERT | F120: 152.45
A121: 51 | B121: 2016-01-04 | C121: 450.05 | E121: règlement HUBERT | G121: 609.8
A122: 73 | B122: 2016-01-16 | C122: 450.05 | E122: règlement HUBERT | G122: 78.4
A123: 79 | B123: 2016-02-01 | C123: 450.05 | E123: 2è appel trav;peint, HUBERT | F123: 152.45
A124: 115 | B124: 2016-03-01 | C124: 450.05 | E124: 3è appel trav,peint,HUBERT | F124: 152.45
A125: 122 | B125: 2016-03-01 | C125: 450.05 | E125: règlement HUBERT | G125: 146.9
A126: 124 | B126: 2016-03-01 | C126: 450.05 | E126: règlement HUBERT | G126: 550
A127: 150 | B127: 2016-04-01 | C127: 450.05 | E127: 4è appel trav:peint,HUBERT | F127: 152.45
A128: 157 | B128: 2016-04-01 | C128: 450.05 | E128: appel prov 2è trim HUBERT | F128: 423.01
A129: 200 | B129: 2016-04-18 | C129: 450.05 | E129: règlement HUBERT | G129: 575.46
A130: 206 | B130: 2016-05-01 | C130: 450.05 | E130: av travx mai HUBERT | F130: 82.65
A131: 11 | B131: 2016-01-01 | C131: 450.06 | E131: A nouveau LELIEVRE | F131: 73.02
A132: 38 | B132: 2016-01-01 | C132: 450.06 | E132: appel 1er trim LELIEVRE | F132: 298.09
A133: 45 | B133: 2016-01-01 | C133: 450.06 | E133: 1er appel trav,peint, LELIEVRE | F133: 172.43
A134: 80 | B134: 2016-02-01 | C134: 450.06 | E134: 2è appel trav,peint,LELIEVRE | F134: 172.43
A135: 103 | B135: 2016-02-09 | C135: 450.06 | E135: règlement | G135: 715.97
A136: 116 | B136: 2016-03-01 | C136: 450.06 | E136: 3è appel trav,peint,LELIEVRE | F136: 172.43
A137: 136 | B137: 2016-03-18 | C137: 450.06 | E137: règlement LELIEVRE | G137: 172.43
A138: 151 | B138: 2016-04-01 | C138: 450.06 | E138: 4è appel trav,peint,LELIEVRE | F138: 172.43
A139: 158 | B139: 2016-04-01 | C139: 450.06 | E139: appel prov 2è trim LELIEVRE | F139: 291.69
A140: 186 | B140: 2016-04-12 | C140: 450.06 | E140: règlement LELIEVRE | G140: 464.12
A141: 207 | B141: 2016-05-01 | C141: 450.06 | E141: av travx mai LELIEVRE | F141: 93.48
A142: 12 | B142: 2016-01-01 | C142: 450.07 | E142: A nouveau RONDEAU | F142: 235.43
A143: 39 | B143: 2016-01-01 | C143: 450.07 | E143: appel 1er trim RONDEAU | F143: 201.79
A144: 46 | B144: 2016-01-01 | C144: 450.07 | E144: 1er appel trav,peint, RONDEAU | F144: 73.26
A145: 65 | B145: 2016-01-16 | C145: 450.07 | E145: règlement RONDEAU | G145: 335.87
A146: 81 | B146: 2016-02-01 | C146: 450.07 | E146: 2è appel trav,pezint,RONDEAU | F146: 73.26
A147: 117 | B147: 2016-03-01 | C147: 450.07 | E147: 3è appel trav,peint,RONDEAU | F147: 73.26
A148: 152 | B148: 2016-04-01 | C148: 450.07 | E148: 4è appel trav,peint,RONDEAU | F148: 73.26
A149: 159 | B149: 2016-04-01 | C149: 450.07 | E149: appel prov 2è trim RONDEAU | F149: 202.15
A150: 208 | B150: 2016-05-01 | C150: 450.07 | E150: av travx mai RONDEAU | F150: 39.72
A151: 30 | B151: 2016-01-01 | C151: 471 | E151: A nouveau écart de répartition | F151: 0.01
A152: 31 | B152: 2016-01-01 | C152: 471 | E152: régul écart de répartition | G152: 0.01
A153: 2 | B153: 2016-01-01 | C153: 512 | E153: A nouveau | F153: 1790.84
A154: 50 | B154: 2016-01-02 | C154: 512 | E154: règlt Fact,DUBOIS | G154: 760.05
A155: 52 | B155: 2016-01-04 | C155: 512 | E155: règlement HUGNET | F155: 609.8
A156: 54 | B156: 2016-01-04 | C156: 512 | E156: règlement BENHARROSH | F156: 577.24
A157: 56 | B157: 2016-01-04 | C157: 512 | E157: règlement ORTEGA | F157: 66.27
A158: 58 | B158: 2016-01-04 | C158: 512 | E158: règlement AUDRAIN | F158: 321
A159: 64 | B159: 2016-01-15 | C159: 512 | E159: prèlèvement CCP | G159: 13.4
A160: 66 | B160: 2016-01-16 | C160: 512 | E160: règlement RODIER | F160: 335.87
A161: 72 | B161: 2016-01-16 | C161: 512 | E161: règlement VEOLIA eau 177m3 | G161: 794.55
A162: 74 | B162: 2016-01-16 | C162: 512 | E162: règlement HUGNET | F162: 78.4
A163: 83 | B163: 2016-02-01 | C163: 512 | E163: règlement AUDRAIN | F163: 213.01
A164: 85 | B164: 2016-02-01 | C164: 512 | E164: règlement ORTEGA | F164: 46.83
A165: 89 | B165: 2016-02-01 | C165: 512 | E165: règlt Fact,DUBOIS | G165: 760.05
A166: 94 | B166: 2016-02-05 | C166: 512 | E166: règlement EMN janvier | G166: 177.4
A167: 102 | B167: 2016-02-08 | C167: 512 | E167: règlt assurance immeuble | G167: 278.56
A168: 104 | B168: 2016-02-09 | C168: 512 | E168: règlement | F168: 715.97
A169: 106 | B169: 2016-02-24 | C169: 512 | E169: règlement ORTEGA | F169: 86.59
A170: 121 | B170: 2016-03-01 | C170: 512 | E170: règlt taxe ass 3ème verst | G170: 720.05
A171: 123 | B171: 2016-03-01 | C171: 512 | E171: règlement HUGNET | F171: 146.9
A172: 125 | B172: 2016-03-01 | C172: 512 | E172: règlement HUGNET | F172: 550
A173: 127 | B173: 2016-03-01 | C173: 512 | E173: règlement BENHARROSH | F173: 66.93
A174: 135 | B174: 2016-03-09 | C174: 512 | E174: règlement ARC | G174: 143
A175: 137 | B175: 2016-03-18 | C175: 512 | E175: règlement LEFEBURE | F175: 172.43
A176: 141 | B176: 2016-03-29 | C176: 512 | E176: règlement EDF | G176: 78.25
A177: 145 | B177: 2016-03-31 | C177: 512 | E177: règlt carnet entretien imm | G177: 5
A178: 163 | B178: 2016-04-01 | C178: 512 | E178: règlt fact,DUBOIS | G178: 720.05
A179: 165 | B179: 2016-04-01 | C179: 512 | E179: règlement AUDRAIN | F179: 323
A180: 167 | B180: 2016-04-01 | C180: 512 | E180: règlement ORTEGA | F180: 86.59
A181: 169 | B181: 2016-04-01 | C181: 512 | E181: règlement SECLIN | F181: 218.89
A182: 171 | B182: 2016-04-01 | C182: 512 | E182: règlement BENHARROSH | F182: 275.42
A183: 185 | B183: 2016-04-08 | C183: 512 | E183: règlement VEOLIA eau 148m3 | G183: 644.98
A184: 187 | B184: 2016-04-12 | C184: 512 | E184: règlement LEFEBURE | F184: 464.12
A185: 191 | B185: 2016-04-14 | C185: 512 | E185: prélèvement CCP | G185: 16.5
A186: 199 | B186: 2016-04-16 | C186: 512 | E186: règlt assurance immeuble | G186: 595.94
A187: 201 | B187: 2016-04-18 | C187: 512 | E187: règlement HUGNET | F187: 575.46
A188: 210 | B188: 2016-05-01 | C188: 512 | E188: règlement EMN février mars | G188: 354.8
A189: 219 | B189: 2016-05-09 | C189: 512 | E189: règlement EMN avril | G189: 177.4
A190: 227 | B190: 2016-05-11 | C190: 512 | E190: trop perçu ass imm | F190: 229.26
A191: 229 | B191: 2016-06-22 | C191: 512 | E191: Acompte VERNEUIL | G191: 1000
A192: 15 | B192: 2016-01-01 | C192: 601.6 | D192: 6 | E192: reprise eau 167m3 | F192: -749.66
A193: 59 | B193: 2016-01-05 | C193: 601.6 | D193: 6 | E193: facture VEOLIA eau 177m3 | F193: 794.55
A194: 182 | B194: 2016-04-08 | C194: 601.6 | D194: 6 | E194: facture VEOLIA eau 148m3 | F194: 644.98
C195: Total 601.6 | E195: =IF(AND(C194<>"",A195=0),VLOOKUP(C194,[1]PLANS!$A$20:$C$99,3,FALSE),"") -> EAU Indiv. | F195: =SUBTOTAL(9,F192:F194) -> 689.87 | G195: =SUBTOTAL(9,G192:G194) -> 0
A196: 138 | B196: 2016-03-29 | C196: 602 | D196: 1 | E196: facture EDF | F196: 78.25
C197: Total 602 | E197: =IF(AND(C196<>"",A197=0),VLOOKUP(C196,[1]PLANS!$A$20:$C$99,3,FALSE),"") -> Electricité | F197: =SUBTOTAL(9,F196:F196) -> 78.25 | G197: =SUBTOTAL(9,G196:G196) -> 0
A198: 32 | B198: 2016-01-01 | C198: 611 | D198: 1 | E198: régul écart de répartition | F198: 0.01
A199: 90 | B199: 2016-02-01 | C199: 611 | D199: 1 | E199: facture EMN janvier H+C | F199: 81.4
A200: 91 | B200: 2016-02-01 | C200: 611 | D200: 5 | E200: facture EMN janvier esc | F200: 96
A201: 176 | B201: 2016-04-05 | C201: 611 | D201: 1 | E201: facture EMN fevrier H+C | F201: 81.4
... 3212 more rows

Sheet ChargesClés
A1: =IF($D1<>"",VLOOKUP($D1,PLANS!$B$2:$C$10,2,FALSE),"") ->  | E1: =VLOOKUP(H1,PLANS!$D$1:$E$9,2,FALSE) -> CHARGES PAR CLES | F1: Situation au | G1: 2016-06-22 | H1: 7 | M1: =IF($D$1=3,SUM(M5:M987),"") ->  | O1: =IF($D$1=3,SUM(O5:O987),"") ->  | W1: Clé | AC1: Compte | AD1: Compte
C2: =IF($D2<>"",VLOOKUP($D2,[1]PLANS!$B$2:$C$10,2,FALSE),"") ->  | D2: =IF(AND($D1<>"",$A2=0),VLOOKUP($D1,[1]PLANS!$A$2:$C$10,2,FALSE),"") ->  | E2: =IF(AND(C1<>"",A2=0),VLOOKUP(C1,[1]PLANS!$A$20:$C$99,3,FALSE),"") ->  | I2: =IF(F2>G2,(F2-G2)*(A2=0),"") ->  | J2: =IF(G2>F2,(G2-F2)*(A2=0),"") ->  | L2: =IF(AND(K2>"",A2=""),VLOOKUP(K2,PLANS!$N$2:$O$11,2),"") ->  | M2: =IF($H$1=3,SUM(M7:M987),"") ->  | O2: =IF($H$1=3,SUM(O7:O987),"") ->  | W2: =PLANS!H16 -> >=11 | AC2: >=450 | AD2: <460
A4: N° | B4: Date | C4: Compte | D4: Clé | E4: Libellé | F4: Charges | G4: Produits | L4: Réc. | M4: Mt REC. | N4: Tx TVA | O4: Mt T.V.A. | P4: TVA Loc.
A5: 138 | B5: 2016-03-29 | C5: 602 | D5: 1 | E5: facture EDF | F5: 78.25 | L5: 1 | M5: 78.25 | N5: 20 | O5: 13.04 | P5: 13.04
C6: Total 602 | E6: =IF(AND(C5<>"",A6=0),VLOOKUP(C5,[1]PLANS!$A$20:$C$99,3,FALSE),"") -> Electricité | F6: =SUBTOTAL(9,F5:F5) -> 78.25 | G6: =SUBTOTAL(9,G5:G5) -> 0 | M6: =SUBTOTAL(9,M5:M5) -> 78.25 | O6: =SUBTOTAL(9,O5:O5) -> 13.04 | P6: =SUBTOTAL(9,P5:P5) -> 13.04
A7: 32 | B7: 2016-01-01 | C7: 611 | D7: 1 | E7: régul écart de répartition | F7: 0.01 | L7: 1 | M7: 0.01
A8: 90 | B8: 2016-02-01 | C8: 611 | D8: 1 | E8: facture EMN janvier H+C | F8: 81.4 | L8: 1 | M8: 81.4 | N8: 20 | O8: 13.56 | P8: 13.56
A9: 176 | B9: 2016-04-05 | C9: 611 | D9: 1 | E9: facture EMN fevrier H+C | F9: 81.4 | L9: 1 | M9: 81.4 | N9: 20 | O9: 13.56 | P9: 13.56
A10: 179 | B10: 2016-04-05 | C10: 611 | D10: 1 | E10: facture EMN mars H+C | F10: 81.4 | L10: 1 | M10: 81.4 | N10: 20 | O10: 13.56 | P10: 13.56
A11: 215 | B11: 2016-05-09 | C11: 611 | D11: 1 | E11: facture EMN avril H+C | F11: 81.4 | L11: 1 | M11: 81.4 | N11: 20 | O11: 13.56 | P11: 13.56
C12: Total 611 | E12: =IF(AND(C11<>"",A12=0),VLOOKUP(C11,[1]PLANS!$A$20:$C$99,3,FALSE),"") -> Nettoyage des Locaux | F12: =SUBTOTAL(9,F7:F11) -> 325.61 | G12: =SUBTOTAL(9,G7:G11) -> 0 | M12: =SUBTOTAL(9,M7:M11) -> 325.61 | O12: =SUBTOTAL(9,O7:O11) -> 54.24 | P12: =SUBTOTAL(9,P7:P11) -> 54.24
A13: 99 | B13: 2016-02-08 | C13: 616.1 | D13: 1 | E13: facture assurance immeuble | F13: 278.56
A14: 196 | B14: 2016-04-16 | C14: 616.1 | D14: 1 | E14: facture assurance immeuble | F14: 595.94
A15: 224 | B15: 2016-05-11 | C15: 616.1 | D15: 1 | E15: remb trop perçu ass imm | F15: -229.26
C16: Total 616.1 | E16: =IF(AND(C15<>"",A16=0),VLOOKUP(C15,[1]PLANS!$A$20:$C$99,3,FALSE),"") -> Assurances Multirisques | F16: =SUBTOTAL(9,F13:F15) -> 645.24 | G16: =SUBTOTAL(9,G13:G15) -> 0 | M16: =SUBTOTAL(9,M13:M15) -> 0 | O16: =SUBTOTAL(9,O13:O15) -> 0 | P16: =SUBTOTAL(9,P13:P15) -> 0
A17: 132 | B17: 2016-03-09 | C17: 616.2 | D17: 1 | E17: facture assurance ARC | F17: 143
C18: Total 616.2 | E18: =IF(AND(C17<>"",A18=0),VLOOKUP(C17,[1]PLANS!$A$20:$C$99,3,FALSE),"") -> A,ARC, | F18: =SUBTOTAL(9,F17:F17) -> 143 | G18: =SUBTOTAL(9,G17:G17) -> 0 | M18: =SUBTOTAL(9,M17:M17) -> 0 | O18: =SUBTOTAL(9,O17:O17) -> 0 | P18: =SUBTOTAL(9,P17:P17) -> 0
A19: 67 | B19: 2016-01-16 | C19: 621.3 | D19: 1 | E19: achat de timbres | F19: 9.6
A20: 172 | B20: 2016-04-01 | C20: 621.3 | D20: 1 | E20: achat de timbres | F20: 8
A21: 192 | B21: 2016-04-15 | C21: 621.3 | D21: 1 | E21: envoi courrier assurance | F21: 2.58
A22: 211 | B22: 2016-05-06 | C22: 621.3 | D22: 1 | E22: envois LR convocs AG | F22: 33.04
A23: 220 | B23: 2016-05-11 | C23: 621.3 | D23: 1 | E23: envoi LR rappel de charges | F23: 5.42
C24: Total 621.3 | E24: =IF(AND(C23<>"",A24=0),VLOOKUP(C23,[1]PLANS!$A$20:$C$99,3,FALSE),"") -> Frais Postaux | F24: =SUBTOTAL(9,F19:F23) -> 58.64 | G24: =SUBTOTAL(9,G19:G23) -> 0 | M24: =SUBTOTAL(9,M19:M23) -> 0 | O24: =SUBTOTAL(9,O19:O23) -> 0 | P24: =SUBTOTAL(9,P19:P23) -> 0
A25: 95 | B25: 2016-02-08 | C25: 621.4 | D25: 1 | E25: facture fournitures compta | F25: 77.98 | L25: 1 | M25: 77.98 | N25: 20 | O25: 12.99 | P25: 12.99
A26: 128 | B26: 2016-03-09 | C26: 621.4 | D26: 1 | E26: facture fournitures compta | F26: 5.08 | L26: 1 | M26: 5.08 | N26: 20
A27: 142 | B27: 2016-03-31 | C27: 621.4 | D27: 1 | E27: facture carnet entretien imm | F27: 5 | L27: 1 | M27: 5
C28: Total 621.4 | E28: =IF(AND(C27<>"",A28=0),VLOOKUP(C27,[1]PLANS!$A$20:$C$99,3,FALSE),"") -> Fournitures | F28: =SUBTOTAL(9,F25:F27) -> 88.06 | G28: =SUBTOTAL(9,G25:G27) -> 0 | M28: =SUBTOTAL(9,M25:M27) -> 88.06 | O28: =SUBTOTAL(9,O25:O27) -> 12.99 | P28: =SUBTOTAL(9,P25:P27) -> 12.99
A29: 61 | B29: 2016-01-15 | C29: 662 | D29: 1 | E29: frais CCP | F29: 13.4
A30: 188 | B30: 2016-04-14 | C30: 662 | D30: 1 | E30: frais CCP | F30: 16.5
C31: Total 662 | E31: =IF(AND(C30<>"",A31=0),VLOOKUP(C30,[1]PLANS!$A$20:$C$99,3,FALSE),"") -> Autres ch.financières | F31: =SUBTOTAL(9,F29:F30) -> 29.9 | G31: =SUBTOTAL(9,G29:G30) -> 0 | M31: =SUBTOTAL(9,M29:M30) -> 0 | O31: =SUBTOTAL(9,O29:O30) -> 0 | P31: =SUBTOTAL(9,P29:P30) -> 0
D32: Total 1 | E32: =IF($D32<>"",VLOOKUP($D32,[1]PLANS!$B$2:$C$10,2,FALSE),"") -> Charges Générales | F32: =SUBTOTAL(9,F5:F30) -> 1368.7 | G32: =SUBTOTAL(9,G5:G30) -> 0 | M32: =SUBTOTAL(9,M5:M30) -> 491.92 | O32: =SUBTOTAL(9,O5:O30) -> 80.27 | P32: =SUBTOTAL(9,P5:P30) -> 80.27
A33: 91 | B33: 2016-02-01 | C33: 611 | D33: 5 | E33: facture EMN janvier esc | F33: 96 | L33: 1 | M33: 96 | N33: 20 | O33: 15.99 | P33: 15.99
A34: 177 | B34: 2016-04-05 | C34: 611 | D34: 5 | E34: facture EMN fevrier esc | F34: 96 | L34: 1 | M34: 96 | N34: 20 | O34: 15.99 | P34: 15.99
A35: 180 | B35: 2016-04-05 | C35: 611 | D35: 5 | E35: facture EMN mars esc | F35: 96 | L35: 1 | M35: 96 | N35: 20 | O35: 15.99 | P35: 15.99
A36: 216 | B36: 2016-05-09 | C36: 611 | D36: 5 | E36: facture EMN avril esc | F36: 96 | L36: 1 | M36: 96 | N36: 20 | O36: 15.99 | P36: 15.99
C37: Total 611 | E37: =IF(AND(C36<>"",A37=0),VLOOKUP(C36,[1]PLANS!$A$20:$C$99,3,FALSE),"") -> Nettoyage des Locaux | F37: =SUBTOTAL(9,F33:F36) -> 384 | G37: =SUBTOTAL(9,G33:G36) -> 0 | M37: =SUBTOTAL(9,M33:M36) -> 384 | O37: =SUBTOTAL(9,O33:O36) -> 63.96 | P37: =SUBTOTAL(9,P33:P36) -> 63.96
D38: Total 5 | E38: =IF($D38<>"",VLOOKUP($D38,[1]PLANS!$B$2:$C$10,2,FALSE),"") -> Charges Bât. B | F38: =SUBTOTAL(9,F33:F36) -> 384 | G38: =SUBTOTAL(9,G33:G36) -> 0 | M38: =SUBTOTAL(9,M33:M36) -> 384 | O38: =SUBTOTAL(9,O33:O36) -> 63.96 | P38: =SUBTOTAL(9,P33:P36) -> 63.96
A39: 15 | B39: 2016-01-01 | C39: 601.6 | D39: 6 | E39: reprise eau 167m3 | F39: -749.66 | L39: 1 | M39: -749.66 | N39: 20 | O39: 124.89 | P39: 124.89
A40: 59 | B40: 2016-01-05 | C40: 601.6 | D40: 6 | E40: facture VEOLIA eau 177m3 | F40: 794.55 | L40: 1 | M40: 794.55 | N40: 20 | O40: 132.37 | P40: 132.37
A41: 182 | B41: 2016-04-08 | C41: 601.6 | D41: 6 | E41: facture VEOLIA eau 148m3 | F41: 644.98 | L41: 1 | M41: 644.98 | N41: 20 | O41: 107.44 | P41: 107.44
C42: Total 601.6 | E42: =IF(AND(C41<>"",A42=0),VLOOKUP(C41,[1]PLANS!$A$20:$C$99,3,FALSE),"") -> EAU Indiv. | F42: =SUBTOTAL(9,F39:F41) -> 689.87 | G42: =SUBTOTAL(9,G39:G41) -> 0 | M42: =SUBTOTAL(9,M39:M41) -> 689.87 | O42: =SUBTOTAL(9,O39:O41) -> 364.7 | P42: =SUBTOTAL(9,P39:P41) -> 364.7
D43: Total 6 | E43: =IF($D43<>"",VLOOKUP($D43,[1]PLANS!$B$2:$C$10,2,FALSE),"") -> Eau froide Indiv. | F43: =SUBTOTAL(9,F39:F41) -> 689.87 | G43: =SUBTOTAL(9,G39:G41) -> 0 | M43: =SUBTOTAL(9,M39:M41) -> 689.87 | O43: =SUBTOTAL(9,O39:O41) -> 364.7 | P43: =SUBTOTAL(9,P39:P41) -> 364.7
A44: 33 | B44: 2016-01-01 | C44: 701.1 | D44: 9 | E44: Appel prov 1er trim 2016 | G44: 1450.01
A45: 153 | B45: 2016-04-01 | C45: 701.1 | D45: 9 | E45: Appel prov 2ème trim 2016 | G45: 1450
C46: Total 701.1 | E46: =IF(AND(C45<>"",A46=0),VLOOKUP(C45,[1]PLANS!$A$20:$C$99,3,FALSE),"") -> Provisions charges Ctes | F46: =SUBTOTAL(9,F44:F45) -> 0 | G46: =SUBTOTAL(9,G44:G45) -> 2900.01 | M46: =SUBTOTAL(9,M44:M45) -> 0 | O46: =SUBTOTAL(9,O44:O45) -> 0 | P46: =SUBTOTAL(9,P44:P45) -> 0
D47: Total 9 | E47: =IF($D47<>"",VLOOKUP($D47,[1]PLANS!$B$2:$C$10,2,FALSE),"") -> Provisions. | F47: =SUBTOTAL(9,F44:F45) -> 0 | G47: =SUBTOTAL(9,G44:G45) -> 2900.01 | M47: =SUBTOTAL(9,M44:M45) -> 0 | O47: =SUBTOTAL(9,O44:O45) -> 0 | P47: =SUBTOTAL(9,P44:P45) -> 0
A48: 47 | B48: 2016-01-02 | C48: 671.1 | D48: 11 | E48: facture travaux peinture | F48: 740.05 | K48: 60 | N48: 20 | O48: 123.34 | Q48: 1790.84
A49: 86 | B49: 2016-02-01 | C49: 671.1 | D49: 11 | E49: facture travaux peinture | F49: 740.05 | K49: 60 | N49: 20 | O49: 123.34 | Q49: 2471.26
A50: 118 | B50: 2016-03-01 | C50: 671.1 | D50: 11 | E50: facture travaux peinture | F50: 740.05 | K50: 60 | N50: 20 | O50: 123.34 | Q50: 2057.81
A51: 160 | B51: 2016-04-01 | C51: 671.1 | D51: 11 | E51: facture travaux peinture | F51: 740.05 | K51: 60 | N51: 20 | O51: 123.34 | Q51: 2047.77
A52: 40 | B52: 2016-01-01 | C52: 702.1 | D52: 19 | E52: 1er appel travaux peinture | G52: 740.05 | K52: 70 | Q52: 1790.84
A53: 75 | B53: 2016-02-01 | C53: 702.1 | D53: 19 | E53: 2e appel travaux peinture | G53: 740.05 | K53: 70 | Q53: 2211.42
A54: 111 | B54: 2016-03-01 | C54: 702.1 | D54: 19 | E54: 3e appel travaux peinture | G54: 740.05 | K54: 70 | Q54: 2057.81
A55: 146 | B55: 2016-04-01 | C55: 702.1 | D55: 19 | E55: 4e appel travaux peinture | G55: 740.05 | K55: 70 | Q55: 2047.77
A56: 1 | B56: 2016-01-01 | C56: 999 | D56: 99 | E56: xxx | H56: =IF(AND(C56>=600,D56=0),"CLE","") ->  | I56: =IF(F56>G56,(F56-G56)*(A56=0),"") ->  | J56: =IF(G56>F56,(G56-F56)*(A56=0),"") ->  | K56: =IF(A56>0,VLOOKUP(C56,PLANS!A$20:$D$99,4),"") -> 99 | L56: =IF(C56<>0,VLOOKUP(C56,PLANS!$A$20:$C$99,2,FALSE),0) -> 0 | M56: =IF(L56<>0,ROUND((F56-G56)*L56,2),0) -> 0 | P56: =O56*L56 -> 0
A57: 16 | B57: 2016-01-01 | C57: 103.1 | E57: A nouveau avance trésorerie | K57: 10 | Q57: 1790.84
A58: 17 | B58: 2016-01-01 | C58: 103.1 | E58: SECLIN | G58: 117 | K58: 10 | Q58: 1790.84
A59: 18 | B59: 2016-01-01 | C59: 103.1 | E59: AUDIARD | G59: 150 | K59: 10 | Q59: 1790.84
A60: 19 | B60: 2016-01-01 | C60: 103.1 | E60: BERNARDIN | G60: 195 | K60: 10 | Q60: 1790.84
A61: 20 | B61: 2016-01-01 | C61: 103.1 | E61: HU BERT | G61: 206 | K61: 10 | Q61: 1790.84
A62: 21 | B62: 2016-01-01 | C62: 103.1 | E62: LELIEVRE | G62: 233 | K62: 10 | Q62: 1790.84
A63: 22 | B63: 2016-01-01 | C63: 103.1 | E63: RONDEAU | G63: 99 | K63: 10 | Q63: 1790.84
A64: 107 | B64: 2016-02-24 | C64: 103.1 | E64: SECLIN | F64: 117 | K64: 10 | Q64: 2057.81 | T64: 760.05
A65: 108 | B65: 2016-02-24 | C65: 103.1 | E65: AUBERT | G65: 117 | K65: 10 | Q65: 2057.81
A66: 23 | B66: 2016-01-01 | C66: 103.2 | E66: A nouveau avance travaux | K66: 10 | Q66: 1790.84 | S66: 609.8
A67: 24 | B67: 2016-01-01 | C67: 103.2 | E67: SECLIN | G67: 93.87 | K67: 10 | Q67: 1790.84
A68: 25 | B68: 2016-01-01 | C68: 103.2 | E68: AUDOARD | G68: 120.36 | K68: 10 | Q68: 1790.84 | S68: 577.24
A69: 26 | B69: 2016-01-01 | C69: 103.2 | E69: BERNARDIN | G69: 154.05 | K69: 10 | Q69: 1790.84
A70: 27 | B70: 2016-01-01 | C70: 103.2 | E70: HUBERT | G70: 165.32 | K70: 10 | Q70: 1790.84 | S70: 66.27
A71: 28 | B71: 2016-01-01 | C71: 103.2 | E71: LELIEVRFE | G71: 186.96 | K71: 10 | Q71: 1790.84
A72: 29 | B72: 2016-01-01 | C72: 103.2 | E72: RONDEAU | G72: 79.45 | K72: 10 | Q72: 1790.84 | S72: 321
A73: 109 | B73: 2016-02-24 | C73: 103.2 | E73: SECLIN | F73: 93.87 | K73: 10 | Q73: 2057.81
A74: 110 | B74: 2016-02-24 | C74: 103.2 | E74: AUBERT | G74: 93.87 | K74: 10 | Q74: 2057.81
A75: 202 | B75: 2016-05-01 | C75: 103.2 | E75: avance travaux mai | G75: 400 | K75: 10 | Q75: 2013.78
A76: 60 | B76: 2016-01-05 | C76: 401.1 | E76: facture VEOLIA eau 177m3 | G76: 794.55 | K76: 40 | Q76: 2605.1
A77: 71 | B77: 2016-01-16 | C77: 401.1 | E77: règlement VEOLIA eau 177m3 | F77: 794.55 | K77: 40 | Q77: 2927.57
A78: 183 | B78: 2016-04-08 | C78: 401.1 | E78: facture VEOLIA eau 148m3 | G78: 644.98 | K78: 40 | Q78: 2231.62 | T78: 13.4
A79: 184 | B79: 2016-04-08 | C79: 401.1 | E79: règlement VEOLIA eau 148m3 | F79: 644.98 | K79: 40 | Q79: 2231.62
A80: 139 | B80: 2016-03-29 | C80: 401.2 | E80: facture EDF | G80: 78.25 | K80: 40 | Q80: 2131.02 | S80: 335.87
A81: 140 | B81: 2016-03-29 | C81: 401.2 | E81: règlement EDF | F81: 78.25 | K81: 40 | Q81: 2131.02
A82: 62 | B82: 2016-01-15 | C82: 401.3 | E82: frais CCP | G82: 13.4 | K82: 40 | Q82: 2605.1
A83: 63 | B83: 2016-01-15 | C83: 401.3 | E83: prélèvement CCP | F83: 13.4 | K83: 40 | Q83: 2605.1
A84: 189 | B84: 2016-04-14 | C84: 401.3 | E84: frais CCP | G84: 16.5 | K84: 40 | Q84: 2050.76
A85: 190 | B85: 2016-04-14 | C85: 401.3 | E85: prélèvement CCP | F85: 16.5 | K85: 40 | Q85: 2050.76
A86: 68 | B86: 2016-01-16 | C86: 401.4 | E86: achat de timbres | G86: 9.6 | K86: 40 | Q86: 2927.57 | T86: 794.55
A87: 69 | B87: 2016-01-16 | C87: 401.4 | E87: règlement timbres | F87: 9.6 | K87: 40 | Q87: 2927.57
A88: 173 | B88: 2016-04-01 | C88: 401.4 | E88: achat de timbres | G88: 8 | K88: 40 | Q88: 2231.62 | S88: 78.4
A89: 174 | B89: 2016-04-01 | C89: 401.4 | E89: règlement timbres | F89: 8 | K89: 40 | Q89: 2231.62
A90: 193 | B90: 2016-04-15 | C90: 401.4 | E90: envoi courrier assurance | G90: 2.58 | K90: 40 | Q90: 2034.26
A91: 194 | B91: 2016-04-15 | C91: 401.4 | E91: règlt envoi courrier assurance | F91: 2.58 | K91: 40 | Q91: 2034.26
A92: 212 | B92: 2016-05-06 | C92: 401.4 | E92: envois LR convocs AG | G92: 33.04 | K92: 40 | Q92: 1658.98
A93: 213 | B93: 2015-05-06 | C93: 401.4 | E93: règlt envois LR convocs AG | F93: 33.04 | K93: 40 | Q93: 1658.98
A94: 221 | B94: 2016-05-11 | C94: 401.4 | E94: envoi LR rappel de charges | G94: 5.42 | K94: 40 | Q94: 1481.58
A95: 222 | B95: 2016-05-11 | C95: 401.4 | E95: règlt envoi LR rappel charges | F95: 5.42 | K95: 40 | Q95: 1481.58
A96: 100 | B96: 2016-02-08 | C96: 401.501 | E96: facture assurance immeuble | G96: 278.56 | K96: 40 | Q96: 1533.81
A97: 101 | B97: 2016-02-08 | C97: 401.501 | E97: règlt assurance immeuble | F97: 278.56 | K97: 40 | Q97: 1533.81 | S97: 213.01
A98: 197 | B98: 2016-04-16 | C98: 401.501 | E98: facture assurance immeuble | G98: 595.94 | K98: 40 | Q98: 2034.26
A99: 198 | B99: 2016-04-16 | C99: 401.501 | E99: règlt assurance immeuble | F99: 595.94 | K99: 40 | Q99: 2034.26 | S99: 46.83
A100: 225 | B100: 2016-05-11 | C100: 401.501 | E100: remb trop perçu ass imm | F100: 229.26 | K100: 40 | Q100: 1481.58
A101: 226 | B101: 2016-05-11 | C101: 401.501 | E101: trop perçu ass imm | G101: 229.26 | K101: 40 | Q101: 1481.58
A102: 133 | B102: 2016-03-09 | C102: 401.502 | E102: facture assurance ARC | G102: 143 | K102: 40 | Q102: 2101.59
A103: 134 | B103: 2016-03-09 | C103: 401.502 | E103: règlement ARC | F103: 143 | K103: 40 | Q103: 2101.59 | T103: 760.05
A104: 92 | B104: 2016-02-01 | C104: 401.6 | E104: facture EMN janvier | G104: 177.4 | K104: 40 | Q104: 1711.21
A105: 93 | B105: 2016-02-05 | C105: 401.6 | E105: règlement EMN janvier | F105: 177.4 | K105: 40 | Q105: 1711.21
A106: 178 | B106: 2016-04-05 | C106: 401.6 | E106: facture EMN fevrier | G106: 177.4 | K106: 40 | Q106: 2231.62
A107: 181 | B107: 2016-04-05 | C107: 401.6 | E107: facture EMN mars | G107: 177.4 | K107: 40 | Q107: 2231.62
A108: 209 | B108: 2016-05-01 | C108: 401.6 | E108: règlement EMN fevrier mars | F108: 354.8 | K108: 40 | Q108: 2013.78 | T108: 177.4
A109: 217 | B109: 2016-05-09 | C109: 401.6 | E109: facture EMN avril | G109: 177.4 | K109: 40 | Q109: 1658.98
A110: 218 | B110: 2016-05-09 | C110: 401.6 | E110: règlement EMN avril | F110: 177.4 | K110: 40 | Q110: 1658.98
A111: 96 | B111: 2016-02-08 | C111: 401.7 | E111: facture fournitures compta | G111: 77.98 | K111: 40 | Q111: 1533.81
A112: 97 | B112: 2016-02-08 | C112: 401.7 | E112: règlt fournitures compta | F112: 77.98 | K112: 40 | Q112: 1533.81
A113: 129 | B113: 2016-03-09 | C113: 401.7 | E113: facture fournitures compta | G113: 5.08 | K113: 40 | Q113: 2101.59
A114: 130 | B114: 2016-03-09 | C114: 401.7 | E114: règlt fournitures compta | F114: 5.08 | K114: 40 | Q114: 2101.59
A115: 143 | B115: 2016-03-31 | C115: 401.7 | E115: facture carnet entretien imm | G115: 5 | K115: 40 | Q115: 2052.77
A116: 144 | B116: 2016-03-31 | C116: 401.7 | E116: règlt carnet entretien imm | F116: 5 | K116: 40 | Q116: 2052.77 | T116: 278.56
A117: 48 | B117: 2016-01-02 | C117: 401.8 | E117: facture DUBOIS | G117: 740.05 | K117: 40 | Q117: 1790.84
A118: 49 | B118: 2016-01-02 | C118: 401.8 | E118: règlt Fact,DUBOIS | F118: 760.05 | K118: 40 | Q118: 1790.84 | S118: 715.97
A119: 87 | B119: 2016-02-01 | C119: 401.8 | E119: facture DUBOIS | G119: 740.05 | K119: 40 | Q119: 2471.26
A120: 88 | B120: 2016-02-01 | C120: 401.8 | E120: règlt tact,DUBOIS | F120: 760.05 | K120: 40 | Q120: 2471.26 | S120: 86.59
A121: 119 | B121: 2016-03-01 | C121: 401.8 | E121: facture DUBOIS | G121: 740.05 | K121: 40 | Q121: 2057.81
A122: 120 | B122: 2016-03-01 | C122: 401.8 | E122: règlt fact,DUBOIS | F122: 720.05 | K122: 40 | Q122: 2057.81
A123: 161 | B123: 2016-04-01 | C123: 401.8 | E123: facture DUBOIS | G123: 740.05 | K123: 40 | Q123: 2047.77
A124: 162 | B124: 2016-04-01 | C124: 401.8 | E124: règlt fact,DUBOIS | F124: 720.05 | K124: 40 | Q124: 2047.77
A125: 13 | B125: 2016-01-01 | C125: 408.1 | E125: A nouveau eau 167m3 | G125: 749.66 | K125: 40 | Q125: 1790.84
A126: 14 | B126: 2016-01-01 | C126: 408.1 | E126: reprise eau 167m3 | F126: 749.66 | K126: 40 | Q126: 1790.84
A127: 228 | B127: 2016-06-22 | C127: 409 | E127: Acompte VERNEUIL | F127: 1000 | K127: 41 | Q127: 1710.84
A128: 3 | B128: 2016-01-01 | C128: 450.01 | E128: A nouveau AUBERT | G128: 314.25 | K128: 45 | Q128: 1790.84
A129: 34 | B129: 2016-01-01 | C129: 450.01 | E129: appel 1er trim AUBERT | F129: 254.17 | K129: 45 | Q129: 1790.84
A130: 41 | B130: 2016-01-01 | C130: 450.01 | E130: 1er appel trav,peint, AUBERT | F130: 86.59 | K130: 45 | Q130: 1790.84
A131: 55 | B131: 2016-01-04 | C131: 450.01 | E131: règlement AUBERT | G131: 66.27 | K131: 45 | Q131: 2217.83
A132: 76 | B132: 2016-02-01 | C132: 450.01 | E132: 2è appel trav,peint,AUBERT | F132: 86.59 | K132: 45 | Q132: 2211.42
A133: 84 | B133: 2016-02-01 | C133: 450.01 | E133: règlement AUBERT | G133: 46.83 | K133: 45 | Q133: 2424.43
A134: 105 | B134: 2016-02-24 | C134: 450.01 | E134: règlement AUBERT | G134: 86.59 | K134: 45 | Q134: 1971.22
A135: 112 | B135: 2016-03-01 | C135: 450.01 | E135: 3è appel trav,peint,AUBERT | F135: 86.59 | K135: 45 | Q135: 2057.81 | T135: 720.05
A136: 147 | B136: 2016-04-01 | C136: 450.01 | E136: 4è appel trav,peint,AUBERT | F136: 86.59 | K136: 45 | Q136: 2047.77
A137: 154 | B137: 2016-04-01 | C137: 450.01 | E137: appel prov 2è trim AUBERT | F137: 218.89 | K137: 45 | Q137: 2047.77 | S137: 146.9
A138: 166 | B138: 2016-04-01 | C138: 450.01 | E138: règlement AUBERT | G138: 86.59 | K138: 45 | Q138: 1650.72
A139: 168 | B139: 2016-04-01 | C139: 450.01 | E139: règlement AUBERT | G139: 218.89 | K139: 45 | Q139: 1737.31 | S139: 550
A140: 203 | B140: 2016-05-01 | C140: 450.01 | E140: av travx mai AUBERT | F140: 46.94 | K140: 45 | Q140: 2013.78
A141: 8 | B141: 2016-01-01 | C141: 450.02 | E141: A nouveau AUDIARD | F141: 133.38 | K141: 45 | Q141: 1790.84 | S141: 66.93
A142: 35 | B142: 2016-01-01 | C142: 450.02 | E142: appel 1er trim AUDIARD | F142: 188.21 | K142: 45 | Q142: 1790.84
A143: 42 | B143: 2016-01-01 | C143: 450.02 | E143: 1er appel trav,peint, AUDIARD | F143: 111.01 | K143: 45 | Q143: 1790.84
A144: 57 | B144: 2016-01-04 | C144: 450.02 | E144: règlement AUDIARD | G144: 321 | K144: 45 | Q144: 2284.1
A145: 70 | B145: 2016-01-16 | C145: 450.02 | E145: règlement timbres | G145: 9.6 | K145: 45 | Q145: 2927.57
A146: 77 | B146: 2016-02-01 | C146: 450.02 | E146: 2è appel trav,peint,AUDIARD | F146: 111.01 | K146: 45 | Q146: 2211.42
A147: 82 | B147: 2016-02-01 | C147: 450.02 | E147: règlement AUDIARD | G147: 213.01 | K147: 45 | Q147: 2211.42
A148: 98 | B148: 2016-02-08 | C148: 450.02 | E148: règlt fournitures compta | G148: 77.98 | K148: 45 | Q148: 1533.81
A149: 113 | B149: 2016-03-01 | C149: 450.02 | E149: 3è appel trav,peint,AUDIARD | F149: 111.01 | K149: 45 | Q149: 2057.81 | T149: 143
A150: 131 | B150: 2016-03-09 | C150: 450.02 | E150: règlt fournitures compta | G150: 5.08 | K150: 45 | Q150: 2101.59
A151: 148 | B151: 2016-04-01 | C151: 450.02 | E151: 4è appel trav,peint,AUDIARD | F151: 111.01 | K151: 45 | Q151: 2047.77 | S151: 172.43
A152: 155 | B152: 2016-04-01 | C152: 450.02 | E152: appel prov 2è trim AUDIARD | F152: 183.15 | K152: 45 | Q152: 2047.77
A153: 164 | B153: 2016-04-01 | C153: 450.02 | E153: règlement AUDIARD | G153: 323 | K153: 45 | Q153: 1327.72
A154: 175 | B154: 2016-04-01 | C154: 450.02 | E154: règlement timbres | G154: 8 | K154: 45 | Q154: 2231.62
A155: 195 | B155: 2016-04-15 | C155: 450.02 | E155: règlt envoi courrier assurance | G155: 2.58 | K155: 45 | Q155: 2034.26 | T155: 78.25
A156: 204 | B156: 2016-05-01 | C156: 450.02 | E156: av travx mai AUDIARD | F156: 60.18 | K156: 45 | Q156: 2013.78
A157: 214 | B157: 2015-05-06 | C157: 450.02 | E157: règlt envois LR convocs AG | G157: 33.04 | K157: 45 | Q157: 1658.98
A158: 223 | B158: 2016-05-11 | C158: 450.02 | E158: règlt envoi LR rappel charges | G158: 5.42 | K158: 45 | Q158: 1481.58
A159: 9 | B159: 2016-01-01 | C159: 450.03 | E159: A nouveau BERFNARDIN | F159: 80.13 | K159: 45 | Q159: 1790.84 | T159: 5
A160: 36 | B160: 2016-01-01 | C160: 450.03 | E160: appel 1er trim BERNARDIN | F160: 131.11 | K160: 45 | Q160: 1790.84
A161: 43 | B161: 2016-01-01 | C161: 450.03 | E161: 1er appel trav;pein, BERNARDIN | F161: 144.31 | K161: 45 | Q161: 1790.84
A162: 53 | B162: 2016-01-04 | C162: 450.03 | E162: règlement BERNARDIN | G162: 577.24 | K162: 45 | Q162: 1640.59
A163: 78 | B163: 2016-02-01 | C163: 450.03 | E163: 2è appel trav,peint,BENHARDIN | F163: 144.31 | K163: 45 | Q163: 2211.42
A164: 114 | B164: 2016-03-01 | C164: 450.03 | E164: 3è appel trav,peint,BENHARDIN | F164: 144.31 | K164: 45 | Q164: 2057.81
A165: 126 | B165: 2016-03-01 | C165: 450.03 | E165: règlement BERNARDIN | G165: 66.93 | K165: 45 | Q165: 2034.66
A166: 149 | B166: 2016-04-01 | C166: 450.03 | E166: 4è appel trav,peint,BERNARDIN | F166: 144.31 | K166: 45 | Q166: 2047.77
A167: 156 | B167: 2016-04-01 | C167: 450.03 | E167: appel prov 2è trim BERNARDIN | F167: 131.11 | K167: 45 | Q167: 2047.77
A168: 170 | B168: 2016-04-01 | C168: 450.03 | E168: règlement BERNARDIN | G168: 275.42 | K168: 45 | Q168: 1956.2
A169: 205 | B169: 2016-05-01 | C169: 450.03 | E169: av travx mai BERNARDIN | F169: 77.03 | K169: 45 | Q169: 2013.78
A170: 10 | B170: 2016-01-01 | C170: 450.05 | E170: A nouveau HUBERT | F170: 551.11 | K170: 45 | Q170: 1790.84
A171: 37 | B171: 2016-01-01 | C171: 450.05 | E171: appel 1er trim HU BERT | F171: 376.64 | K171: 45 | Q171: 1790.84
A172: 44 | B172: 2016-01-01 | C172: 450.05 | E172: 1er appel trav,peint,HUBERT | F172: 152.45 | K172: 45 | Q172: 1790.84
A173: 51 | B173: 2016-01-04 | C173: 450.05 | E173: règlement HUBERT | G173: 609.8 | K173: 45 | Q173: 1030.79
A174: 73 | B174: 2016-01-16 | C174: 450.05 | E174: règlement HUBERT | G174: 78.4 | K174: 45 | Q174: 2133.02
A175: 79 | B175: 2016-02-01 | C175: 450.05 | E175: 2è appel trav;peint, HUBERT | F175: 152.45 | K175: 45 | Q175: 2211.42
A176: 115 | B176: 2016-03-01 | C176: 450.05 | E176: 3è appel trav,peint,HUBERT | F176: 152.45 | K176: 45 | Q176: 2057.81
A177: 122 | B177: 2016-03-01 | C177: 450.05 | E177: règlement HUBERT | G177: 146.9 | K177: 45 | Q177: 1337.76 | T177: 720.05
A178: 124 | B178: 2016-03-01 | C178: 450.05 | E178: règlement HUBERT | G178: 550 | K178: 45 | Q178: 1484.66
A179: 150 | B179: 2016-04-01 | C179: 450.05 | E179: 4è appel trav:peint,HUBERT | F179: 152.45 | K179: 45 | Q179: 2047.77 | S179: 323
A180: 157 | B180: 2016-04-01 | C180: 450.05 | E180: appel prov 2è trim HUBERT | F180: 423.01 | K180: 45 | Q180: 2047.77
A181: 200 | B181: 2016-04-18 | C181: 450.05 | E181: règlement HUBERT | G181: 575.46 | K181: 45 | Q181: 1438.32 | S181: 86.59
A182: 206 | B182: 2016-05-01 | C182: 450.05 | E182: av travx mai HUBERT | F182: 82.65 | K182: 45 | Q182: 2013.78
A183: 11 | B183: 2016-01-01 | C183: 450.06 | E183: A nouveau LELIEVRE | F183: 73.02 | K183: 45 | Q183: 1790.84 | S183: 218.89
A184: 38 | B184: 2016-01-01 | C184: 450.06 | E184: appel 1er trim LELIEVRE | F184: 298.09 | K184: 45 | Q184: 1790.84
A185: 45 | B185: 2016-01-01 | C185: 450.06 | E185: 1er appel trav,peint, LELIEVRE | F185: 172.43 | K185: 45 | Q185: 1790.84 | S185: 275.42
A186: 80 | B186: 2016-02-01 | C186: 450.06 | E186: 2è appel trav,peint,LELIEVRE | F186: 172.43 | K186: 45 | Q186: 2211.42
A187: 103 | B187: 2016-02-09 | C187: 450.06 | E187: règlement | G187: 715.97 | K187: 45 | Q187: 1255.25
A188: 116 | B188: 2016-03-01 | C188: 450.06 | E188: 3è appel trav,peint,LELIEVRE | F188: 172.43 | K188: 45 | Q188: 2057.81
A189: 136 | B189: 2016-03-18 | C189: 450.06 | E189: règlement LELIEVRE | G189: 172.43 | K189: 45 | Q189: 1958.59
A190: 151 | B190: 2016-04-01 | C190: 450.06 | E190: 4è appel trav,peint,LELIEVRE | F190: 172.43 | K190: 45 | Q190: 2047.77
A191: 158 | B191: 2016-04-01 | C191: 450.06 | E191: appel prov 2è trim LELIEVRE | F191: 291.69 | K191: 45 | Q191: 2047.77
A192: 186 | B192: 2016-04-12 | C192: 450.06 | E192: règlement LELIEVRE | G192: 464.12 | K192: 45 | Q192: 1586.64
A193: 207 | B193: 2016-05-01 | C193: 450.06 | E193: av travx mai LELIEVRE | F193: 93.48 | K193: 45 | Q193: 2013.78
A194: 12 | B194: 2016-01-01 | C194: 450.07 | E194: A nouveau RONDEAU | F194: 235.43 | K194: 45 | Q194: 1790.84
A195: 39 | B195: 2016-01-01 | C195: 450.07 | E195: appel 1er trim RONDEAU | F195: 201.79 | K195: 45 | Q195: 1790.84
A196: 46 | B196: 2016-01-01 | C196: 450.07 | E196: 1er appel trav,peint, RONDEAU | F196: 73.26 | K196: 45 | Q196: 1790.84
A197: 65 | B197: 2016-01-16 | C197: 450.07 | E197: règlement RONDEAU | G197: 335.87 | K197: 45 | Q197: 2591.7
A198: 81 | B198: 2016-02-01 | C198: 450.07 | E198: 2è appel trav,pezint,RONDEAU | F198: 73.26 | K198: 45 | Q198: 2211.42
A199: 117 | B199: 2016-03-01 | C199: 450.07 | E199: 3è appel trav,peint,RONDEAU | F199: 73.26 | K199: 45 | Q199: 2057.81 | T199: 644.98
A200: 152 | B200: 2016-04-01 | C200: 450.07 | E200: 4è appel trav,peint,RONDEAU | F200: 73.26 | K200: 45 | Q200: 2047.77
A201: 159 | B201: 2016-04-01 | C201: 450.07 | E201: appel prov 2è trim RONDEAU | F201: 202.15 | K201: 45 | Q201: 2047.77 | S201: 464.12
... 4188 more rows

Sheet Ch.TRAV.Ctes
A1: =IF($D1<>"",VLOOKUP($D1,PLANS!$B$2:$C$10,2,FALSE),"") ->  | E1: =VLOOKUP(H1,PLANS!$D$1:$E$9,2,FALSE) -> TRAVAUX PAR COMPTES | F1: Situation au | G1: 2016-06-22 | H1: 8 | M1: =IF($D$1=3,SUM(M5:M974),"") ->  | O1: =IF($D$1=3,SUM(O5:O974),"") ->  | P1: =IF($D$1=3,SUM(P5:P974),"") ->  | U1: Compte | V1: Compte | W1: Clé | AC1: Compte | AD1: Compte
C2: =IF($D2<>"",VLOOKUP($D2,[1]PLANS!$B$2:$C$10,2,FALSE),"") ->  | D2: =IF(AND($D1<>"",$A2=0),VLOOKUP($D1,[1]PLANS!$A$2:$C$10,2,FALSE),"") ->  | E2: =IF(AND(C1<>"",A2=0),VLOOKUP(C1,[1]PLANS!$A$20:$C$99,3,FALSE),"") ->  | I2: =IF(F2>G2,(F2-G2)*(A2=0),"") ->  | J2: =IF(G2>F2,(G2-F2)*(A2=0),"") ->  | L2: =IF(AND(K2>"",A2=""),VLOOKUP(K2,PLANS!$N$2:$O$11,2),"") ->  | M2: =IF($H$1=3,SUM(M6:M974),"") ->  | O2: =IF($H$1=3,SUM(O6:O974),"") ->  | P2: =IF($H$1=3,SUM(P6:P974),"") ->  | U2: >=600 | V2: <=799 | W2: =PLANS!H16 -> >=11 | AC2: >=450 | AD2: <460
A4: N° | B4: Date | C4: Compte | D4: Clé | E4: Libellé | F4: Charges | G4: Produits | T4: crédit
A5: 16 | B5: 2016-01-01 | C5: 103.1 | E5: A nouveau avance trésorerie | T5: =G5*($C5=512) -> 0
A6: 17 | B6: 2016-01-01 | C6: 103.1 | E6: SECLIN | G6: 117
A7: 18 | B7: 2016-01-01 | C7: 103.1 | E7: AUDIARD | G7: 150
A8: 19 | B8: 2016-01-01 | C8: 103.1 | E8: BERNARDIN | G8: 195
A9: 20 | B9: 2016-01-01 | C9: 103.1 | E9: HU BERT | G9: 206
A10: 21 | B10: 2016-01-01 | C10: 103.1 | E10: LELIEVRE | G10: 233
A11: 22 | B11: 2016-01-01 | C11: 103.1 | E11: RONDEAU | G11: 99
A12: 107 | B12: 2016-02-24 | C12: 103.1 | E12: SECLIN | F12: 117
A13: 108 | B13: 2016-02-24 | C13: 103.1 | E13: AUBERT | G13: 117
A14: 23 | B14: 2016-01-01 | C14: 103.2 | E14: A nouveau avance travaux
A15: 24 | B15: 2016-01-01 | C15: 103.2 | E15: SECLIN | G15: 93.87
A16: 25 | B16: 2016-01-01 | C16: 103.2 | E16: AUDOARD | G16: 120.36
A17: 26 | B17: 2016-01-01 | C17: 103.2 | E17: BERNARDIN | G17: 154.05
A18: 27 | B18: 2016-01-01 | C18: 103.2 | E18: HUBERT | G18: 165.32
A19: 28 | B19: 2016-01-01 | C19: 103.2 | E19: LELIEVRFE | G19: 186.96
A20: 29 | B20: 2016-01-01 | C20: 103.2 | E20: RONDEAU | G20: 79.45
A21: 109 | B21: 2016-02-24 | C21: 103.2 | E21: SECLIN | F21: 93.87
A22: 110 | B22: 2016-02-24 | C22: 103.2 | E22: AUBERT | G22: 93.87
A23: 202 | B23: 2016-05-01 | C23: 103.2 | E23: avance travaux mai | G23: 400
A24: 60 | B24: 2016-01-05 | C24: 401.1 | E24: facture VEOLIA eau 177m3 | G24: 794.55
A25: 71 | B25: 2016-01-16 | C25: 401.1 | E25: règlement VEOLIA eau 177m3 | F25: 794.55
A26: 183 | B26: 2016-04-08 | C26: 401.1 | E26: facture VEOLIA eau 148m3 | G26: 644.98
A27: 184 | B27: 2016-04-08 | C27: 401.1 | E27: règlement VEOLIA eau 148m3 | F27: 644.98
A28: 139 | B28: 2016-03-29 | C28: 401.2 | E28: facture EDF | G28: 78.25
A29: 140 | B29: 2016-03-29 | C29: 401.2 | E29: règlement EDF | F29: 78.25
A30: 62 | B30: 2016-01-15 | C30: 401.3 | E30: frais CCP | G30: 13.4
A31: 63 | B31: 2016-01-15 | C31: 401.3 | E31: prélèvement CCP | F31: 13.4
A32: 189 | B32: 2016-04-14 | C32: 401.3 | E32: frais CCP | G32: 16.5
A33: 190 | B33: 2016-04-14 | C33: 401.3 | E33: prélèvement CCP | F33: 16.5
A34: 68 | B34: 2016-01-16 | C34: 401.4 | E34: achat de timbres | G34: 9.6
A35: 69 | B35: 2016-01-16 | C35: 401.4 | E35: règlement timbres | F35: 9.6
A36: 173 | B36: 2016-04-01 | C36: 401.4 | E36: achat de timbres | G36: 8
A37: 174 | B37: 2016-04-01 | C37: 401.4 | E37: règlement timbres | F37: 8
A38: 193 | B38: 2016-04-15 | C38: 401.4 | E38: envoi courrier assurance | G38: 2.58
A39: 194 | B39: 2016-04-15 | C39: 401.4 | E39: règlt envoi courrier assurance | F39: 2.58
A40: 212 | B40: 2016-05-06 | C40: 401.4 | E40: envois LR convocs AG | G40: 33.04
A41: 213 | B41: 2015-05-06 | C41: 401.4 | E41: règlt envois LR convocs AG | F41: 33.04
A42: 221 | B42: 2016-05-11 | C42: 401.4 | E42: envoi LR rappel de charges | G42: 5.42
A43: 222 | B43: 2016-05-11 | C43: 401.4 | E43: règlt envoi LR rappel charges | F43: 5.42
A44: 100 | B44: 2016-02-08 | C44: 401.501 | E44: facture assurance immeuble | G44: 278.56
A45: 101 | B45: 2016-02-08 | C45: 401.501 | E45: règlt assurance immeuble | F45: 278.56
A46: 197 | B46: 2016-04-16 | C46: 401.501 | E46: facture assurance immeuble | G46: 595.94
A47: 198 | B47: 2016-04-16 | C47: 401.501 | E47: règlt assurance immeuble | F47: 595.94
A48: 225 | B48: 2016-05-11 | C48: 401.501 | E48: remb trop perçu ass imm | F48: 229.26
A49: 226 | B49: 2016-05-11 | C49: 401.501 | E49: trop perçu ass imm | G49: 229.26
A50: 133 | B50: 2016-03-09 | C50: 401.502 | E50: facture assurance ARC | G50: 143 | T50: 760.05
A51: 134 | B51: 2016-03-09 | C51: 401.502 | E51: règlement ARC | F51: 143
A52: 92 | B52: 2016-02-01 | C52: 401.6 | E52: facture EMN janvier | G52: 177.4
A53: 93 | B53: 2016-02-05 | C53: 401.6 | E53: règlement EMN janvier | F53: 177.4
A54: 178 | B54: 2016-04-05 | C54: 401.6 | E54: facture EMN fevrier | G54: 177.4
A55: 181 | B55: 2016-04-05 | C55: 401.6 | E55: facture EMN mars | G55: 177.4
A56: 209 | B56: 2016-05-01 | C56: 401.6 | E56: règlement EMN fevrier mars | F56: 354.8
A57: 217 | B57: 2016-05-09 | C57: 401.6 | E57: facture EMN avril | G57: 177.4
A58: 218 | B58: 2016-05-09 | C58: 401.6 | E58: règlement EMN avril | F58: 177.4
A59: 96 | B59: 2016-02-08 | C59: 401.7 | E59: facture fournitures compta | G59: 77.98
A60: 97 | B60: 2016-02-08 | C60: 401.7 | E60: règlt fournitures compta | F60: 77.98
A61: 129 | B61: 2016-03-09 | C61: 401.7 | E61: facture fournitures compta | G61: 5.08
A62: 130 | B62: 2016-03-09 | C62: 401.7 | E62: règlt fournitures compta | F62: 5.08
A63: 143 | B63: 2016-03-31 | C63: 401.7 | E63: facture carnet entretien imm | G63: 5
A64: 144 | B64: 2016-03-31 | C64: 401.7 | E64: règlt carnet entretien imm | F64: 5 | T64: 13.4
A65: 48 | B65: 2016-01-02 | C65: 401.8 | E65: facture DUBOIS | G65: 740.05
A66: 49 | B66: 2016-01-02 | C66: 401.8 | E66: règlt Fact,DUBOIS | F66: 760.05
A67: 87 | B67: 2016-02-01 | C67: 401.8 | E67: facture DUBOIS | G67: 740.05
A68: 88 | B68: 2016-02-01 | C68: 401.8 | E68: règlt tact,DUBOIS | F68: 760.05
A69: 119 | B69: 2016-03-01 | C69: 401.8 | E69: facture DUBOIS | G69: 740.05
A70: 120 | B70: 2016-03-01 | C70: 401.8 | E70: règlt fact,DUBOIS | F70: 720.05
A71: 161 | B71: 2016-04-01 | C71: 401.8 | E71: facture DUBOIS | G71: 740.05
A72: 162 | B72: 2016-04-01 | C72: 401.8 | E72: règlt fact,DUBOIS | F72: 720.05 | T72: 794.55
A73: 13 | B73: 2016-01-01 | C73: 408.1 | E73: A nouveau eau 167m3 | G73: 749.66
A74: 14 | B74: 2016-01-01 | C74: 408.1 | E74: reprise eau 167m3 | F74: 749.66
A75: 228 | B75: 2016-06-22 | C75: 409 | E75: Acompte VERNEUIL | F75: 1000
A76: 3 | B76: 2016-01-01 | C76: 450.01 | E76: A nouveau AUBERT | G76: 314.25
A77: 34 | B77: 2016-01-01 | C77: 450.01 | E77: appel 1er trim AUBERT | F77: 254.17
A78: 41 | B78: 2016-01-01 | C78: 450.01 | E78: 1er appel trav,peint, AUBERT | F78: 86.59
A79: 55 | B79: 2016-01-04 | C79: 450.01 | E79: règlement AUBERT | G79: 66.27
A80: 76 | B80: 2016-02-01 | C80: 450.01 | E80: 2è appel trav,peint,AUBERT | F80: 86.59
A81: 84 | B81: 2016-02-01 | C81: 450.01 | E81: règlement AUBERT | G81: 46.83
A82: 105 | B82: 2016-02-24 | C82: 450.01 | E82: règlement AUBERT | G82: 86.59
A83: 112 | B83: 2016-03-01 | C83: 450.01 | E83: 3è appel trav,peint,AUBERT | F83: 86.59
A84: 147 | B84: 2016-04-01 | C84: 450.01 | E84: 4è appel trav,peint,AUBERT | F84: 86.59
A85: 154 | B85: 2016-04-01 | C85: 450.01 | E85: appel prov 2è trim AUBERT | F85: 218.89
A86: 166 | B86: 2016-04-01 | C86: 450.01 | E86: règlement AUBERT | G86: 86.59
A87: 168 | B87: 2016-04-01 | C87: 450.01 | E87: règlement AUBERT | G87: 218.89
A88: 203 | B88: 2016-05-01 | C88: 450.01 | E88: av travx mai AUBERT | F88: 46.94
A89: 8 | B89: 2016-01-01 | C89: 450.02 | E89: A nouveau AUDIARD | F89: 133.38 | T89: 760.05
A90: 35 | B90: 2016-01-01 | C90: 450.02 | E90: appel 1er trim AUDIARD | F90: 188.21
A91: 42 | B91: 2016-01-01 | C91: 450.02 | E91: 1er appel trav,peint, AUDIARD | F91: 111.01
A92: 57 | B92: 2016-01-04 | C92: 450.02 | E92: règlement AUDIARD | G92: 321
A93: 70 | B93: 2016-01-16 | C93: 450.02 | E93: règlement timbres | G93: 9.6
A94: 77 | B94: 2016-02-01 | C94: 450.02 | E94: 2è appel trav,peint,AUDIARD | F94: 111.01 | T94: 177.4
A95: 82 | B95: 2016-02-01 | C95: 450.02 | E95: règlement AUDIARD | G95: 213.01
A96: 98 | B96: 2016-02-08 | C96: 450.02 | E96: règlt fournitures compta | G96: 77.98
A97: 113 | B97: 2016-03-01 | C97: 450.02 | E97: 3è appel trav,peint,AUDIARD | F97: 111.01
A98: 131 | B98: 2016-03-09 | C98: 450.02 | E98: règlt fournitures compta | G98: 5.08
A99: 148 | B99: 2016-04-01 | C99: 450.02 | E99: 4è appel trav,peint,AUDIARD | F99: 111.01
A100: 155 | B100: 2016-04-01 | C100: 450.02 | E100: appel prov 2è trim AUDIARD | F100: 183.15
A101: 164 | B101: 2016-04-01 | C101: 450.02 | E101: règlement AUDIARD | G101: 323
A102: 175 | B102: 2016-04-01 | C102: 450.02 | E102: règlement timbres | G102: 8 | T102: 278.56
A103: 195 | B103: 2016-04-15 | C103: 450.02 | E103: règlt envoi courrier assurance | G103: 2.58
A104: 204 | B104: 2016-05-01 | C104: 450.02 | E104: av travx mai AUDIARD | F104: 60.18
A105: 214 | B105: 2015-05-06 | C105: 450.02 | E105: règlt envois LR convocs AG | G105: 33.04
A106: 223 | B106: 2016-05-11 | C106: 450.02 | E106: règlt envoi LR rappel charges | G106: 5.42
A107: 9 | B107: 2016-01-01 | C107: 450.03 | E107: A nouveau BERFNARDIN | F107: 80.13
A108: 36 | B108: 2016-01-01 | C108: 450.03 | E108: appel 1er trim BERNARDIN | F108: 131.11
A109: 43 | B109: 2016-01-01 | C109: 450.03 | E109: 1er appel trav;pein, BERNARDIN | F109: 144.31
A110: 53 | B110: 2016-01-04 | C110: 450.03 | E110: règlement BERNARDIN | G110: 577.24
A111: 78 | B111: 2016-02-01 | C111: 450.03 | E111: 2è appel trav,peint,BENHARDIN | F111: 144.31
A112: 114 | B112: 2016-03-01 | C112: 450.03 | E112: 3è appel trav,peint,BENHARDIN | F112: 144.31
A113: 126 | B113: 2016-03-01 | C113: 450.03 | E113: règlement BERNARDIN | G113: 66.93
A114: 149 | B114: 2016-04-01 | C114: 450.03 | E114: 4è appel trav,peint,BERNARDIN | F114: 144.31
A115: 156 | B115: 2016-04-01 | C115: 450.03 | E115: appel prov 2è trim BERNARDIN | F115: 131.11
A116: 170 | B116: 2016-04-01 | C116: 450.03 | E116: règlement BERNARDIN | G116: 275.42
A117: 205 | B117: 2016-05-01 | C117: 450.03 | E117: av travx mai BERNARDIN | F117: 77.03
A118: 10 | B118: 2016-01-01 | C118: 450.05 | E118: A nouveau HUBERT | F118: 551.11
A119: 37 | B119: 2016-01-01 | C119: 450.05 | E119: appel 1er trim HU BERT | F119: 376.64
A120: 44 | B120: 2016-01-01 | C120: 450.05 | E120: 1er appel trav,peint,HUBERT | F120: 152.45
A121: 51 | B121: 2016-01-04 | C121: 450.05 | E121: règlement HUBERT | G121: 609.8 | T121: 720.05
A122: 73 | B122: 2016-01-16 | C122: 450.05 | E122: règlement HUBERT | G122: 78.4
A123: 79 | B123: 2016-02-01 | C123: 450.05 | E123: 2è appel trav;peint, HUBERT | F123: 152.45
A124: 115 | B124: 2016-03-01 | C124: 450.05 | E124: 3è appel trav,peint,HUBERT | F124: 152.45
A125: 122 | B125: 2016-03-01 | C125: 450.05 | E125: règlement HUBERT | G125: 146.9
A126: 124 | B126: 2016-03-01 | C126: 450.05 | E126: règlement HUBERT | G126: 550
A127: 150 | B127: 2016-04-01 | C127: 450.05 | E127: 4è appel trav:peint,HUBERT | F127: 152.45
A128: 157 | B128: 2016-04-01 | C128: 450.05 | E128: appel prov 2è trim HUBERT | F128: 423.01
A129: 200 | B129: 2016-04-18 | C129: 450.05 | E129: règlement HUBERT | G129: 575.46
A130: 206 | B130: 2016-05-01 | C130: 450.05 | E130: av travx mai HUBERT | F130: 82.65
A131: 11 | B131: 2016-01-01 | C131: 450.06 | E131: A nouveau LELIEVRE | F131: 73.02
A132: 38 | B132: 2016-01-01 | C132: 450.06 | E132: appel 1er trim LELIEVRE | F132: 298.09
A133: 45 | B133: 2016-01-01 | C133: 450.06 | E133: 1er appel trav,peint, LELIEVRE | F133: 172.43
A134: 80 | B134: 2016-02-01 | C134: 450.06 | E134: 2è appel trav,peint,LELIEVRE | F134: 172.43
A135: 103 | B135: 2016-02-09 | C135: 450.06 | E135: règlement | G135: 715.97 | T135: 143
A136: 116 | B136: 2016-03-01 | C136: 450.06 | E136: 3è appel trav,peint,LELIEVRE | F136: 172.43
A137: 136 | B137: 2016-03-18 | C137: 450.06 | E137: règlement LELIEVRE | G137: 172.43
A138: 151 | B138: 2016-04-01 | C138: 450.06 | E138: 4è appel trav,peint,LELIEVRE | F138: 172.43
A139: 158 | B139: 2016-04-01 | C139: 450.06 | E139: appel prov 2è trim LELIEVRE | F139: 291.69
A140: 186 | B140: 2016-04-12 | C140: 450.06 | E140: règlement LELIEVRE | G140: 464.12
A141: 207 | B141: 2016-05-01 | C141: 450.06 | E141: av travx mai LELIEVRE | F141: 93.48 | T141: 78.25
A142: 12 | B142: 2016-01-01 | C142: 450.07 | E142: A nouveau RONDEAU | F142: 235.43
A143: 39 | B143: 2016-01-01 | C143: 450.07 | E143: appel 1er trim RONDEAU | F143: 201.79
A144: 46 | B144: 2016-01-01 | C144: 450.07 | E144: 1er appel trav,peint, RONDEAU | F144: 73.26
A145: 65 | B145: 2016-01-16 | C145: 450.07 | E145: règlement RONDEAU | G145: 335.87 | T145: 5
A146: 81 | B146: 2016-02-01 | C146: 450.07 | E146: 2è appel trav,pezint,RONDEAU | F146: 73.26
A147: 117 | B147: 2016-03-01 | C147: 450.07 | E147: 3è appel trav,peint,RONDEAU | F147: 73.26
A148: 152 | B148: 2016-04-01 | C148: 450.07 | E148: 4è appel trav,peint,RONDEAU | F148: 73.26
A149: 159 | B149: 2016-04-01 | C149: 450.07 | E149: appel prov 2è trim RONDEAU | F149: 202.15
A150: 208 | B150: 2016-05-01 | C150: 450.07 | E150: av travx mai RONDEAU | F150: 39.72
A151: 30 | B151: 2016-01-01 | C151: 471 | E151: A nouveau écart de répartition | F151: 0.01
A152: 31 | B152: 2016-01-01 | C152: 471 | E152: régul écart de répartition | G152: 0.01
A153: 2 | B153: 2016-01-01 | C153: 512 | E153: A nouveau | F153: 1790.84
A154: 50 | B154: 2016-01-02 | C154: 512 | E154: règlt Fact,DUBOIS | G154: 760.05
A155: 52 | B155: 2016-01-04 | C155: 512 | E155: règlement HUGNET | F155: 609.8
A156: 54 | B156: 2016-01-04 | C156: 512 | E156: règlement BENHARROSH | F156: 577.24
A157: 56 | B157: 2016-01-04 | C157: 512 | E157: règlement ORTEGA | F157: 66.27
A158: 58 | B158: 2016-01-04 | C158: 512 | E158: règlement AUDRAIN | F158: 321
A159: 64 | B159: 2016-01-15 | C159: 512 | E159: prèlèvement CCP | G159: 13.4
A160: 66 | B160: 2016-01-16 | C160: 512 | E160: règlement RODIER | F160: 335.87
A161: 72 | B161: 2016-01-16 | C161: 512 | E161: règlement VEOLIA eau 177m3 | G161: 794.55
A162: 74 | B162: 2016-01-16 | C162: 512 | E162: règlement HUGNET | F162: 78.4
A163: 83 | B163: 2016-02-01 | C163: 512 | E163: règlement AUDRAIN | F163: 213.01 | T163: 720.05
A164: 85 | B164: 2016-02-01 | C164: 512 | E164: règlement ORTEGA | F164: 46.83
A165: 89 | B165: 2016-02-01 | C165: 512 | E165: règlt Fact,DUBOIS | G165: 760.05
A166: 94 | B166: 2016-02-05 | C166: 512 | E166: règlement EMN janvier | G166: 177.4
A167: 102 | B167: 2016-02-08 | C167: 512 | E167: règlt assurance immeuble | G167: 278.56
A168: 104 | B168: 2016-02-09 | C168: 512 | E168: règlement | F168: 715.97
A169: 106 | B169: 2016-02-24 | C169: 512 | E169: règlement ORTEGA | F169: 86.59
A170: 121 | B170: 2016-03-01 | C170: 512 | E170: règlt taxe ass 3ème verst | G170: 720.05
A171: 123 | B171: 2016-03-01 | C171: 512 | E171: règlement HUGNET | F171: 146.9
A172: 125 | B172: 2016-03-01 | C172: 512 | E172: règlement HUGNET | F172: 550
A173: 127 | B173: 2016-03-01 | C173: 512 | E173: règlement BENHARROSH | F173: 66.93
A174: 135 | B174: 2016-03-09 | C174: 512 | E174: règlement ARC | G174: 143
A175: 137 | B175: 2016-03-18 | C175: 512 | E175: règlement LEFEBURE | F175: 172.43
A176: 141 | B176: 2016-03-29 | C176: 512 | E176: règlement EDF | G176: 78.25
A177: 145 | B177: 2016-03-31 | C177: 512 | E177: règlt carnet entretien imm | G177: 5
A178: 163 | B178: 2016-04-01 | C178: 512 | E178: règlt fact,DUBOIS | G178: 720.05
A179: 165 | B179: 2016-04-01 | C179: 512 | E179: règlement AUDRAIN | F179: 323
A180: 167 | B180: 2016-04-01 | C180: 512 | E180: règlement ORTEGA | F180: 86.59
A181: 169 | B181: 2016-04-01 | C181: 512 | E181: règlement SECLIN | F181: 218.89
A182: 171 | B182: 2016-04-01 | C182: 512 | E182: règlement BENHARROSH | F182: 275.42
A183: 185 | B183: 2016-04-08 | C183: 512 | E183: règlement VEOLIA eau 148m3 | G183: 644.98
A184: 187 | B184: 2016-04-12 | C184: 512 | E184: règlement LEFEBURE | F184: 464.12
A185: 191 | B185: 2016-04-14 | C185: 512 | E185: prélèvement CCP | G185: 16.5 | T185: 644.98
A186: 199 | B186: 2016-04-16 | C186: 512 | E186: règlt assurance immeuble | G186: 595.94
A187: 201 | B187: 2016-04-18 | C187: 512 | E187: règlement HUGNET | F187: 575.46
A188: 210 | B188: 2016-05-01 | C188: 512 | E188: règlement EMN février mars | G188: 354.8
A189: 219 | B189: 2016-05-09 | C189: 512 | E189: règlement EMN avril | G189: 177.4
A190: 227 | B190: 2016-05-11 | C190: 512 | E190: trop perçu ass imm | F190: 229.26
A191: 229 | B191: 2016-06-22 | C191: 512 | E191: Acompte VERNEUIL | G191: 1000 | T191: 16.5
A192: 15 | B192: 2016-01-01 | C192: 601.6 | D192: 6 | E192: reprise eau 167m3 | F192: -749.66
A193: 59 | B193: 2016-01-05 | C193: 601.6 | D193: 6 | E193: facture VEOLIA eau 177m3 | F193: 794.55
A194: 182 | B194: 2016-04-08 | C194: 601.6 | D194: 6 | E194: facture VEOLIA eau 148m3 | F194: 644.98
A195: 138 | B195: 2016-03-29 | C195: 602 | D195: 1 | E195: facture EDF | F195: 78.25
A196: 32 | B196: 2016-01-01 | C196: 611 | D196: 1 | E196: régul écart de répartition | F196: 0.01
A197: 90 | B197: 2016-02-01 | C197: 611 | D197: 1 | E197: facture EMN janvier H+C | F197: 81.4
A198: 91 | B198: 2016-02-01 | C198: 611 | D198: 5 | E198: facture EMN janvier esc | F198: 96
A199: 176 | B199: 2016-04-05 | C199: 611 | D199: 1 | E199: facture EMN fevrier H+C | F199: 81.4 | T199: 595.94
A200: 177 | B200: 2016-04-05 | C200: 611 | D200: 5 | E200: facture EMN fevrier esc | F200: 96
A201: 179 | B201: 2016-04-05 | C201: 611 | D201: 1 | E201: facture EMN mars H+C | F201: 81.4
... 4188 more rows

Sheet Ch.TRAV.Clés
A1: =IF($D1<>"",VLOOKUP($D1,PLANS!$B$2:$C$10,2,FALSE),"") ->  | E1: =VLOOKUP(H1,PLANS!$D$1:$E$9,2,FALSE) -> TRAVAUX PAR CLES | F1: Situation au | G1: 2016-06-22 | H1: 9 | M1: =IF($D$1=3,SUM(M5:M977),"") ->  | O1: =IF($D$1=3,SUM(O5:O977),"") ->  | W1: Clé | AC1: Compte | AD1: Compte
C2: =IF($D2<>"",VLOOKUP($D2,[1]PLANS!$B$2:$C$10,2,FALSE),"") ->  | D2: =IF(AND($D1<>"",$A2=0),VLOOKUP($D1,[1]PLANS!$A$2:$C$10,2,FALSE),"") ->  | E2: =IF(AND(C1<>"",A2=0),VLOOKUP(C1,[1]PLANS!$A$20:$C$99,3,FALSE),"") ->  | I2: =IF(F2>G2,(F2-G2)*(A2=0),"") ->  | J2: =IF(G2>F2,(G2-F2)*(A2=0),"") ->  | L2: =IF(AND(K2>"",A2=""),VLOOKUP(K2,PLANS!$N$2:$O$11,2),"") ->  | M2: =IF($H$1=3,SUM(M6:M977),"") ->  | O2: =IF($H$1=3,SUM(O6:O977),"") ->  | W2: =PLANS!H16 -> >=11 | AC2: >=450 | AD2: <460
A4: N° | B4: Date | C4: Compte | D4: Clé | E4: Libellé | F4: Charges | G4: Produits | H4: X | L4: Réc. | M4: Mt REC. | N4: Tx TVA | O4: Mt T.V.A.
A5: 138 | B5: 2016-03-29 | C5: 602 | D5: 1 | E5: facture EDF | F5: 78.25 | K5: 60 | L5: 1 | M5: 78.25 | N5: 20 | O5: 13.04
A6: 32 | B6: 2016-01-01 | C6: 611 | D6: 1 | E6: régul écart de répartition | F6: 0.01 | K6: 60 | L6: 1 | M6: 0.01
A7: 90 | B7: 2016-02-01 | C7: 611 | D7: 1 | E7: facture EMN janvier H+C | F7: 81.4 | K7: 60 | L7: 1 | M7: 81.4 | N7: 20 | O7: 13.56
A8: 176 | B8: 2016-04-05 | C8: 611 | D8: 1 | E8: facture EMN fevrier H+C | F8: 81.4 | K8: 60 | L8: 1 | M8: 81.4 | N8: 20 | O8: 13.56
A9: 179 | B9: 2016-04-05 | C9: 611 | D9: 1 | E9: facture EMN mars H+C | F9: 81.4 | K9: 60 | L9: 1 | M9: 81.4 | N9: 20 | O9: 13.56
A10: 215 | B10: 2016-05-09 | C10: 611 | D10: 1 | E10: facture EMN avril H+C | F10: 81.4 | K10: 60 | L10: 1 | M10: 81.4 | N10: 20 | O10: 13.56
A11: 99 | B11: 2016-02-08 | C11: 616.1 | D11: 1 | E11: facture assurance immeuble | F11: 278.56 | K11: 60
A12: 196 | B12: 2016-04-16 | C12: 616.1 | D12: 1 | E12: facture assurance immeuble | F12: 595.94 | K12: 60
A13: 224 | B13: 2016-05-11 | C13: 616.1 | D13: 1 | E13: remb trop perçu ass imm | F13: -229.26 | K13: 60
A14: 132 | B14: 2016-03-09 | C14: 616.2 | D14: 1 | E14: facture assurance ARC | F14: 143 | K14: 60
A15: 67 | B15: 2016-01-16 | C15: 621.3 | D15: 1 | E15: achat de timbres | F15: 9.6 | K15: 60
A16: 172 | B16: 2016-04-01 | C16: 621.3 | D16: 1 | E16: achat de timbres | F16: 8 | K16: 60
A17: 192 | B17: 2016-04-15 | C17: 621.3 | D17: 1 | E17: envoi courrier assurance | F17: 2.58 | K17: 60
A18: 211 | B18: 2016-05-06 | C18: 621.3 | D18: 1 | E18: envois LR convocs AG | F18: 33.04 | K18: 60
A19: 220 | B19: 2016-05-11 | C19: 621.3 | D19: 1 | E19: envoi LR rappel de charges | F19: 5.42 | K19: 60
A20: 95 | B20: 2016-02-08 | C20: 621.4 | D20: 1 | E20: facture fournitures compta | F20: 77.98 | K20: 60 | L20: 1 | M20: 77.98 | N20: 20 | O20: 12.99
A21: 128 | B21: 2016-03-09 | C21: 621.4 | D21: 1 | E21: facture fournitures compta | F21: 5.08 | K21: 60 | L21: 1 | M21: 5.08 | N21: 20
A22: 142 | B22: 2016-03-31 | C22: 621.4 | D22: 1 | E22: facture carnet entretien imm | F22: 5 | K22: 60 | L22: 1 | M22: 5
A23: 61 | B23: 2016-01-15 | C23: 662 | D23: 1 | E23: frais CCP | F23: 13.4 | K23: 60
A24: 188 | B24: 2016-04-14 | C24: 662 | D24: 1 | E24: frais CCP | F24: 16.5 | K24: 60
A25: 91 | B25: 2016-02-01 | C25: 611 | D25: 5 | E25: facture EMN janvier esc | F25: 96 | K25: 60 | L25: 1 | M25: 96 | N25: 20 | O25: 15.99
A26: 177 | B26: 2016-04-05 | C26: 611 | D26: 5 | E26: facture EMN fevrier esc | F26: 96 | K26: 60 | L26: 1 | M26: 96 | N26: 20 | O26: 15.99
A27: 180 | B27: 2016-04-05 | C27: 611 | D27: 5 | E27: facture EMN mars esc | F27: 96 | K27: 60 | L27: 1 | M27: 96 | N27: 20 | O27: 15.99
A28: 216 | B28: 2016-05-09 | C28: 611 | D28: 5 | E28: facture EMN avril esc | F28: 96 | K28: 60 | L28: 1 | M28: 96 | N28: 20 | O28: 15.99
A29: 15 | B29: 2016-01-01 | C29: 601.6 | D29: 6 | E29: reprise eau 167m3 | F29: -749.66 | K29: 60 | L29: 1 | M29: -749.66 | N29: 20 | O29: 124.89
A30: 59 | B30: 2016-01-05 | C30: 601.6 | D30: 6 | E30: facture VEOLIA eau 177m3 | F30: 794.55 | K30: 60 | L30: 1 | M30: 794.55 | N30: 20 | O30: 132.37
A31: 182 | B31: 2016-04-08 | C31: 601.6 | D31: 6 | E31: facture VEOLIA eau 148m3 | F31: 644.98 | K31: 60 | L31: 1 | M31: 644.98 | N31: 20 | O31: 107.44
A32: 33 | B32: 2016-01-01 | C32: 701.1 | D32: 9 | E32: Appel prov 1er trim 2016 | G32: 1450.01 | K32: 70
A33: 153 | B33: 2016-04-01 | C33: 701.1 | D33: 9 | E33: Appel prov 2ème trim 2016 | G33: 1450 | K33: 70
A34: 47 | B34: 2016-01-02 | C34: 671.1 | D34: 11 | E34: facture travaux peinture | F34: 740.05 | N34: 20 | O34: 123.34
A35: 86 | B35: 2016-02-01 | C35: 671.1 | D35: 11 | E35: facture travaux peinture | F35: 740.05 | N35: 20 | O35: 123.34
A36: 118 | B36: 2016-03-01 | C36: 671.1 | D36: 11 | E36: facture travaux peinture | F36: 740.05 | N36: 20 | O36: 123.34
A37: 160 | B37: 2016-04-01 | C37: 671.1 | D37: 11 | E37: facture travaux peinture | F37: 740.05 | N37: 20 | O37: 123.34
C38: Total 671.1 | E38: =IF(AND(C37<>"",A38=0),VLOOKUP(C37,[1]PLANS!$A$20:$C$99,3,FALSE),"") -> taxe assainissement | F38: =SUBTOTAL(9,F34:F37) -> 2960.2 | G38: =SUBTOTAL(9,G34:G37) -> 0 | L38: =SUBTOTAL(9,L34:L37) -> 0 | O38: =SUBTOTAL(9,O34:O37) -> 493.36
D39: Total 11 | F39: =SUBTOTAL(9,F34:F37) -> 2960.2 | G39: =SUBTOTAL(9,G34:G37) -> 0 | L39: =SUBTOTAL(9,L34:L37) -> 0 | O39: =SUBTOTAL(9,O34:O37) -> 493.36
A40: 40 | B40: 2016-01-01 | C40: 702.1 | D40: 19 | E40: 1er appel travaux peinture | G40: 740.05
A41: 75 | B41: 2016-02-01 | C41: 702.1 | D41: 19 | E41: 2e appel travaux peinture | G41: 740.05
A42: 111 | B42: 2016-03-01 | C42: 702.1 | D42: 19 | E42: 3e appel travaux peinture | G42: 740.05
A43: 146 | B43: 2016-04-01 | C43: 702.1 | D43: 19 | E43: 4e appel travaux peinture | G43: 740.05
C44: Total 702.1 | E44: =IF(AND(C43<>"",A44=0),VLOOKUP(C43,[1]PLANS!$A$20:$C$99,3,FALSE),"") -> Provision s/Trav.1 | F44: =SUBTOTAL(9,F40:F43) -> 0 | G44: =SUBTOTAL(9,G40:G43) -> 2960.2 | L44: =SUBTOTAL(9,L40:L43) -> 0 | O44: =SUBTOTAL(9,O40:O43) -> 0
D45: Total 19 | F45: =SUBTOTAL(9,F40:F43) -> 0 | G45: =SUBTOTAL(9,G40:G43) -> 2960.2 | L45: =SUBTOTAL(9,L40:L43) -> 0 | O45: =SUBTOTAL(9,O40:O43) -> 0
A46: 1 | B46: 2016-01-01 | C46: 999 | D46: 99 | E46: xxx | H46: =IF(AND(C46>=600,D46=0),"CLE","") ->  | I46: =IF(F46>G46,(F46-G46)*(A46=0),"") ->  | J46: =IF(G46>F46,(G46-F46)*(A46=0),"") ->  | K46: =IF(A46>0,VLOOKUP(C46,PLANS!A$20:$D$99,4),"") -> 99 | L46: =IF(C46<>0,VLOOKUP(C46,PLANS!$A$20:$C$99,2,FALSE),0) -> 0 | M46: =IF(L46<>0,ROUND((F46-G46)*L46,2),0) -> 0
A47: 16 | B47: 2016-01-01 | C47: 103.1 | E47: A nouveau avance trésorerie | K47: 10
A48: 17 | B48: 2016-01-01 | C48: 103.1 | E48: SECLIN | G48: 117 | K48: 10
A49: 18 | B49: 2016-01-01 | C49: 103.1 | E49: AUDIARD | G49: 150 | K49: 10
A50: 19 | B50: 2016-01-01 | C50: 103.1 | E50: BERNARDIN | G50: 195 | K50: 10
A51: 20 | B51: 2016-01-01 | C51: 103.1 | E51: HU BERT | G51: 206 | K51: 10
A52: 21 | B52: 2016-01-01 | C52: 103.1 | E52: LELIEVRE | G52: 233 | K52: 10
A53: 22 | B53: 2016-01-01 | C53: 103.1 | E53: RONDEAU | G53: 99 | K53: 10
A54: 107 | B54: 2016-02-24 | C54: 103.1 | E54: SECLIN | F54: 117 | K54: 10
A55: 108 | B55: 2016-02-24 | C55: 103.1 | E55: AUBERT | G55: 117 | K55: 10
A56: 23 | B56: 2016-01-01 | C56: 103.2 | E56: A nouveau avance travaux | K56: 10
A57: 24 | B57: 2016-01-01 | C57: 103.2 | E57: SECLIN | G57: 93.87 | K57: 10
A58: 25 | B58: 2016-01-01 | C58: 103.2 | E58: AUDOARD | G58: 120.36 | K58: 10
A59: 26 | B59: 2016-01-01 | C59: 103.2 | E59: BERNARDIN | G59: 154.05 | K59: 10
A60: 27 | B60: 2016-01-01 | C60: 103.2 | E60: HUBERT | G60: 165.32 | K60: 10
A61: 28 | B61: 2016-01-01 | C61: 103.2 | E61: LELIEVRFE | G61: 186.96 | K61: 10
A62: 29 | B62: 2016-01-01 | C62: 103.2 | E62: RONDEAU | G62: 79.45 | K62: 10
A63: 109 | B63: 2016-02-24 | C63: 103.2 | E63: SECLIN | F63: 93.87 | K63: 10
A64: 110 | B64: 2016-02-24 | C64: 103.2 | E64: AUBERT | G64: 93.87 | K64: 10
A65: 202 | B65: 2016-05-01 | C65: 103.2 | E65: avance travaux mai | G65: 400 | K65: 10
A66: 60 | B66: 2016-01-05 | C66: 401.1 | E66: facture VEOLIA eau 177m3 | G66: 794.55 | K66: 40
A67: 71 | B67: 2016-01-16 | C67: 401.1 | E67: règlement VEOLIA eau 177m3 | F67: 794.55 | K67: 40
A68: 183 | B68: 2016-04-08 | C68: 401.1 | E68: facture VEOLIA eau 148m3 | G68: 644.98 | K68: 40
A69: 184 | B69: 2016-04-08 | C69: 401.1 | E69: règlement VEOLIA eau 148m3 | F69: 644.98 | K69: 40
A70: 139 | B70: 2016-03-29 | C70: 401.2 | E70: facture EDF | G70: 78.25 | K70: 40
A71: 140 | B71: 2016-03-29 | C71: 401.2 | E71: règlement EDF | F71: 78.25 | K71: 40
A72: 62 | B72: 2016-01-15 | C72: 401.3 | E72: frais CCP | G72: 13.4 | K72: 40
A73: 63 | B73: 2016-01-15 | C73: 401.3 | E73: prélèvement CCP | F73: 13.4 | K73: 40
A74: 189 | B74: 2016-04-14 | C74: 401.3 | E74: frais CCP | G74: 16.5 | K74: 40
A75: 190 | B75: 2016-04-14 | C75: 401.3 | E75: prélèvement CCP | F75: 16.5 | K75: 40
A76: 68 | B76: 2016-01-16 | C76: 401.4 | E76: achat de timbres | G76: 9.6 | K76: 40
A77: 69 | B77: 2016-01-16 | C77: 401.4 | E77: règlement timbres | F77: 9.6 | K77: 40
A78: 173 | B78: 2016-04-01 | C78: 401.4 | E78: achat de timbres | G78: 8 | K78: 40
A79: 174 | B79: 2016-04-01 | C79: 401.4 | E79: règlement timbres | F79: 8 | K79: 40
A80: 193 | B80: 2016-04-15 | C80: 401.4 | E80: envoi courrier assurance | G80: 2.58 | K80: 40
A81: 194 | B81: 2016-04-15 | C81: 401.4 | E81: règlt envoi courrier assurance | F81: 2.58 | K81: 40
A82: 212 | B82: 2016-05-06 | C82: 401.4 | E82: envois LR convocs AG | G82: 33.04 | K82: 40
A83: 213 | B83: 2015-05-06 | C83: 401.4 | E83: règlt envois LR convocs AG | F83: 33.04 | K83: 40
A84: 221 | B84: 2016-05-11 | C84: 401.4 | E84: envoi LR rappel de charges | G84: 5.42 | K84: 40
A85: 222 | B85: 2016-05-11 | C85: 401.4 | E85: règlt envoi LR rappel charges | F85: 5.42 | K85: 40
A86: 100 | B86: 2016-02-08 | C86: 401.501 | E86: facture assurance immeuble | G86: 278.56 | K86: 40
A87: 101 | B87: 2016-02-08 | C87: 401.501 | E87: règlt assurance immeuble | F87: 278.56 | K87: 40
A88: 197 | B88: 2016-04-16 | C88: 401.501 | E88: facture assurance immeuble | G88: 595.94 | K88: 40
A89: 198 | B89: 2016-04-16 | C89: 401.501 | E89: règlt assurance immeuble | F89: 595.94 | K89: 40
A90: 225 | B90: 2016-05-11 | C90: 401.501 | E90: remb trop perçu ass imm | F90: 229.26 | K90: 40
A91: 226 | B91: 2016-05-11 | C91: 401.501 | E91: trop perçu ass imm | G91: 229.26 | K91: 40
A92: 133 | B92: 2016-03-09 | C92: 401.502 | E92: facture assurance ARC | G92: 143 | K92: 40
A93: 134 | B93: 2016-03-09 | C93: 401.502 | E93: règlement ARC | F93: 143 | K93: 40
A94: 92 | B94: 2016-02-01 | C94: 401.6 | E94: facture EMN janvier | G94: 177.4 | K94: 40
A95: 93 | B95: 2016-02-05 | C95: 401.6 | E95: règlement EMN janvier | F95: 177.4 | K95: 40
A96: 178 | B96: 2016-04-05 | C96: 401.6 | E96: facture EMN fevrier | G96: 177.4 | K96: 40
A97: 181 | B97: 2016-04-05 | C97: 401.6 | E97: facture EMN mars | G97: 177.4 | K97: 40
A98: 209 | B98: 2016-05-01 | C98: 401.6 | E98: règlement EMN fevrier mars | F98: 354.8 | K98: 40
A99: 217 | B99: 2016-05-09 | C99: 401.6 | E99: facture EMN avril | G99: 177.4 | K99: 40
A100: 218 | B100: 2016-05-09 | C100: 401.6 | E100: règlement EMN avril | F100: 177.4 | K100: 40
A101: 96 | B101: 2016-02-08 | C101: 401.7 | E101: facture fournitures compta | G101: 77.98 | K101: 40
A102: 97 | B102: 2016-02-08 | C102: 401.7 | E102: règlt fournitures compta | F102: 77.98 | K102: 40
A103: 129 | B103: 2016-03-09 | C103: 401.7 | E103: facture fournitures compta | G103: 5.08 | K103: 40
A104: 130 | B104: 2016-03-09 | C104: 401.7 | E104: règlt fournitures compta | F104: 5.08 | K104: 40
A105: 143 | B105: 2016-03-31 | C105: 401.7 | E105: facture carnet entretien imm | G105: 5 | K105: 40
A106: 144 | B106: 2016-03-31 | C106: 401.7 | E106: règlt carnet entretien imm | F106: 5 | K106: 40
A107: 48 | B107: 2016-01-02 | C107: 401.8 | E107: facture DUBOIS | G107: 740.05 | K107: 40
A108: 49 | B108: 2016-01-02 | C108: 401.8 | E108: règlt Fact,DUBOIS | F108: 760.05 | K108: 40
A109: 87 | B109: 2016-02-01 | C109: 401.8 | E109: facture DUBOIS | G109: 740.05 | K109: 40
A110: 88 | B110: 2016-02-01 | C110: 401.8 | E110: règlt tact,DUBOIS | F110: 760.05 | K110: 40
A111: 119 | B111: 2016-03-01 | C111: 401.8 | E111: facture DUBOIS | G111: 740.05 | K111: 40
A112: 120 | B112: 2016-03-01 | C112: 401.8 | E112: règlt fact,DUBOIS | F112: 720.05 | K112: 40
A113: 161 | B113: 2016-04-01 | C113: 401.8 | E113: facture DUBOIS | G113: 740.05 | K113: 40
A114: 162 | B114: 2016-04-01 | C114: 401.8 | E114: règlt fact,DUBOIS | F114: 720.05 | K114: 40
A115: 13 | B115: 2016-01-01 | C115: 408.1 | E115: A nouveau eau 167m3 | G115: 749.66 | K115: 40
A116: 14 | B116: 2016-01-01 | C116: 408.1 | E116: reprise eau 167m3 | F116: 749.66 | K116: 40
A117: 228 | B117: 2016-06-22 | C117: 409 | E117: Acompte VERNEUIL | F117: 1000 | K117: 41
A118: 3 | B118: 2016-01-01 | C118: 450.01 | E118: A nouveau AUBERT | G118: 314.25 | K118: 45
A119: 34 | B119: 2016-01-01 | C119: 450.01 | E119: appel 1er trim AUBERT | F119: 254.17 | K119: 45
A120: 41 | B120: 2016-01-01 | C120: 450.01 | E120: 1er appel trav,peint, AUBERT | F120: 86.59 | K120: 45
A121: 55 | B121: 2016-01-04 | C121: 450.01 | E121: règlement AUBERT | G121: 66.27 | K121: 45
A122: 76 | B122: 2016-02-01 | C122: 450.01 | E122: 2è appel trav,peint,AUBERT | F122: 86.59 | K122: 45
A123: 84 | B123: 2016-02-01 | C123: 450.01 | E123: règlement AUBERT | G123: 46.83 | K123: 45
A124: 105 | B124: 2016-02-24 | C124: 450.01 | E124: règlement AUBERT | G124: 86.59 | K124: 45
A125: 112 | B125: 2016-03-01 | C125: 450.01 | E125: 3è appel trav,peint,AUBERT | F125: 86.59 | K125: 45
A126: 147 | B126: 2016-04-01 | C126: 450.01 | E126: 4è appel trav,peint,AUBERT | F126: 86.59 | K126: 45
A127: 154 | B127: 2016-04-01 | C127: 450.01 | E127: appel prov 2è trim AUBERT | F127: 218.89 | K127: 45
A128: 166 | B128: 2016-04-01 | C128: 450.01 | E128: règlement AUBERT | G128: 86.59 | K128: 45
A129: 168 | B129: 2016-04-01 | C129: 450.01 | E129: règlement AUBERT | G129: 218.89 | K129: 45
A130: 203 | B130: 2016-05-01 | C130: 450.01 | E130: av travx mai AUBERT | F130: 46.94 | K130: 45
A131: 8 | B131: 2016-01-01 | C131: 450.02 | E131: A nouveau AUDIARD | F131: 133.38 | K131: 45
A132: 35 | B132: 2016-01-01 | C132: 450.02 | E132: appel 1er trim AUDIARD | F132: 188.21 | K132: 45
A133: 42 | B133: 2016-01-01 | C133: 450.02 | E133: 1er appel trav,peint, AUDIARD | F133: 111.01 | K133: 45
A134: 57 | B134: 2016-01-04 | C134: 450.02 | E134: règlement AUDIARD | G134: 321 | K134: 45
A135: 70 | B135: 2016-01-16 | C135: 450.02 | E135: règlement timbres | G135: 9.6 | K135: 45
A136: 77 | B136: 2016-02-01 | C136: 450.02 | E136: 2è appel trav,peint,AUDIARD | F136: 111.01 | K136: 45
A137: 82 | B137: 2016-02-01 | C137: 450.02 | E137: règlement AUDIARD | G137: 213.01 | K137: 45
A138: 98 | B138: 2016-02-08 | C138: 450.02 | E138: règlt fournitures compta | G138: 77.98 | K138: 45
A139: 113 | B139: 2016-03-01 | C139: 450.02 | E139: 3è appel trav,peint,AUDIARD | F139: 111.01 | K139: 45
A140: 131 | B140: 2016-03-09 | C140: 450.02 | E140: règlt fournitures compta | G140: 5.08 | K140: 45
A141: 148 | B141: 2016-04-01 | C141: 450.02 | E141: 4è appel trav,peint,AUDIARD | F141: 111.01 | K141: 45
A142: 155 | B142: 2016-04-01 | C142: 450.02 | E142: appel prov 2è trim AUDIARD | F142: 183.15 | K142: 45
A143: 164 | B143: 2016-04-01 | C143: 450.02 | E143: règlement AUDIARD | G143: 323 | K143: 45
A144: 175 | B144: 2016-04-01 | C144: 450.02 | E144: règlement timbres | G144: 8 | K144: 45
A145: 195 | B145: 2016-04-15 | C145: 450.02 | E145: règlt envoi courrier assurance | G145: 2.58 | K145: 45
A146: 204 | B146: 2016-05-01 | C146: 450.02 | E146: av travx mai AUDIARD | F146: 60.18 | K146: 45
A147: 214 | B147: 2015-05-06 | C147: 450.02 | E147: règlt envois LR convocs AG | G147: 33.04 | K147: 45
A148: 223 | B148: 2016-05-11 | C148: 450.02 | E148: règlt envoi LR rappel charges | G148: 5.42 | K148: 45
A149: 9 | B149: 2016-01-01 | C149: 450.03 | E149: A nouveau BERFNARDIN | F149: 80.13 | K149: 45
A150: 36 | B150: 2016-01-01 | C150: 450.03 | E150: appel 1er trim BERNARDIN | F150: 131.11 | K150: 45
A151: 43 | B151: 2016-01-01 | C151: 450.03 | E151: 1er appel trav;pein, BERNARDIN | F151: 144.31 | K151: 45
A152: 53 | B152: 2016-01-04 | C152: 450.03 | E152: règlement BERNARDIN | G152: 577.24 | K152: 45
A153: 78 | B153: 2016-02-01 | C153: 450.03 | E153: 2è appel trav,peint,BENHARDIN | F153: 144.31 | K153: 45
A154: 114 | B154: 2016-03-01 | C154: 450.03 | E154: 3è appel trav,peint,BENHARDIN | F154: 144.31 | K154: 45
A155: 126 | B155: 2016-03-01 | C155: 450.03 | E155: règlement BERNARDIN | G155: 66.93 | K155: 45
A156: 149 | B156: 2016-04-01 | C156: 450.03 | E156: 4è appel trav,peint,BERNARDIN | F156: 144.31 | K156: 45
A157: 156 | B157: 2016-04-01 | C157: 450.03 | E157: appel prov 2è trim BERNARDIN | F157: 131.11 | K157: 45
A158: 170 | B158: 2016-04-01 | C158: 450.03 | E158: règlement BERNARDIN | G158: 275.42 | K158: 45
A159: 205 | B159: 2016-05-01 | C159: 450.03 | E159: av travx mai BERNARDIN | F159: 77.03 | K159: 45
A160: 10 | B160: 2016-01-01 | C160: 450.05 | E160: A nouveau HUBERT | F160: 551.11 | K160: 45
A161: 37 | B161: 2016-01-01 | C161: 450.05 | E161: appel 1er trim HU BERT | F161: 376.64 | K161: 45
A162: 44 | B162: 2016-01-01 | C162: 450.05 | E162: 1er appel trav,peint,HUBERT | F162: 152.45 | K162: 45
A163: 51 | B163: 2016-01-04 | C163: 450.05 | E163: règlement HUBERT | G163: 609.8 | K163: 45
A164: 73 | B164: 2016-01-16 | C164: 450.05 | E164: règlement HUBERT | G164: 78.4 | K164: 45
A165: 79 | B165: 2016-02-01 | C165: 450.05 | E165: 2è appel trav;peint, HUBERT | F165: 152.45 | K165: 45
A166: 115 | B166: 2016-03-01 | C166: 450.05 | E166: 3è appel trav,peint,HUBERT | F166: 152.45 | K166: 45
A167: 122 | B167: 2016-03-01 | C167: 450.05 | E167: règlement HUBERT | G167: 146.9 | K167: 45
A168: 124 | B168: 2016-03-01 | C168: 450.05 | E168: règlement HUBERT | G168: 550 | K168: 45
A169: 150 | B169: 2016-04-01 | C169: 450.05 | E169: 4è appel trav:peint,HUBERT | F169: 152.45 | K169: 45
A170: 157 | B170: 2016-04-01 | C170: 450.05 | E170: appel prov 2è trim HUBERT | F170: 423.01 | K170: 45
A171: 200 | B171: 2016-04-18 | C171: 450.05 | E171: règlement HUBERT | G171: 575.46 | K171: 45
A172: 206 | B172: 2016-05-01 | C172: 450.05 | E172: av travx mai HUBERT | F172: 82.65 | K172: 45
A173: 11 | B173: 2016-01-01 | C173: 450.06 | E173: A nouveau LELIEVRE | F173: 73.02 | K173: 45
A174: 38 | B174: 2016-01-01 | C174: 450.06 | E174: appel 1er trim LELIEVRE | F174: 298.09 | K174: 45
A175: 45 | B175: 2016-01-01 | C175: 450.06 | E175: 1er appel trav,peint, LELIEVRE | F175: 172.43 | K175: 45
A176: 80 | B176: 2016-02-01 | C176: 450.06 | E176: 2è appel trav,peint,LELIEVRE | F176: 172.43 | K176: 45
A177: 103 | B177: 2016-02-09 | C177: 450.06 | E177: règlement | G177: 715.97 | K177: 45
A178: 116 | B178: 2016-03-01 | C178: 450.06 | E178: 3è appel trav,peint,LELIEVRE | F178: 172.43 | K178: 45
A179: 136 | B179: 2016-03-18 | C179: 450.06 | E179: règlement LELIEVRE | G179: 172.43 | K179: 45
A180: 151 | B180: 2016-04-01 | C180: 450.06 | E180: 4è appel trav,peint,LELIEVRE | F180: 172.43 | K180: 45
A181: 158 | B181: 2016-04-01 | C181: 450.06 | E181: appel prov 2è trim LELIEVRE | F181: 291.69 | K181: 45
A182: 186 | B182: 2016-04-12 | C182: 450.06 | E182: règlement LELIEVRE | G182: 464.12 | K182: 45
A183: 207 | B183: 2016-05-01 | C183: 450.06 | E183: av travx mai LELIEVRE | F183: 93.48 | K183: 45
A184: 12 | B184: 2016-01-01 | C184: 450.07 | E184: A nouveau RONDEAU | F184: 235.43 | K184: 45
A185: 39 | B185: 2016-01-01 | C185: 450.07 | E185: appel 1er trim RONDEAU | F185: 201.79 | K185: 45
A186: 46 | B186: 2016-01-01 | C186: 450.07 | E186: 1er appel trav,peint, RONDEAU | F186: 73.26 | K186: 45
A187: 65 | B187: 2016-01-16 | C187: 450.07 | E187: règlement RONDEAU | G187: 335.87 | K187: 45
A188: 81 | B188: 2016-02-01 | C188: 450.07 | E188: 2è appel trav,pezint,RONDEAU | F188: 73.26 | K188: 45
A189: 117 | B189: 2016-03-01 | C189: 450.07 | E189: 3è appel trav,peint,RONDEAU | F189: 73.26 | K189: 45
A190: 152 | B190: 2016-04-01 | C190: 450.07 | E190: 4è appel trav,peint,RONDEAU | F190: 73.26 | K190: 45
A191: 159 | B191: 2016-04-01 | C191: 450.07 | E191: appel prov 2è trim RONDEAU | F191: 202.15 | K191: 45
A192: 208 | B192: 2016-05-01 | C192: 450.07 | E192: av travx mai RONDEAU | F192: 39.72 | K192: 45
A193: 30 | B193: 2016-01-01 | C193: 471 | E193: A nouveau écart de répartition | F193: 0.01 | K193: 48
A194: 31 | B194: 2016-01-01 | C194: 471 | E194: régul écart de répartition | G194: 0.01 | K194: 48
A195: 2 | B195: 2016-01-01 | C195: 512 | E195: A nouveau | F195: 1790.84 | K195: 50
A196: 50 | B196: 2016-01-02 | C196: 512 | E196: règlt Fact,DUBOIS | G196: 760.05 | K196: 50
A197: 52 | B197: 2016-01-04 | C197: 512 | E197: règlement HUGNET | F197: 609.8 | K197: 50
A198: 54 | B198: 2016-01-04 | C198: 512 | E198: règlement BENHARROSH | F198: 577.24 | K198: 50
A199: 56 | B199: 2016-01-04 | C199: 512 | E199: règlement ORTEGA | F199: 66.27 | K199: 50
A200: 58 | B200: 2016-01-04 | C200: 512 | E200: règlement AUDRAIN | F200: 321 | K200: 50
A201: 64 | B201: 2016-01-15 | C201: 512 | E201: prèlèvement CCP | G201: 13.4 | K201: 50
... 3211 more rows

Sheet COPROS
I1: Situation au | J1: 2016-06-22
C5: COMPTES COPROPRIETAIRES | I5: Solde Débit, | J5: Solde Crédit,
C6: 450.01 | E6: =IF(C6<>0,VLOOKUP(C6,PLANS!$A$20:$C$99,3),"") -> AUBERT | I6: =Journal!I1241 -> 46.94 | J6: =Journal!J1241 -> 
C7: 450.02 | E7: =IF(C7<>0,VLOOKUP(C7,PLANS!$A$20:$C$99,3),"") -> AUDIARD | I7: =Journal!I1242 -> 10.25 | J7: =Journal!J1242 -> 
C8: 450.03 | E8: =IF(C8<>0,VLOOKUP(C8,PLANS!$A$20:$C$99,3),"") -> BERNARDIN | I8: =Journal!I1243 -> 77.03 | J8: =Journal!J1243 -> 
C9: 450.05 | E9: =IF(C9<>0,VLOOKUP(C9,PLANS!$A$20:$C$99,3),"") -> HUBERT | I9: =Journal!I1244 -> 82.65 | J9: =Journal!J1244 -> 
C10: 450.06 | E10: =IF(C10<>0,VLOOKUP(C10,PLANS!$A$20:$C$99,3),"") -> LELIEVRE | I10: =Journal!I1245 -> 93.48 | J10: =Journal!J1245 -> 
C11: 450.07 | E11: =IF(C11<>0,VLOOKUP(C11,PLANS!$A$20:$C$99,3),"") -> RONDEAU | I11: =Journal!I1246 -> 636.26 | J11: =Journal!J1246 -> 
C12: 450.08 | E12: =IF(C12<>0,VLOOKUP(C12,PLANS!$A$20:$C$99,3),"") -> X.Y.Z. | I12: =Journal!I1247 ->  | J12: =Journal!J1247 -> 
E13: =IF(C13<>0,VLOOKUP(C13,PLANS!$A$20:$C$99,3),"") ->  | I13: =Journal!I1248 ->  | J13: =Journal!J1248 -> 
E14: =IF(C14<>0,VLOOKUP(C14,PLANS!$A$20:$C$99,3),"") ->  | I14: =Journal!I1249 ->  | J14: =Journal!J1249 -> 
E15: =IF(C15<>0,VLOOKUP(C15,PLANS!$A$20:$C$99,3),"") ->  | I15: =Journal!I1250 ->  | J15: =Journal!J1250 -> 
E16: =IF(C16<>0,VLOOKUP(C16,PLANS!$A$20:$C$99,3),"") ->  | I16: =Journal!I1251 ->  | J16: =Journal!J1251 -> 
E17: =IF(C17<>0,VLOOKUP(C17,PLANS!$A$20:$C$99,3),"") ->  | I17: =Journal!I1252 ->  | J17: =Journal!J1252 -> 
E18: =IF(C18<>0,VLOOKUP(C18,PLANS!$A$20:$C$99,3),"") ->  | I18: =Journal!I1253 ->  | J18: =Journal!J1253 -> 
E19: =IF(C19<>0,VLOOKUP(C19,PLANS!$A$20:$C$99,3),"") ->  | I19: =Journal!I1254 ->  | J19: =Journal!J1254 -> 
E20: =IF(C20<>0,VLOOKUP(C20,PLANS!$A$20:$C$99,3),"") ->  | I20: =Journal!I1255 ->  | J20: =Journal!J1255 -> 
E21: =IF(C21<>0,VLOOKUP(C21,PLANS!$A$20:$C$99,3),"") ->  | I21: =Journal!I1256 ->  | J21: =Journal!J1256 -> 
E22: =IF(C22<>0,VLOOKUP(C22,PLANS!$A$20:$C$99,3),"") ->  | I22: =Journal!I1257 ->  | J22: =Journal!J1257 -> 
E23: =IF(C23<>0,VLOOKUP(C23,PLANS!$A$20:$C$99,3),"") ->  | I23: =Journal!I1258 ->  | J23: =Journal!J1258 -> 
E24: =IF(C24<>0,VLOOKUP(C24,PLANS!$A$20:$C$99,3),"") ->  | I24: =Journal!I1259 ->  | J24: =Journal!J1259 -> 
E25: =IF(C25<>0,VLOOKUP(C25,PLANS!$A$20:$C$99,3),"") ->  | I25: =Journal!I1260 ->  | J25: =Journal!J1260 -> 
I26: =Journal!I1261 -> 946.61 | J26: =Journal!J1261 -> 0
J29: =IF(G29>F29,G29-F29,"") -> 
